Workbook

Sheet Dashboard
B8: Août
B31: Revenus | C31: Réel | D31: Budget | F31: Charges | G31: Réel | H31: Budget | J31: Autres charges & Loisirs | K31: Réel | L31: Budget | N31: Crédits | O31: Réel | P31: Budget | R31: Investissements | S31: Réel | T31: Budget | V31: Epargnes | W31: Réel | X31: Budget
B32: =Budget!B7 -> Salaire | C32: =SUMPRODUCT((MONTH(Transactions[Date])=MONTH(DATEVALUE("1"&$B$8&"2000")))*(Transactions[Catégorie]=B32)*(Transactions[Montant])) -> 673885 | D32: =IFERROR(IFERROR(INDEX(Revenus_budget[[Janvier]:[Décembre]],MATCH(B32,Revenus,0),MATCH($B$8,Revenus_budget[[#Headers],[Janvier]:[Décembre]],0)),""),0) -> 650000 | F32: =Budget!B15 -> Loyer | G32: =SUMPRODUCT((MONTH(Transactions[Date])=MONTH(DATEVALUE("1"&$B$8&"2000")))*(Transactions[Catégorie]=F32)*(Transactions[Montant])) -> 0 | H32: =IFERROR(INDEX(Dépenses_budget[[Janvier]:[Décembre]],MATCH(F32,Charges,0),MATCH($B$8,Dépenses_budget[[#Headers],[Janvier]:[Décembre]],0)),"") -> 65000 | J32: =Budget!B28 -> Assistances familles | K32: =SUMPRODUCT((MONTH(Transactions[Date])=MONTH(DATEVALUE("1"&$B$8&"2000")))*(Transactions[Catégorie]=J32)*(Transactions[Montant])) -> 0 | L32: =IFERROR(INDEX(Autres_charges_budget[[Janvier]:[Décembre]],MATCH(J32,Autres_charges,0),MATCH($B$8,Autres_charges_budget[[#Headers],[Janvier]:[Décembre]],0)),"") -> 30000 | N32: =Budget!B43 -> emprunt bancaire | O32: =SUMPRODUCT((MONTH(Transactions[Date])=MONTH(DATEVALUE("1"&$B$8&"2000")))*(Transactions[Catégorie]=N32)*(Transactions[Montant])) -> 92072 | P32: =IFERROR(INDEX(Crédits_budget[[Janvier]:[Décembre]],MATCH(N32,Crédits,0),MATCH($B$8,Crédits_budget[[#Headers],[Janvier]:[Décembre]],0)),"") -> 92000 | R32: =Budget!B51 -> Formations | S32: =SUMPRODUCT((MONTH(Transactions[Date])=MONTH(DATEVALUE("1"&$B$8&"2000")))*(Transactions[Catégorie]=R32)*(Transactions[Montant])) -> 0 | T32: =IFERROR(INDEX(Investissements_budget[[Janvier]:[Décembre]],MATCH(R32,Investissements,0),MATCH($B$8,Investissements_budget[[#Headers],[Janvier]:[Décembre]],0)),"") -> 0 | V32: =Budget!B59 -> Compte bloqué | W32: =SUMPRODUCT((MONTH(Transactions[Date])=MONTH(DATEVALUE("1"&$B$8&"2000")))*(Transactions[Catégorie]=V32)*(Transactions[Montant])) -> 0 | X32: =IFERROR(INDEX(Epargnes_budget[[Janvier]:[Décembre]],MATCH(V32,Epargnes,0),MATCH($B$8,Epargnes_budget[[#Headers],[Janvier]:[Décembre]],0)),"") -> 77000
B33: =Budget!B8 -> Revenus complémentaires | C33: =SUMPRODUCT((MONTH(Transactions[Date])=MONTH(DATEVALUE("1"&$B$8&"2000")))*(Transactions[Catégorie]=B33)*(Transactions[Montant])) -> 0 | D33: =IFERROR(IFERROR(INDEX(Revenus_budget[[Janvier]:[Décembre]],MATCH(B33,Revenus,0),MATCH($B$8,Revenus_budget[[#Headers],[Janvier]:[Décembre]],0)),""),0) -> 0 | F33: =Budget!B16 -> CIE | G33: =SUMPRODUCT((MONTH(Transactions[Date])=MONTH(DATEVALUE("1"&$B$8&"2000")))*(Transactions[Catégorie]=F33)*(Transactions[Montant])) -> 5000 | H33: =IFERROR(INDEX(Dépenses_budget[[Janvier]:[Décembre]],MATCH(F33,Charges,0),MATCH($B$8,Dépenses_budget[[#Headers],[Janvier]:[Décembre]],0)),"") -> 5000 | J33: =Budget!B29 -> Entretien logement | K33: =SUMPRODUCT((MONTH(Transactions[Date])=MONTH(DATEVALUE("1"&$B$8&"2000")))*(Transactions[Catégorie]=J33)*(Transactions[Montant])) -> 51000 | L33: =IFERROR(INDEX(Autres_charges_budget[[Janvier]:[Décembre]],MATCH(J33,Autres_charges,0),MATCH($B$8,Autres_charges_budget[[#Headers],[Janvier]:[Décembre]],0)),"") -> 50000 | N33: =Budget!B44 -> Remboursement hors banque | O33: =SUMPRODUCT((MONTH(Transactions[Date])=MONTH(DATEVALUE("1"&$B$8&"2000")))*(Transactions[Catégorie]=N33)*(Transactions[Montant])) -> 0 | P33: =IFERROR(INDEX(Crédits_budget[[Janvier]:[Décembre]],MATCH(N33,Crédits,0),MATCH($B$8,Crédits_budget[[#Headers],[Janvier]:[Décembre]],0)),"") -> 0 | R33: =Budget!B52 -> Projets | S33: =SUMPRODUCT((MONTH(Transactions[Date])=MONTH(DATEVALUE("1"&$B$8&"2000")))*(Transactions[Catégorie]=R33)*(Transactions[Montant])) -> 0 | T33: =IFERROR(INDEX(Investissements_budget[[Janvier]:[Décembre]],MATCH(R33,Investissements,0),MATCH($B$8,Investissements_budget[[#Headers],[Janvier]:[Décembre]],0)),"") -> 0 | V33: =Budget!B60 -> Fond d'urgence | W33: =SUMPRODUCT((MONTH(Transactions[Date])=MONTH(DATEVALUE("1"&$B$8&"2000")))*(Transactions[Catégorie]=V33)*(Transactions[Montant])) -> 0 | X33: =IFERROR(INDEX(Epargnes_budget[[Janvier]:[Décembre]],MATCH(V33,Epargnes,0),MATCH($B$8,Epargnes_budget[[#Headers],[Janvier]:[Décembre]],0)),"") -> 0
B34: =Budget!B9 -> Autres revenus | C34: =SUMPRODUCT((MONTH(Transactions[Date])=MONTH(DATEVALUE("1"&$B$8&"2000")))*(Transactions[Catégorie]=B34)*(Transactions[Montant])) -> 3000 | D34: =IFERROR(IFERROR(INDEX(Revenus_budget[[Janvier]:[Décembre]],MATCH(B34,Revenus,0),MATCH($B$8,Revenus_budget[[#Headers],[Janvier]:[Décembre]],0)),""),0) -> 30000 | F34: =Budget!B17 -> SODECI | G34: =SUMPRODUCT((MONTH(Transactions[Date])=MONTH(DATEVALUE("1"&$B$8&"2000")))*(Transactions[Catégorie]=F34)*(Transactions[Montant])) -> 0 | H34: =IFERROR(INDEX(Dépenses_budget[[Janvier]:[Décembre]],MATCH(F34,Charges,0),MATCH($B$8,Dépenses_budget[[#Headers],[Janvier]:[Décembre]],0)),"") -> 0 | J34: =Budget!B30 -> Divers | K34: =SUMPRODUCT((MONTH(Transactions[Date])=MONTH(DATEVALUE("1"&$B$8&"2000")))*(Transactions[Catégorie]=J34)*(Transactions[Montant])) -> 0 | L34: =IFERROR(INDEX(Autres_charges_budget[[Janvier]:[Décembre]],MATCH(J34,Autres_charges,0),MATCH($B$8,Autres_charges_budget[[#Headers],[Janvier]:[Décembre]],0)),"") -> 5000 | N34: =Budget!B45 -> Autres crédits | O34: =SUMPRODUCT((MONTH(Transactions[Date])=MONTH(DATEVALUE("1"&$B$8&"2000")))*(Transactions[Catégorie]=N34)*(Transactions[Montant])) -> 0 | P34: =IFERROR(INDEX(Crédits_budget[[Janvier]:[Décembre]],MATCH(N34,Crédits,0),MATCH($B$8,Crédits_budget[[#Headers],[Janvier]:[Décembre]],0)),"") -> 0 | R34: =Budget!B53 -> Autres projets | S34: =SUMPRODUCT((MONTH(Transactions[Date])=MONTH(DATEVALUE("1"&$B$8&"2000")))*(Transactions[Catégorie]=R34)*(Transactions[Montant])) -> 0 | T34: =IFERROR(INDEX(Investissements_budget[[Janvier]:[Décembre]],MATCH(R34,Investissements,0),MATCH($B$8,Investissements_budget[[#Headers],[Janvier]:[Décembre]],0)),"") -> 50000 | V34: =Budget!B61 -> Autres epargnes | W34: =SUMPRODUCT((MONTH(Transactions[Date])=MONTH(DATEVALUE("1"&$B$8&"2000")))*(Transactions[Catégorie]=V34)*(Transactions[Montant])) -> 50000 | X34: =IFERROR(INDEX(Epargnes_budget[[Janvier]:[Décembre]],MATCH(V34,Epargnes,0),MATCH($B$8,Epargnes_budget[[#Headers],[Janvier]:[Décembre]],0)),"") -> 50000
C35: =SUMPRODUCT((MONTH(Transactions[Date])=MONTH(DATEVALUE("1"&$B$8&"2000")))*(Transactions[Catégorie]=B35)*(Transactions[Montant])) -> 0 | D35: =IFERROR(IFERROR(INDEX(Revenus_budget[[Janvier]:[Décembre]],MATCH(B35,Revenus,0),MATCH($B$8,Revenus_budget[[#Headers],[Janvier]:[Décembre]],0)),""),0) ->  | F35: =Budget!B18 -> Gaz | G35: =SUMPRODUCT((MONTH(Transactions[Date])=MONTH(DATEVALUE("1"&$B$8&"2000")))*(Transactions[Catégorie]=F35)*(Transactions[Montant])) -> 0 | H35: =IFERROR(INDEX(Dépenses_budget[[Janvier]:[Décembre]],MATCH(F35,Charges,0),MATCH($B$8,Dépenses_budget[[#Headers],[Janvier]:[Décembre]],0)),"") -> 0 | J35: =Budget!B31 -> Pressing | K35: =SUMPRODUCT((MONTH(Transactions[Date])=MONTH(DATEVALUE("1"&$B$8&"2000")))*(Transactions[Catégorie]=J35)*(Transactions[Montant])) -> 0 | L35: =IFERROR(INDEX(Autres_charges_budget[[Janvier]:[Décembre]],MATCH(J35,Autres_charges,0),MATCH($B$8,Autres_charges_budget[[#Headers],[Janvier]:[Décembre]],0)),"") -> 0 | O35: =SUMPRODUCT((MONTH(Transactions[Date])=MONTH(DATEVALUE("1"&$B$8&"2000")))*(Transactions[Catégorie]=N35)*(Transactions[Montant])) -> 0 | P35: =IFERROR(INDEX(Crédits_budget[[Janvier]:[Décembre]],MATCH(N35,Crédits,0),MATCH($B$8,Crédits_budget[[#Headers],[Janvier]:[Décembre]],0)),"") ->  | S35: =SUMPRODUCT((MONTH(Transactions[Date])=MONTH(DATEVALUE("1"&$B$8&"2000")))*(Transactions[Catégorie]=R35)*(Transactions[Montant])) -> 0 | T35: =IFERROR(INDEX(Investissements_budget[[Janvier]:[Décembre]],MATCH(R35,Investissements,0),MATCH($B$8,Investissements_budget[[#Headers],[Janvier]:[Décembre]],0)),"") ->  | W35: =SUMPRODUCT((MONTH(Transactions[Date])=MONTH(DATEVALUE("1"&$B$8&"2000")))*(Transactions[Catégorie]=V35)*(Transactions[Montant])) -> 0 | X35: =IFERROR(INDEX(Epargnes_budget[[Janvier]:[Décembre]],MATCH(V35,Epargnes,0),MATCH($B$8,Epargnes_budget[[#Headers],[Janvier]:[Décembre]],0)),"") -> 
C36: =SUMPRODUCT((MONTH(Transactions[Date])=MONTH(DATEVALUE("1"&$B$8&"2000")))*(Transactions[Catégorie]=B36)*(Transactions[Montant])) -> 0 | D36: =IFERROR(IFERROR(INDEX(Revenus_budget[[Janvier]:[Décembre]],MATCH(B36,Revenus,0),MATCH($B$8,Revenus_budget[[#Headers],[Janvier]:[Décembre]],0)),""),0) ->  | F36: =Budget!B19 -> Nourriture | G36: =SUMPRODUCT((MONTH(Transactions[Date])=MONTH(DATEVALUE("1"&$B$8&"2000")))*(Transactions[Catégorie]=F36)*(Transactions[Montant])) -> 21000 | H36: =IFERROR(INDEX(Dépenses_budget[[Janvier]:[Décembre]],MATCH(F36,Charges,0),MATCH($B$8,Dépenses_budget[[#Headers],[Janvier]:[Décembre]],0)),"") -> 50000 | J36: =Budget!B32 -> Shopping | K36: =SUMPRODUCT((MONTH(Transactions[Date])=MONTH(DATEVALUE("1"&$B$8&"2000")))*(Transactions[Catégorie]=J36)*(Transactions[Montant])) -> 0 | L36: =IFERROR(INDEX(Autres_charges_budget[[Janvier]:[Décembre]],MATCH(J36,Autres_charges,0),MATCH($B$8,Autres_charges_budget[[#Headers],[Janvier]:[Décembre]],0)),"") -> 20000 | O36: =SUMPRODUCT((MONTH(Transactions[Date])=MONTH(DATEVALUE("1"&$B$8&"2000")))*(Transactions[Catégorie]=N36)*(Transactions[Montant])) -> 0 | P36: =IFERROR(INDEX(Crédits_budget[[Janvier]:[Décembre]],MATCH(N36,Crédits,0),MATCH($B$8,Crédits_budget[[#Headers],[Janvier]:[Décembre]],0)),"") ->  | S36: =SUMPRODUCT((MONTH(Transactions[Date])=MONTH(DATEVALUE("1"&$B$8&"2000")))*(Transactions[Catégorie]=R36)*(Transactions[Montant])) -> 0 | T36: =IFERROR(INDEX(Investissements_budget[[Janvier]:[Décembre]],MATCH(R36,Investissements,0),MATCH($B$8,Investissements_budget[[#Headers],[Janvier]:[Décembre]],0)),"") ->  | W36: =SUMPRODUCT((MONTH(Transactions[Date])=MONTH(DATEVALUE("1"&$B$8&"2000")))*(Transactions[Catégorie]=V36)*(Transactions[Montant])) -> 0 | X36: =IFERROR(INDEX(Epargnes_budget[[Janvier]:[Décembre]],MATCH(V36,Epargnes,0),MATCH($B$8,Epargnes_budget[[#Headers],[Janvier]:[Décembre]],0)),"") -> 
C37: =SUMPRODUCT((MONTH(Transactions[Date])=MONTH(DATEVALUE("1"&$B$8&"2000")))*(Transactions[Catégorie]=B37)*(Transactions[Montant])) -> 0 | D37: =IFERROR(IFERROR(INDEX(Revenus_budget[[Janvier]:[Décembre]],MATCH(B37,Revenus,0),MATCH($B$8,Revenus_budget[[#Headers],[Janvier]:[Décembre]],0)),""),0) ->  | F37: =Budget!B20 -> Transport | G37: =SUMPRODUCT((MONTH(Transactions[Date])=MONTH(DATEVALUE("1"&$B$8&"2000")))*(Transactions[Catégorie]=F37)*(Transactions[Montant])) -> 23500 | H37: =IFERROR(INDEX(Dépenses_budget[[Janvier]:[Décembre]],MATCH(F37,Charges,0),MATCH($B$8,Dépenses_budget[[#Headers],[Janvier]:[Décembre]],0)),"") -> 55000 | J37: =Budget!B33 -> Restaurant/Loisirs | K37: =SUMPRODUCT((MONTH(Transactions[Date])=MONTH(DATEVALUE("1"&$B$8&"2000")))*(Transactions[Catégorie]=J37)*(Transactions[Montant])) -> 0 | L37: =IFERROR(INDEX(Autres_charges_budget[[Janvier]:[Décembre]],MATCH(J37,Autres_charges,0),MATCH($B$8,Autres_charges_budget[[#Headers],[Janvier]:[Décembre]],0)),"") -> 36000 | O37: =SUMPRODUCT((MONTH(Transactions[Date])=MONTH(DATEVALUE("1"&$B$8&"2000")))*(Transactions[Catégorie]=N37)*(Transactions[Montant])) -> 0 | P37: =IFERROR(INDEX(Crédits_budget[[Janvier]:[Décembre]],MATCH(N37,Crédits,0),MATCH($B$8,Crédits_budget[[#Headers],[Janvier]:[Décembre]],0)),"") ->  | S37: =SUMPRODUCT((MONTH(Transactions[Date])=MONTH(DATEVALUE("1"&$B$8&"2000")))*(Transactions[Catégorie]=R37)*(Transactions[Montant])) -> 0 | T37: =IFERROR(INDEX(Investissements_budget[[Janvier]:[Décembre]],MATCH(R37,Investissements,0),MATCH($B$8,Investissements_budget[[#Headers],[Janvier]:[Décembre]],0)),"") ->  | W37: =SUMPRODUCT((MONTH(Transactions[Date])=MONTH(DATEVALUE("1"&$B$8&"2000")))*(Transactions[Catégorie]=V37)*(Transactions[Montant])) -> 0 | X37: =IFERROR(INDEX(Epargnes_budget[[Janvier]:[Décembre]],MATCH(V37,Epargnes,0),MATCH($B$8,Epargnes_budget[[#Headers],[Janvier]:[Décembre]],0)),"") -> 
C38: =SUMPRODUCT((MONTH(Transactions[Date])=MONTH(DATEVALUE("1"&$B$8&"2000")))*(Transactions[Catégorie]=B38)*(Transactions[Montant])) -> 0 | D38: =IFERROR(IFERROR(INDEX(Revenus_budget[[Janvier]:[Décembre]],MATCH(B38,Revenus,0),MATCH($B$8,Revenus_budget[[#Headers],[Janvier]:[Décembre]],0)),""),0) ->  | F38: =Budget!B21 -> Agios bancaire | G38: =SUMPRODUCT((MONTH(Transactions[Date])=MONTH(DATEVALUE("1"&$B$8&"2000")))*(Transactions[Catégorie]=F38)*(Transactions[Montant])) -> 12000 | H38: =IFERROR(INDEX(Dépenses_budget[[Janvier]:[Décembre]],MATCH(F38,Charges,0),MATCH($B$8,Dépenses_budget[[#Headers],[Janvier]:[Décembre]],0)),"") -> 12000 | J38: =Budget!B34 -> Dons & libéralités diverses | K38: =SUMPRODUCT((MONTH(Transactions[Date])=MONTH(DATEVALUE("1"&$B$8&"2000")))*(Transactions[Catégorie]=J38)*(Transactions[Montant])) -> 0 | L38: =IFERROR(INDEX(Autres_charges_budget[[Janvier]:[Décembre]],MATCH(J38,Autres_charges,0),MATCH($B$8,Autres_charges_budget[[#Headers],[Janvier]:[Décembre]],0)),"") -> 0 | O38: =SUMPRODUCT((MONTH(Transactions[Date])=MONTH(DATEVALUE("1"&$B$8&"2000")))*(Transactions[Catégorie]=N38)*(Transactions[Montant])) -> 0 | P38: =IFERROR(INDEX(Crédits_budget[[Janvier]:[Décembre]],MATCH(N38,Crédits,0),MATCH($B$8,Crédits_budget[[#Headers],[Janvier]:[Décembre]],0)),"") ->  | S38: =SUMPRODUCT((MONTH(Transactions[Date])=MONTH(DATEVALUE("1"&$B$8&"2000")))*(Transactions[Catégorie]=R38)*(Transactions[Montant])) -> 0 | T38: =IFERROR(INDEX(Investissements_budget[[Janvier]:[Décembre]],MATCH(R38,Investissements,0),MATCH($B$8,Investissements_budget[[#Headers],[Janvier]:[Décembre]],0)),"") ->  | W38: =SUMPRODUCT((MONTH(Transactions[Date])=MONTH(DATEVALUE("1"&$B$8&"2000")))*(Transactions[Catégorie]=V38)*(Transactions[Montant])) -> 0 | X38: =IFERROR(INDEX(Epargnes_budget[[Janvier]:[Décembre]],MATCH(V38,Epargnes,0),MATCH($B$8,Epargnes_budget[[#Headers],[Janvier]:[Décembre]],0)),"") -> 
C39: =SUMPRODUCT((MONTH(Transactions[Date])=MONTH(DATEVALUE("1"&$B$8&"2000")))*(Transactions[Catégorie]=B39)*(Transactions[Montant])) -> 0 | D39: =IFERROR(IFERROR(INDEX(Revenus_budget[[Janvier]:[Décembre]],MATCH(B39,Revenus,0),MATCH($B$8,Revenus_budget[[#Headers],[Janvier]:[Décembre]],0)),""),0) ->  | F39: =Budget!B22 -> Frais de télécommunication & internet | G39: =SUMPRODUCT((MONTH(Transactions[Date])=MONTH(DATEVALUE("1"&$B$8&"2000")))*(Transactions[Catégorie]=F39)*(Transactions[Montant])) -> 0 | H39: =IFERROR(INDEX(Dépenses_budget[[Janvier]:[Décembre]],MATCH(F39,Charges,0),MATCH($B$8,Dépenses_budget[[#Headers],[Janvier]:[Décembre]],0)),"") -> 15000 | J39: =Budget!B35 -> Cotisations | K39: =SUMPRODUCT((MONTH(Transactions[Date])=MONTH(DATEVALUE("1"&$B$8&"2000")))*(Transactions[Catégorie]=J39)*(Transactions[Montant])) -> 0 | L39: =IFERROR(INDEX(Autres_charges_budget[[Janvier]:[Décembre]],MATCH(J39,Autres_charges,0),MATCH($B$8,Autres_charges_budget[[#Headers],[Janvier]:[Décembre]],0)),"") -> 10000 | O39: =SUMPRODUCT((MONTH(Transactions[Date])=MONTH(DATEVALUE("1"&$B$8&"2000")))*(Transactions[Catégorie]=N39)*(Transactions[Montant])) -> 0 | P39: =IFERROR(INDEX(Crédits_budget[[Janvier]:[Décembre]],MATCH(N39,Crédits,0),MATCH($B$8,Crédits_budget[[#Headers],[Janvier]:[Décembre]],0)),"") ->  | S39: =SUMPRODUCT((MONTH(Transactions[Date])=MONTH(DATEVALUE("1"&$B$8&"2000")))*(Transactions[Catégorie]=R39)*(Transactions[Montant])) -> 0 | T39: =IFERROR(INDEX(Investissements_budget[[Janvier]:[Décembre]],MATCH(R39,Investissements,0),MATCH($B$8,Investissements_budget[[#Headers],[Janvier]:[Décembre]],0)),"") ->  | W39: =SUMPRODUCT((MONTH(Transactions[Date])=MONTH(DATEVALUE("1"&$B$8&"2000")))*(Transactions[Catégorie]=V39)*(Transactions[Montant])) -> 0 | X39: =IFERROR(INDEX(Epargnes_budget[[Janvier]:[Décembre]],MATCH(V39,Epargnes,0),MATCH($B$8,Epargnes_budget[[#Headers],[Janvier]:[Décembre]],0)),"") -> 
C40: =SUMPRODUCT((MONTH(Transactions[Date])=MONTH(DATEVALUE("1"&$B$8&"2000")))*(Transactions[Catégorie]=B40)*(Transactions[Montant])) -> 0 | D40: =IFERROR(IFERROR(INDEX(Revenus_budget[[Janvier]:[Décembre]],MATCH(B40,Revenus,0),MATCH($B$8,Revenus_budget[[#Headers],[Janvier]:[Décembre]],0)),""),0) ->  | F40: =Budget!B23 -> Dîme & Aumônes | G40: =SUMPRODUCT((MONTH(Transactions[Date])=MONTH(DATEVALUE("1"&$B$8&"2000")))*(Transactions[Catégorie]=F40)*(Transactions[Montant])) -> 5500 | H40: =IFERROR(INDEX(Dépenses_budget[[Janvier]:[Décembre]],MATCH(F40,Charges,0),MATCH($B$8,Dépenses_budget[[#Headers],[Janvier]:[Décembre]],0)),"") -> 5000 | J40: =Budget!B36 -> Abonnements multimédia | K40: =SUMPRODUCT((MONTH(Transactions[Date])=MONTH(DATEVALUE("1"&$B$8&"2000")))*(Transactions[Catégorie]=J40)*(Transactions[Montant])) -> 0 | L40: =IFERROR(INDEX(Autres_charges_budget[[Janvier]:[Décembre]],MATCH(J40,Autres_charges,0),MATCH($B$8,Autres_charges_budget[[#Headers],[Janvier]:[Décembre]],0)),"") -> 8000 | O40: =SUMPRODUCT((MONTH(Transactions[Date])=MONTH(DATEVALUE("1"&$B$8&"2000")))*(Transactions[Catégorie]=N40)*(Transactions[Montant])) -> 0 | P40: =IFERROR(INDEX(Crédits_budget[[Janvier]:[Décembre]],MATCH(N40,Crédits,0),MATCH($B$8,Crédits_budget[[#Headers],[Janvier]:[Décembre]],0)),"") ->  | S40: =SUMPRODUCT((MONTH(Transactions[Date])=MONTH(DATEVALUE("1"&$B$8&"2000")))*(Transactions[Catégorie]=R40)*(Transactions[Montant])) -> 0 | T40: =IFERROR(INDEX(Investissements_budget[[Janvier]:[Décembre]],MATCH(R40,Investissements,0),MATCH($B$8,Investissements_budget[[#Headers],[Janvier]:[Décembre]],0)),"") ->  | W40: =SUMPRODUCT((MONTH(Transactions[Date])=MONTH(DATEVALUE("1"&$B$8&"2000")))*(Transactions[Catégorie]=V40)*(Transactions[Montant])) -> 0 | X40: =IFERROR(INDEX(Epargnes_budget[[Janvier]:[Décembre]],MATCH(V40,Epargnes,0),MATCH($B$8,Epargnes_budget[[#Headers],[Janvier]:[Décembre]],0)),"") -> 
C41: =SUMPRODUCT((MONTH(Transactions[Date])=MONTH(DATEVALUE("1"&$B$8&"2000")))*(Transactions[Catégorie]=B41)*(Transactions[Montant])) -> 0 | D41: =IFERROR(IFERROR(INDEX(Revenus_budget[[Janvier]:[Décembre]],MATCH(B41,Revenus,0),MATCH($B$8,Revenus_budget[[#Headers],[Janvier]:[Décembre]],0)),""),0) ->  | F41: =Budget!B24 -> Imprévus | G41: =SUMPRODUCT((MONTH(Transactions[Date])=MONTH(DATEVALUE("1"&$B$8&"2000")))*(Transactions[Catégorie]=F41)*(Transactions[Montant])) -> 0 | H41: =IFERROR(INDEX(Dépenses_budget[[Janvier]:[Décembre]],MATCH(F41,Charges,0),MATCH($B$8,Dépenses_budget[[#Headers],[Janvier]:[Décembre]],0)),"") -> 5000 | J41: =Budget!B37 -> Autres charges | K41: =SUMPRODUCT((MONTH(Transactions[Date])=MONTH(DATEVALUE("1"&$B$8&"2000")))*(Transactions[Catégorie]=J41)*(Transactions[Montant])) -> 0 | L41: =IFERROR(INDEX(Autres_charges_budget[[Janvier]:[Décembre]],MATCH(J41,Autres_charges,0),MATCH($B$8,Autres_charges_budget[[#Headers],[Janvier]:[Décembre]],0)),"") -> 12000 | O41: =SUMPRODUCT((MONTH(Transactions[Date])=MONTH(DATEVALUE("1"&$B$8&"2000")))*(Transactions[Catégorie]=N41)*(Transactions[Montant])) -> 0 | P41: =IFERROR(INDEX(Crédits_budget[[Janvier]:[Décembre]],MATCH(N41,Crédits,0),MATCH($B$8,Crédits_budget[[#Headers],[Janvier]:[Décembre]],0)),"") ->  | S41: =SUMPRODUCT((MONTH(Transactions[Date])=MONTH(DATEVALUE("1"&$B$8&"2000")))*(Transactions[Catégorie]=R41)*(Transactions[Montant])) -> 0 | T41: =IFERROR(INDEX(Investissements_budget[[Janvier]:[Décembre]],MATCH(R41,Investissements,0),MATCH($B$8,Investissements_budget[[#Headers],[Janvier]:[Décembre]],0)),"") ->  | W41: =SUMPRODUCT((MONTH(Transactions[Date])=MONTH(DATEVALUE("1"&$B$8&"2000")))*(Transactions[Catégorie]=V41)*(Transactions[Montant])) -> 0 | X41: =IFERROR(INDEX(Epargnes_budget[[Janvier]:[Décembre]],MATCH(V41,Epargnes,0),MATCH($B$8,Epargnes_budget[[#Headers],[Janvier]:[Décembre]],0)),"") -> 
B42: Total | C42: =SUM(C32:C41) -> 676885 | D42: =SUM(D32:D41) -> 680000 | F42: Total | G42: =SUM(G32:G41) -> 67000 | H42: =SUM(H32:H41) -> 212000 | J42: Total | K42: =SUM(K32:K41) -> 51000 | L42: =SUM(L32:L41) -> 171000 | N42: Total | O42: =SUM(O32:O41) -> 92072 | P42: =SUM(P32:P41) -> 92000 | R42: Total | S42: =SUM(S32:S41) -> 0 | T42: =SUM(T32:T41) -> 50000 | V42: Total | W42: =SUM(W32:W41) -> 50000 | X42: =SUM(X32:X41) -> 127000

Sheet Feuil1
C3: Car 1 | D3: Car 2 | E3: Ecart
C4: =20000+2000*20 -> 60000 | D4: =20000+1500*20 -> 50000 | E4: =C4-D4 -> 10000

Sheet Budget
C5: =C10-C25-C38-C46-C54-C62 -> 0 | D5: 0 | E5: 0 | F5: 0 | G5: 0 | H5: 0 | I5: 0 | J5: 28000 | K5: 3000 | L5: 18000 | M5: 18000 | N5: 180500 | O5: 247500
B6: Revenus | C6: Janvier | D6: Février | E6: Mars | F6: Avril | G6: Mai | H6: Juin | I6: Juillet | J6: Août | K6: Septembre | L6: Octobre | M6: Novembre | N6: Décembre | O6: Total
B7: Salaire | J7: 650000 | K7: 650000 | L7: 650000 | M7: 650000 | N7: 650000 | O7: =SUM(Revenus_budget[[#This Row],[Janvier]:[Décembre]]) -> 3250000
B8: Revenus complémentaires | N8: 487500 | O8: =SUM(Revenus_budget[[#This Row],[Janvier]:[Décembre]]) -> 487500
B9: Autres revenus | J9: 30000 | O9: =SUM(Revenus_budget[[#This Row],[Janvier]:[Décembre]]) -> 30000
B10: Total | C10: =SUBTOTAL(109,C7:C9) -> 0 | D10: =SUBTOTAL(109,D7:D9) -> 0 | E10: 0 | F10: 0 | G10: 0 | H10: 0 | I10: 0 | J10: 680000 | K10: 650000 | L10: 650000 | M10: 650000 | N10: 1137500 | O10: =SUM(Revenus_budget[[#This Row],[Janvier]:[Décembre]]) -> 3767500
B14: Charges | C14: Janvier | D14: Février | E14: Mars | F14: Avril | G14: Mai | H14: Juin | I14: Juillet | J14: Août | K14: Septembre | L14: Octobre | M14: Novembre | N14: Décembre | O14: Total
B15: Loyer | J15: 65000 | K15: 65000 | L15: 65000 | M15: 65000 | N15: 65000 | O15: =SUM(Dépenses_budget[[#This Row],[Janvier]:[Décembre]]) -> 325000
B16: CIE | J16: 5000 | K16: 10000 | L16: 10000 | M16: 10000 | N16: 10000 | O16: =SUM(Dépenses_budget[[#This Row],[Janvier]:[Décembre]]) -> 45000
B17: SODECI | O17: =SUM(Dépenses_budget[[#This Row],[Janvier]:[Décembre]]) -> 0
B18: Gaz | O18: =SUM(Dépenses_budget[[#This Row],[Janvier]:[Décembre]]) -> 0
B19: Nourriture | J19: 50000 | K19: 50000 | L19: 50000 | M19: 50000 | N19: 50000 | O19: =SUM(Dépenses_budget[[#This Row],[Janvier]:[Décembre]]) -> 250000
B20: Transport | J20: 55000 | K20: 55000 | L20: 55000 | M20: 55000 | N20: 55000 | O20: =SUM(Dépenses_budget[[#This Row],[Janvier]:[Décembre]]) -> 275000
B21: Agios bancaire | J21: 12000 | K21: 12000 | L21: 12000 | M21: 12000 | N21: 12000 | O21: =SUM(Dépenses_budget[[#This Row],[Janvier]:[Décembre]]) -> 60000
B22: Frais de télécommunication & internet | J22: 15000 | K22: 15000 | L22: 15000 | M22: 15000 | N22: 15000 | O22: =SUM(Dépenses_budget[[#This Row],[Janvier]:[Décembre]]) -> 75000
B23: Dîme & Aumônes | J23: 5000 | K23: 5000 | L23: 10000 | M23: 10000 | N23: 10000 | O23: =SUM(Dépenses_budget[[#This Row],[Janvier]:[Décembre]]) -> 40000
B24: Imprévus | J24: 5000 | K24: 5000 | L24: 5000 | M24: 5000 | N24: 5000 | O24: =SUM(Dépenses_budget[[#This Row],[Janvier]:[Décembre]]) -> 25000
B25: Total | C25: =SUBTOTAL(109,C15:C24) -> 0 | D25: =SUBTOTAL(109,D15:D24) -> 0 | E25: 0 | F25: 0 | G25: 0 | H25: 0 | I25: =SUBTOTAL(109,I15:I24) -> 0 | J25: 212000 | K25: 217000 | L25: 222000 | M25: 222000 | N25: 222000 | O25: 1095000
B27: Autres charges & Loisirs | C27: Janvier | D27: Février | E27: Mars | F27: Avril | G27: Mai | H27: Juin | I27: Juillet | J27: Août | K27: Septembre | L27: Octobre | M27: Novembre | N27: Décembre | O27: Total
B28: Assistances familles | J28: 30000 | K28: 30000 | L28: 30000 | M28: 30000 | N28: 250000 | O28: =SUM(Autres_charges_budget[[#This Row],[Janvier]:[Décembre]]) -> 370000
B29: Entretien logement | J29: 50000 | K29: 3000 | L29: 3000 | M29: 3000 | N29: 3000 | O29: =SUM(Autres_charges_budget[[#This Row],[Janvier]:[Décembre]]) -> 62000
B30: Divers | J30: 5000 | K30: 5000 | L30: 5000 | M30: 5000 | N30: 5000 | O30: =SUM(Autres_charges_budget[[#This Row],[Janvier]:[Décembre]]) -> 25000
B31: Pressing | K31: 5000 | L31: 5000 | M31: 5000 | N31: 5000 | O31: =SUM(Autres_charges_budget[[#This Row],[Janvier]:[Décembre]]) -> 20000
B32: Shopping | J32: 20000 | K32: 30000 | L32: 20000 | M32: 20000 | N32: 20000 | O32: =SUM(Autres_charges_budget[[#This Row],[Janvier]:[Décembre]]) -> 110000
B33: Restaurant/Loisirs | J33: 36000 | K33: 20000 | L33: 20000 | M33: 20000 | N33: 20000 | O33: =SUM(Autres_charges_budget[[#This Row],[Janvier]:[Décembre]]) -> 116000
B34: Dons & libéralités diverses | O34: =SUM(Autres_charges_budget[[#This Row],[Janvier]:[Décembre]]) -> 0
B35: Cotisations | J35: 10000 | K35: 10000 | O35: =SUM(Autres_charges_budget[[#This Row],[Janvier]:[Décembre]]) -> 20000
B36: Abonnements multimédia | J36: 8000 | K36: 8000 | L36: 8000 | M36: 8000 | N36: 8000 | O36: =SUM(Autres_charges_budget[[#This Row],[Janvier]:[Décembre]]) -> 40000
B37: Autres charges | J37: 12000 | O37: =SUM(Autres_charges_budget[[#This Row],[Janvier]:[Décembre]]) -> 12000
B38: Total | C38: =SUBTOTAL(109,C28:C37) -> 0 | D38: =SUBTOTAL(109,D28:D37) -> 0 | E38: 0 | F38: 0 | G38: =SUBTOTAL(109,G28:G37) -> 0 | H38: 0 | I38: =SUBTOTAL(109,I28:I37) -> 0 | J38: =SUBTOTAL(109,J28:J37) -> 171000 | K38: =SUBTOTAL(109,K28:K37) -> 111000 | L38: =SUBTOTAL(109,L28:L37) -> 91000 | M38: =SUBTOTAL(109,M28:M37) -> 91000 | N38: =SUBTOTAL(109,N28:N37) -> 311000 | O38: =SUBTOTAL(109,O28:O37) -> 775000
B42: Crédits | C42: Janvier | D42: Février | E42: Mars | F42: Avril | G42: Mai | H42: Juin | I42: Juillet | J42: Août | K42: Septembre | L42: Octobre | M42: Novembre | N42: Décembre | O42: Total
B43: emprunt bancaire | J43: 92000 | K43: 92000 | L43: 92000 | M43: 92000 | N43: 92000 | O43: =SUM(Crédits_budget[[#This Row],[Janvier]:[Décembre]]) -> 460000
B44: Remboursement hors banque | O44: =SUM(Crédits_budget[[#This Row],[Janvier]:[Décembre]]) -> 0
B45: Autres crédits | O45: =SUM(Crédits_budget[[#This Row],[Janvier]:[Décembre]]) -> 0
B46: Total | C46: =SUBTOTAL(109,C43:C45) -> 0 | D46: =SUBTOTAL(109,D43:D45) -> 0 | E46: 0 | F46: 0 | G46: 0 | H46: 0 | I46: 0 | J46: 92000 | K46: 92000 | L46: 92000 | M46: 92000 | N46: 92000 | O46: =SUBTOTAL(109,O43:O45) -> 460000
B50: Investissements | C50: Janvier | D50: Février | E50: Mars | F50: Avril | G50: Mai | H50: Juin | I50: Juillet | J50: Août | K50: Septembre | L50: Octobre | M50: Novembre | N50: Décembre | O50: Total
B51: Formations | O51: =SUM(Investissements_budget[[#This Row],[Janvier]:[Décembre]]) -> 0
B52: Projets | O52: =SUM(Investissements_budget[[#This Row],[Janvier]:[Décembre]]) -> 0
B53: Autres projets | J53: 50000 | O53: =SUM(Investissements_budget[[#This Row],[Janvier]:[Décembre]]) -> 50000
B54: Total | C54: =SUBTOTAL(109,C51:C53) -> 0 | D54: =SUBTOTAL(109,D51:D53) -> 0 | E54: 0 | F54: 0 | G54: 0 | H54: 0 | I54: 0 | J54: 50000 | K54: 0 | L54: 0 | M54: 0 | N54: 0 | O54: =SUBTOTAL(109,O51:O53) -> 50000
B58: Epargnes | C58: Janvier | D58: Février | E58: Mars | F58: Avril | G58: Mai | H58: Juin | I58: Juillet | J58: Août | K58: Septembre | L58: Octobre | M58: Novembre | N58: Décembre | O58: Total
B59: Compte bloqué | J59: 77000 | K59: 77000 | L59: 77000 | M59: 77000 | N59: 77000 | O59: =SUM(Epargnes_budget[[#This Row],[Janvier]:[Décembre]]) -> 385000
B60: Fond d'urgence | O60: =SUM(Epargnes_budget[[#This Row],[Janvier]:[Décembre]]) -> 0
B61: Autres epargnes | J61: 50000 | K61: 150000 | L61: 150000 | M61: 150000 | N61: 255000 | O61: =SUM(Epargnes_budget[[#This Row],[Janvier]:[Décembre]]) -> 755000
B62: Total | C62: =SUBTOTAL(109,C59:C61) -> 0 | D62: =SUBTOTAL(109,D59:D61) -> 0 | E62: 0 | F62: 0 | G62: 0 | H62: 0 | I62: 0 | J62: 127000 | K62: 227000 | L62: 227000 | M62: 227000 | N62: 332000 | O62: 1140000

Sheet Réel
C5: =C10-C26-C41-C49-C57-C65 -> 0 | D5: =D10-D26-D41-D49-D57-D65 -> 0 | E5: 0 | F5: 0 | G5: 0 | H5: 0 | I5: 0 | J5: 416813 | K5: 0 | L5: 0 | M5: 0 | N5: 0 | O5: 416813
B6: Revenus | C6: Janvier | D6: Février | E6: Mars | F6: Avril | G6: Mai | H6: Juin | I6: Juillet | J6: Août | K6: Septembre | L6: Octobre | M6: Novembre | N6: Décembre | O6: Total
B7: Salaire | C7: =SUMPRODUCT((Transactions[Catégorie]=Revenus_budget10[[#This Row],[Revenus]])*(MONTH(Transactions[Date])=MONTH(DATEVALUE("1"&C$6&"2000")))*(Transactions[Montant])) -> 0 | D7: =SUMPRODUCT((Transactions[Catégorie]=Revenus_budget10[[#This Row],[Revenus]])*(MONTH(Transactions[Date])=MONTH(DATEVALUE("1"&D$6&"2000")))*(Transactions[Montant])) -> 0 | E7: =SUMPRODUCT((Transactions[Catégorie]=Revenus_budget10[[#This Row],[Revenus]])*(MONTH(Transactions[Date])=MONTH(DATEVALUE("1"&E$6&"2000")))*(Transactions[Montant])) -> 0 | F7: =SUMPRODUCT((Transactions[Catégorie]=Revenus_budget10[[#This Row],[Revenus]])*(MONTH(Transactions[Date])=MONTH(DATEVALUE("1"&F$6&"2000")))*(Transactions[Montant])) -> 0 | G7: =SUMPRODUCT((Transactions[Catégorie]=Revenus_budget10[[#This Row],[Revenus]])*(MONTH(Transactions[Date])=MONTH(DATEVALUE("1"&G$6&"2000")))*(Transactions[Montant])) -> 0 | H7: =SUMPRODUCT((Transactions[Catégorie]=Revenus_budget10[[#This Row],[Revenus]])*(MONTH(Transactions[Date])=MONTH(DATEVALUE("1"&H$6&"2000")))*(Transactions[Montant])) -> 0 | I7: =SUMPRODUCT((Transactions[Catégorie]=Revenus_budget10[[#This Row],[Revenus]])*(MONTH(Transactions[Date])=MONTH(DATEVALUE("1"&I$6&"2000")))*(Transactions[Montant])) -> 0 | J7: =SUMPRODUCT((Transactions[Catégorie]=Revenus_budget10[[#This Row],[Revenus]])*(MONTH(Transactions[Date])=MONTH(DATEVALUE("1"&J$6&"2000")))*(Transactions[Montant])) -> 673885 | K7: =SUMPRODUCT((Transactions[Catégorie]=Revenus_budget10[[#This Row],[Revenus]])*(MONTH(Transactions[Date])=MONTH(DATEVALUE("1"&K$6&"2000")))*(Transactions[Montant])) -> 0 | L7: =SUMPRODUCT((Transactions[Catégorie]=Revenus_budget10[[#This Row],[Revenus]])*(MONTH(Transactions[Date])=MONTH(DATEVALUE("1"&L$6&"2000")))*(Transactions[Montant])) -> 0 | M7: =SUMPRODUCT((Transactions[Catégorie]=Revenus_budget10[[#This Row],[Revenus]])*(MONTH(Transactions[Date])=MONTH(DATEVALUE("1"&M$6&"2000")))*(Transactions[Montant])) -> 0 | N7: =SUMPRODUCT((Transactions[Catégorie]=Revenus_budget10[[#This Row],[Revenus]])*(MONTH(Transactions[Date])=MONTH(DATEVALUE("1"&N$6&"2000")))*(Transactions[Montant])) -> 0 | O7: =SUM(Revenus_budget10[[#This Row],[Janvier]:[Décembre]]) -> 673885
B8: Revenus complémentaires | C8: =SUMPRODUCT((Transactions[Catégorie]=Revenus_budget10[[#This Row],[Revenus]])*(MONTH(Transactions[Date])=MONTH(DATEVALUE("1"&C$6&"2000")))*(Transactions[Montant])) -> 0 | D8: =SUMPRODUCT((Transactions[Catégorie]=Revenus_budget10[[#This Row],[Revenus]])*(MONTH(Transactions[Date])=MONTH(DATEVALUE("1"&D$6&"2000")))*(Transactions[Montant])) -> 0 | E8: =SUMPRODUCT((Transactions[Catégorie]=Revenus_budget10[[#This Row],[Revenus]])*(MONTH(Transactions[Date])=MONTH(DATEVALUE("1"&E$6&"2000")))*(Transactions[Montant])) -> 0 | F8: =SUMPRODUCT((Transactions[Catégorie]=Revenus_budget10[[#This Row],[Revenus]])*(MONTH(Transactions[Date])=MONTH(DATEVALUE("1"&F$6&"2000")))*(Transactions[Montant])) -> 0 | G8: =SUMPRODUCT((Transactions[Catégorie]=Revenus_budget10[[#This Row],[Revenus]])*(MONTH(Transactions[Date])=MONTH(DATEVALUE("1"&G$6&"2000")))*(Transactions[Montant])) -> 0 | H8: =SUMPRODUCT((Transactions[Catégorie]=Revenus_budget10[[#This Row],[Revenus]])*(MONTH(Transactions[Date])=MONTH(DATEVALUE("1"&H$6&"2000")))*(Transactions[Montant])) -> 0 | I8: =SUMPRODUCT((Transactions[Catégorie]=Revenus_budget10[[#This Row],[Revenus]])*(MONTH(Transactions[Date])=MONTH(DATEVALUE("1"&I$6&"2000")))*(Transactions[Montant])) -> 0 | J8: =SUMPRODUCT((Transactions[Catégorie]=Revenus_budget10[[#This Row],[Revenus]])*(MONTH(Transactions[Date])=MONTH(DATEVALUE("1"&J$6&"2000")))*(Transactions[Montant])) -> 0 | K8: =SUMPRODUCT((Transactions[Catégorie]=Revenus_budget10[[#This Row],[Revenus]])*(MONTH(Transactions[Date])=MONTH(DATEVALUE("1"&K$6&"2000")))*(Transactions[Montant])) -> 0 | L8: =SUMPRODUCT((Transactions[Catégorie]=Revenus_budget10[[#This Row],[Revenus]])*(MONTH(Transactions[Date])=MONTH(DATEVALUE("1"&L$6&"2000")))*(Transactions[Montant])) -> 0 | M8: =SUMPRODUCT((Transactions[Catégorie]=Revenus_budget10[[#This Row],[Revenus]])*(MONTH(Transactions[Date])=MONTH(DATEVALUE("1"&M$6&"2000")))*(Transactions[Montant])) -> 0 | N8: =SUMPRODUCT((Transactions[Catégorie]=Revenus_budget10[[#This Row],[Revenus]])*(MONTH(Transactions[Date])=MONTH(DATEVALUE("1"&N$6&"2000")))*(Transactions[Montant])) -> 0 | O8: =SUM(Revenus_budget10[[#This Row],[Janvier]:[Décembre]]) -> 0
B9: Autres revenus | C9: =SUMPRODUCT((Transactions[Catégorie]=Revenus_budget10[[#This Row],[Revenus]])*(MONTH(Transactions[Date])=MONTH(DATEVALUE("1"&C$6&"2000")))*(Transactions[Montant])) -> 0 | D9: =SUMPRODUCT((Transactions[Catégorie]=Revenus_budget10[[#This Row],[Revenus]])*(MONTH(Transactions[Date])=MONTH(DATEVALUE("1"&D$6&"2000")))*(Transactions[Montant])) -> 0 | E9: =SUMPRODUCT((Transactions[Catégorie]=Revenus_budget10[[#This Row],[Revenus]])*(MONTH(Transactions[Date])=MONTH(DATEVALUE("1"&E$6&"2000")))*(Transactions[Montant])) -> 0 | F9: =SUMPRODUCT((Transactions[Catégorie]=Revenus_budget10[[#This Row],[Revenus]])*(MONTH(Transactions[Date])=MONTH(DATEVALUE("1"&F$6&"2000")))*(Transactions[Montant])) -> 0 | G9: =SUMPRODUCT((Transactions[Catégorie]=Revenus_budget10[[#This Row],[Revenus]])*(MONTH(Transactions[Date])=MONTH(DATEVALUE("1"&G$6&"2000")))*(Transactions[Montant])) -> 0 | H9: =SUMPRODUCT((Transactions[Catégorie]=Revenus_budget10[[#This Row],[Revenus]])*(MONTH(Transactions[Date])=MONTH(DATEVALUE("1"&H$6&"2000")))*(Transactions[Montant])) -> 0 | I9: =SUMPRODUCT((Transactions[Catégorie]=Revenus_budget10[[#This Row],[Revenus]])*(MONTH(Transactions[Date])=MONTH(DATEVALUE("1"&I$6&"2000")))*(Transactions[Montant])) -> 0 | J9: =SUMPRODUCT((Transactions[Catégorie]=Revenus_budget10[[#This Row],[Revenus]])*(MONTH(Transactions[Date])=MONTH(DATEVALUE("1"&J$6&"2000")))*(Transactions[Montant])) -> 3000 | K9: =SUMPRODUCT((Transactions[Catégorie]=Revenus_budget10[[#This Row],[Revenus]])*(MONTH(Transactions[Date])=MONTH(DATEVALUE("1"&K$6&"2000")))*(Transactions[Montant])) -> 0 | L9: =SUMPRODUCT((Transactions[Catégorie]=Revenus_budget10[[#This Row],[Revenus]])*(MONTH(Transactions[Date])=MONTH(DATEVALUE("1"&L$6&"2000")))*(Transactions[Montant])) -> 0 | M9: =SUMPRODUCT((Transactions[Catégorie]=Revenus_budget10[[#This Row],[Revenus]])*(MONTH(Transactions[Date])=MONTH(DATEVALUE("1"&M$6&"2000")))*(Transactions[Montant])) -> 0 | N9: =SUMPRODUCT((Transactions[Catégorie]=Revenus_budget10[[#This Row],[Revenus]])*(MONTH(Transactions[Date])=MONTH(DATEVALUE("1"&N$6&"2000")))*(Transactions[Montant])) -> 0 | O9: =SUM(Revenus_budget10[[#This Row],[Janvier]:[Décembre]]) -> 3000
B10: Total | C10: =SUBTOTAL(109,C7:C9) -> 0 | D10: =SUBTOTAL(109,D7:D9) -> 0 | E10: 0 | F10: 0 | G10: 0 | H10: 0 | I10: 0 | J10: 676885 | K10: 0 | L10: 0 | M10: 0 | N10: 0 | O10: =SUM(Revenus_budget10[[#This Row],[Janvier]:[Décembre]]) -> 676885
B15: Charges | C15: Janvier | D15: Février | E15: Mars | F15: Avril | G15: Mai | H15: Juin | I15: Juillet | J15: Août | K15: Septembre | L15: Octobre | M15: Novembre | N15: Décembre | O15: Total
B16: Loyer | C16: =SUMPRODUCT((Transactions[Catégorie]=Dépenses_budget11[[#This Row],[Charges]])*(MONTH(Transactions[Date])=MONTH(DATEVALUE("1"&C$6&"2000")))*(Transactions[Montant])) -> 0 | D16: =SUMPRODUCT((Transactions[Catégorie]=Dépenses_budget11[[#This Row],[Charges]])*(MONTH(Transactions[Date])=MONTH(DATEVALUE("1"&D$6&"2000")))*(Transactions[Montant])) -> 0 | E16: =SUMPRODUCT((Transactions[Catégorie]=Dépenses_budget11[[#This Row],[Charges]])*(MONTH(Transactions[Date])=MONTH(DATEVALUE("1"&E$6&"2000")))*(Transactions[Montant])) -> 0 | F16: =SUMPRODUCT((Transactions[Catégorie]=Dépenses_budget11[[#This Row],[Charges]])*(MONTH(Transactions[Date])=MONTH(DATEVALUE("1"&F$6&"2000")))*(Transactions[Montant])) -> 0 | G16: =SUMPRODUCT((Transactions[Catégorie]=Dépenses_budget11[[#This Row],[Charges]])*(MONTH(Transactions[Date])=MONTH(DATEVALUE("1"&G$6&"2000")))*(Transactions[Montant])) -> 0 | H16: =SUMPRODUCT((Transactions[Catégorie]=Dépenses_budget11[[#This Row],[Charges]])*(MONTH(Transactions[Date])=MONTH(DATEVALUE("1"&H$6&"2000")))*(Transactions[Montant])) -> 0 | I16: =SUMPRODUCT((Transactions[Catégorie]=Dépenses_budget11[[#This Row],[Charges]])*(MONTH(Transactions[Date])=MONTH(DATEVALUE("1"&I$6&"2000")))*(Transactions[Montant])) -> 0 | J16: =SUMPRODUCT((Transactions[Catégorie]=Dépenses_budget11[[#This Row],[Charges]])*(MONTH(Transactions[Date])=MONTH(DATEVALUE("1"&J$6&"2000")))*(Transactions[Montant])) -> 0 | K16: =SUMPRODUCT((Transactions[Catégorie]=Dépenses_budget11[[#This Row],[Charges]])*(MONTH(Transactions[Date])=MONTH(DATEVALUE("1"&K$6&"2000")))*(Transactions[Montant])) -> 0 | L16: =SUMPRODUCT((Transactions[Catégorie]=Dépenses_budget11[[#This Row],[Charges]])*(MONTH(Transactions[Date])=MONTH(DATEVALUE("1"&L$6&"2000")))*(Transactions[Montant])) -> 0 | M16: =SUMPRODUCT((Transactions[Catégorie]=Dépenses_budget11[[#This Row],[Charges]])*(MONTH(Transactions[Date])=MONTH(DATEVALUE("1"&M$6&"2000")))*(Transactions[Montant])) -> 0 | N16: =SUMPRODUCT((Transactions[Catégorie]=Dépenses_budget11[[#This Row],[Charges]])*(MONTH(Transactions[Date])=MONTH(DATEVALUE("1"&N$6&"2000")))*(Transactions[Montant])) -> 0 | O16: =SUM(Dépenses_budget11[[#This Row],[Janvier]:[Décembre]]) -> 0
B17: CIE | C17: =SUMPRODUCT((Transactions[Catégorie]=Dépenses_budget11[[#This Row],[Charges]])*(MONTH(Transactions[Date])=MONTH(DATEVALUE("1"&C$6&"2000")))*(Transactions[Montant])) -> 0 | D17: =SUMPRODUCT((Transactions[Catégorie]=Dépenses_budget11[[#This Row],[Charges]])*(MONTH(Transactions[Date])=MONTH(DATEVALUE("1"&D$6&"2000")))*(Transactions[Montant])) -> 0 | E17: =SUMPRODUCT((Transactions[Catégorie]=Dépenses_budget11[[#This Row],[Charges]])*(MONTH(Transactions[Date])=MONTH(DATEVALUE("1"&E$6&"2000")))*(Transactions[Montant])) -> 0 | F17: =SUMPRODUCT((Transactions[Catégorie]=Dépenses_budget11[[#This Row],[Charges]])*(MONTH(Transactions[Date])=MONTH(DATEVALUE("1"&F$6&"2000")))*(Transactions[Montant])) -> 0 | G17: =SUMPRODUCT((Transactions[Catégorie]=Dépenses_budget11[[#This Row],[Charges]])*(MONTH(Transactions[Date])=MONTH(DATEVALUE("1"&G$6&"2000")))*(Transactions[Montant])) -> 0 | H17: =SUMPRODUCT((Transactions[Catégorie]=Dépenses_budget11[[#This Row],[Charges]])*(MONTH(Transactions[Date])=MONTH(DATEVALUE("1"&H$6&"2000")))*(Transactions[Montant])) -> 0 | I17: =SUMPRODUCT((Transactions[Catégorie]=Dépenses_budget11[[#This Row],[Charges]])*(MONTH(Transactions[Date])=MONTH(DATEVALUE("1"&I$6&"2000")))*(Transactions[Montant])) -> 0 | J17: =SUMPRODUCT((Transactions[Catégorie]=Dépenses_budget11[[#This Row],[Charges]])*(MONTH(Transactions[Date])=MONTH(DATEVALUE("1"&J$6&"2000")))*(Transactions[Montant])) -> 5000 | K17: =SUMPRODUCT((Transactions[Catégorie]=Dépenses_budget11[[#This Row],[Charges]])*(MONTH(Transactions[Date])=MONTH(DATEVALUE("1"&K$6&"2000")))*(Transactions[Montant])) -> 0 | L17: =SUMPRODUCT((Transactions[Catégorie]=Dépenses_budget11[[#This Row],[Charges]])*(MONTH(Transactions[Date])=MONTH(DATEVALUE("1"&L$6&"2000")))*(Transactions[Montant])) -> 0 | M17: =SUMPRODUCT((Transactions[Catégorie]=Dépenses_budget11[[#This Row],[Charges]])*(MONTH(Transactions[Date])=MONTH(DATEVALUE("1"&M$6&"2000")))*(Transactions[Montant])) -> 0 | N17: =SUMPRODUCT((Transactions[Catégorie]=Dépenses_budget11[[#This Row],[Charges]])*(MONTH(Transactions[Date])=MONTH(DATEVALUE("1"&N$6&"2000")))*(Transactions[Montant])) -> 0 | O17: =SUM(Dépenses_budget11[[#This Row],[Janvier]:[Décembre]]) -> 5000
B18: SODECI | C18: =SUMPRODUCT((Transactions[Catégorie]=Dépenses_budget11[[#This Row],[Charges]])*(MONTH(Transactions[Date])=MONTH(DATEVALUE("1"&C$6&"2000")))*(Transactions[Montant])) -> 0 | D18: =SUMPRODUCT((Transactions[Catégorie]=Dépenses_budget11[[#This Row],[Charges]])*(MONTH(Transactions[Date])=MONTH(DATEVALUE("1"&D$6&"2000")))*(Transactions[Montant])) -> 0 | E18: =SUMPRODUCT((Transactions[Catégorie]=Dépenses_budget11[[#This Row],[Charges]])*(MONTH(Transactions[Date])=MONTH(DATEVALUE("1"&E$6&"2000")))*(Transactions[Montant])) -> 0 | F18: =SUMPRODUCT((Transactions[Catégorie]=Dépenses_budget11[[#This Row],[Charges]])*(MONTH(Transactions[Date])=MONTH(DATEVALUE("1"&F$6&"2000")))*(Transactions[Montant])) -> 0 | G18: =SUMPRODUCT((Transactions[Catégorie]=Dépenses_budget11[[#This Row],[Charges]])*(MONTH(Transactions[Date])=MONTH(DATEVALUE("1"&G$6&"2000")))*(Transactions[Montant])) -> 0 | H18: =SUMPRODUCT((Transactions[Catégorie]=Dépenses_budget11[[#This Row],[Charges]])*(MONTH(Transactions[Date])=MONTH(DATEVALUE("1"&H$6&"2000")))*(Transactions[Montant])) -> 0 | I18: =SUMPRODUCT((Transactions[Catégorie]=Dépenses_budget11[[#This Row],[Charges]])*(MONTH(Transactions[Date])=MONTH(DATEVALUE("1"&I$6&"2000")))*(Transactions[Montant])) -> 0 | J18: =SUMPRODUCT((Transactions[Catégorie]=Dépenses_budget11[[#This Row],[Charges]])*(MONTH(Transactions[Date])=MONTH(DATEVALUE("1"&J$6&"2000")))*(Transactions[Montant])) -> 0 | K18: =SUMPRODUCT((Transactions[Catégorie]=Dépenses_budget11[[#This Row],[Charges]])*(MONTH(Transactions[Date])=MONTH(DATEVALUE("1"&K$6&"2000")))*(Transactions[Montant])) -> 0 | L18: =SUMPRODUCT((Transactions[Catégorie]=Dépenses_budget11[[#This Row],[Charges]])*(MONTH(Transactions[Date])=MONTH(DATEVALUE("1"&L$6&"2000")))*(Transactions[Montant])) -> 0 | M18: =SUMPRODUCT((Transactions[Catégorie]=Dépenses_budget11[[#This Row],[Charges]])*(MONTH(Transactions[Date])=MONTH(DATEVALUE("1"&M$6&"2000")))*(Transactions[Montant])) -> 0 | N18: =SUMPRODUCT((Transactions[Catégorie]=Dépenses_budget11[[#This Row],[Charges]])*(MONTH(Transactions[Date])=MONTH(DATEVALUE("1"&N$6&"2000")))*(Transactions[Montant])) -> 0 | O18: =SUM(Dépenses_budget11[[#This Row],[Janvier]:[Décembre]]) -> 0
B19: Gaz | C19: =SUMPRODUCT((Transactions[Catégorie]=Dépenses_budget11[[#This Row],[Charges]])*(MONTH(Transactions[Date])=MONTH(DATEVALUE("1"&C$6&"2000")))*(Transactions[Montant])) -> 0 | D19: =SUMPRODUCT((Transactions[Catégorie]=Dépenses_budget11[[#This Row],[Charges]])*(MONTH(Transactions[Date])=MONTH(DATEVALUE("1"&D$6&"2000")))*(Transactions[Montant])) -> 0 | E19: =SUMPRODUCT((Transactions[Catégorie]=Dépenses_budget11[[#This Row],[Charges]])*(MONTH(Transactions[Date])=MONTH(DATEVALUE("1"&E$6&"2000")))*(Transactions[Montant])) -> 0 | F19: =SUMPRODUCT((Transactions[Catégorie]=Dépenses_budget11[[#This Row],[Charges]])*(MONTH(Transactions[Date])=MONTH(DATEVALUE("1"&F$6&"2000")))*(Transactions[Montant])) -> 0 | G19: =SUMPRODUCT((Transactions[Catégorie]=Dépenses_budget11[[#This Row],[Charges]])*(MONTH(Transactions[Date])=MONTH(DATEVALUE("1"&G$6&"2000")))*(Transactions[Montant])) -> 0 | H19: =SUMPRODUCT((Transactions[Catégorie]=Dépenses_budget11[[#This Row],[Charges]])*(MONTH(Transactions[Date])=MONTH(DATEVALUE("1"&H$6&"2000")))*(Transactions[Montant])) -> 0 | I19: =SUMPRODUCT((Transactions[Catégorie]=Dépenses_budget11[[#This Row],[Charges]])*(MONTH(Transactions[Date])=MONTH(DATEVALUE("1"&I$6&"2000")))*(Transactions[Montant])) -> 0 | J19: =SUMPRODUCT((Transactions[Catégorie]=Dépenses_budget11[[#This Row],[Charges]])*(MONTH(Transactions[Date])=MONTH(DATEVALUE("1"&J$6&"2000")))*(Transactions[Montant])) -> 0 | K19: =SUMPRODUCT((Transactions[Catégorie]=Dépenses_budget11[[#This Row],[Charges]])*(MONTH(Transactions[Date])=MONTH(DATEVALUE("1"&K$6&"2000")))*(Transactions[Montant])) -> 0 | L19: =SUMPRODUCT((Transactions[Catégorie]=Dépenses_budget11[[#This Row],[Charges]])*(MONTH(Transactions[Date])=MONTH(DATEVALUE("1"&L$6&"2000")))*(Transactions[Montant])) -> 0 | M19: =SUMPRODUCT((Transactions[Catégorie]=Dépenses_budget11[[#This Row],[Charges]])*(MONTH(Transactions[Date])=MONTH(DATEVALUE("1"&M$6&"2000")))*(Transactions[Montant])) -> 0 | N19: =SUMPRODUCT((Transactions[Catégorie]=Dépenses_budget11[[#This Row],[Charges]])*(MONTH(Transactions[Date])=MONTH(DATEVALUE("1"&N$6&"2000")))*(Transactions[Montant])) -> 0 | O19: =SUM(Dépenses_budget11[[#This Row],[Janvier]:[Décembre]]) -> 0
B20: Nourriture | C20: =SUMPRODUCT((Transactions[Catégorie]=Dépenses_budget11[[#This Row],[Charges]])*(MONTH(Transactions[Date])=MONTH(DATEVALUE("1"&C$6&"2000")))*(Transactions[Montant])) -> 0 | D20: =SUMPRODUCT((Transactions[Catégorie]=Dépenses_budget11[[#This Row],[Charges]])*(MONTH(Transactions[Date])=MONTH(DATEVALUE("1"&D$6&"2000")))*(Transactions[Montant])) -> 0 | E20: =SUMPRODUCT((Transactions[Catégorie]=Dépenses_budget11[[#This Row],[Charges]])*(MONTH(Transactions[Date])=MONTH(DATEVALUE("1"&E$6&"2000")))*(Transactions[Montant])) -> 0 | F20: =SUMPRODUCT((Transactions[Catégorie]=Dépenses_budget11[[#This Row],[Charges]])*(MONTH(Transactions[Date])=MONTH(DATEVALUE("1"&F$6&"2000")))*(Transactions[Montant])) -> 0 | G20: =SUMPRODUCT((Transactions[Catégorie]=Dépenses_budget11[[#This Row],[Charges]])*(MONTH(Transactions[Date])=MONTH(DATEVALUE("1"&G$6&"2000")))*(Transactions[Montant])) -> 0 | H20: =SUMPRODUCT((Transactions[Catégorie]=Dépenses_budget11[[#This Row],[Charges]])*(MONTH(Transactions[Date])=MONTH(DATEVALUE("1"&H$6&"2000")))*(Transactions[Montant])) -> 0 | I20: =SUMPRODUCT((Transactions[Catégorie]=Dépenses_budget11[[#This Row],[Charges]])*(MONTH(Transactions[Date])=MONTH(DATEVALUE("1"&I$6&"2000")))*(Transactions[Montant])) -> 0 | J20: =SUMPRODUCT((Transactions[Catégorie]=Dépenses_budget11[[#This Row],[Charges]])*(MONTH(Transactions[Date])=MONTH(DATEVALUE("1"&J$6&"2000")))*(Transactions[Montant])) -> 21000 | K20: =SUMPRODUCT((Transactions[Catégorie]=Dépenses_budget11[[#This Row],[Charges]])*(MONTH(Transactions[Date])=MONTH(DATEVALUE("1"&K$6&"2000")))*(Transactions[Montant])) -> 0 | L20: =SUMPRODUCT((Transactions[Catégorie]=Dépenses_budget11[[#This Row],[Charges]])*(MONTH(Transactions[Date])=MONTH(DATEVALUE("1"&L$6&"2000")))*(Transactions[Montant])) -> 0 | M20: =SUMPRODUCT((Transactions[Catégorie]=Dépenses_budget11[[#This Row],[Charges]])*(MONTH(Transactions[Date])=MONTH(DATEVALUE("1"&M$6&"2000")))*(Transactions[Montant])) -> 0 | N20: =SUMPRODUCT((Transactions[Catégorie]=Dépenses_budget11[[#This Row],[Charges]])*(MONTH(Transactions[Date])=MONTH(DATEVALUE("1"&N$6&"2000")))*(Transactions[Montant])) -> 0 | O20: =SUM(Dépenses_budget11[[#This Row],[Janvier]:[Décembre]]) -> 21000
B21: Transport | C21: =SUMPRODUCT((Transactions[Catégorie]=Dépenses_budget11[[#This Row],[Charges]])*(MONTH(Transactions[Date])=MONTH(DATEVALUE("1"&C$6&"2000")))*(Transactions[Montant])) -> 0 | D21: =SUMPRODUCT((Transactions[Catégorie]=Dépenses_budget11[[#This Row],[Charges]])*(MONTH(Transactions[Date])=MONTH(DATEVALUE("1"&D$6&"2000")))*(Transactions[Montant])) -> 0 | E21: =SUMPRODUCT((Transactions[Catégorie]=Dépenses_budget11[[#This Row],[Charges]])*(MONTH(Transactions[Date])=MONTH(DATEVALUE("1"&E$6&"2000")))*(Transactions[Montant])) -> 0 | F21: =SUMPRODUCT((Transactions[Catégorie]=Dépenses_budget11[[#This Row],[Charges]])*(MONTH(Transactions[Date])=MONTH(DATEVALUE("1"&F$6&"2000")))*(Transactions[Montant])) -> 0 | G21: =SUMPRODUCT((Transactions[Catégorie]=Dépenses_budget11[[#This Row],[Charges]])*(MONTH(Transactions[Date])=MONTH(DATEVALUE("1"&G$6&"2000")))*(Transactions[Montant])) -> 0 | H21: =SUMPRODUCT((Transactions[Catégorie]=Dépenses_budget11[[#This Row],[Charges]])*(MONTH(Transactions[Date])=MONTH(DATEVALUE("1"&H$6&"2000")))*(Transactions[Montant])) -> 0 | I21: =SUMPRODUCT((Transactions[Catégorie]=Dépenses_budget11[[#This Row],[Charges]])*(MONTH(Transactions[Date])=MONTH(DATEVALUE("1"&I$6&"2000")))*(Transactions[Montant])) -> 0 | J21: =SUMPRODUCT((Transactions[Catégorie]=Dépenses_budget11[[#This Row],[Charges]])*(MONTH(Transactions[Date])=MONTH(DATEVALUE("1"&J$6&"2000")))*(Transactions[Montant])) -> 23500 | K21: =SUMPRODUCT((Transactions[Catégorie]=Dépenses_budget11[[#This Row],[Charges]])*(MONTH(Transactions[Date])=MONTH(DATEVALUE("1"&K$6&"2000")))*(Transactions[Montant])) -> 0 | L21: =SUMPRODUCT((Transactions[Catégorie]=Dépenses_budget11[[#This Row],[Charges]])*(MONTH(Transactions[Date])=MONTH(DATEVALUE("1"&L$6&"2000")))*(Transactions[Montant])) -> 0 | M21: =SUMPRODUCT((Transactions[Catégorie]=Dépenses_budget11[[#This Row],[Charges]])*(MONTH(Transactions[Date])=MONTH(DATEVALUE("1"&M$6&"2000")))*(Transactions[Montant])) -> 0 | N21: =SUMPRODUCT((Transactions[Catégorie]=Dépenses_budget11[[#This Row],[Charges]])*(MONTH(Transactions[Date])=MONTH(DATEVALUE("1"&N$6&"2000")))*(Transactions[Montant])) -> 0 | O21: =SUM(Dépenses_budget11[[#This Row],[Janvier]:[Décembre]]) -> 23500
B22: Agios bancaire | C22: =SUMPRODUCT((Transactions[Catégorie]=Dépenses_budget11[[#This Row],[Charges]])*(MONTH(Transactions[Date])=MONTH(DATEVALUE("1"&C$6&"2000")))*(Transactions[Montant])) -> 0 | D22: =SUMPRODUCT((Transactions[Catégorie]=Dépenses_budget11[[#This Row],[Charges]])*(MONTH(Transactions[Date])=MONTH(DATEVALUE("1"&D$6&"2000")))*(Transactions[Montant])) -> 0 | E22: =SUMPRODUCT((Transactions[Catégorie]=Dépenses_budget11[[#This Row],[Charges]])*(MONTH(Transactions[Date])=MONTH(DATEVALUE("1"&E$6&"2000")))*(Transactions[Montant])) -> 0 | F22: =SUMPRODUCT((Transactions[Catégorie]=Dépenses_budget11[[#This Row],[Charges]])*(MONTH(Transactions[Date])=MONTH(DATEVALUE("1"&F$6&"2000")))*(Transactions[Montant])) -> 0 | G22: =SUMPRODUCT((Transactions[Catégorie]=Dépenses_budget11[[#This Row],[Charges]])*(MONTH(Transactions[Date])=MONTH(DATEVALUE("1"&G$6&"2000")))*(Transactions[Montant])) -> 0 | H22: =SUMPRODUCT((Transactions[Catégorie]=Dépenses_budget11[[#This Row],[Charges]])*(MONTH(Transactions[Date])=MONTH(DATEVALUE("1"&H$6&"2000")))*(Transactions[Montant])) -> 0 | I22: =SUMPRODUCT((Transactions[Catégorie]=Dépenses_budget11[[#This Row],[Charges]])*(MONTH(Transactions[Date])=MONTH(DATEVALUE("1"&I$6&"2000")))*(Transactions[Montant])) -> 0 | J22: =SUMPRODUCT((Transactions[Catégorie]=Dépenses_budget11[[#This Row],[Charges]])*(MONTH(Transactions[Date])=MONTH(DATEVALUE("1"&J$6&"2000")))*(Transactions[Montant])) -> 12000 | K22: =SUMPRODUCT((Transactions[Catégorie]=Dépenses_budget11[[#This Row],[Charges]])*(MONTH(Transactions[Date])=MONTH(DATEVALUE("1"&K$6&"2000")))*(Transactions[Montant])) -> 0 | L22: =SUMPRODUCT((Transactions[Catégorie]=Dépenses_budget11[[#This Row],[Charges]])*(MONTH(Transactions[Date])=MONTH(DATEVALUE("1"&L$6&"2000")))*(Transactions[Montant])) -> 0 | M22: =SUMPRODUCT((Transactions[Catégorie]=Dépenses_budget11[[#This Row],[Charges]])*(MONTH(Transactions[Date])=MONTH(DATEVALUE("1"&M$6&"2000")))*(Transactions[Montant])) -> 0 | N22: =SUMPRODUCT((Transactions[Catégorie]=Dépenses_budget11[[#This Row],[Charges]])*(MONTH(Transactions[Date])=MONTH(DATEVALUE("1"&N$6&"2000")))*(Transactions[Montant])) -> 0 | O22: =SUM(Dépenses_budget11[[#This Row],[Janvier]:[Décembre]]) -> 12000
B23: Frais de télécommunication & internet | C23: =SUMPRODUCT((Transactions[Catégorie]=Dépenses_budget11[[#This Row],[Charges]])*(MONTH(Transactions[Date])=MONTH(DATEVALUE("1"&C$6&"2000")))*(Transactions[Montant])) -> 0 | D23: =SUMPRODUCT((Transactions[Catégorie]=Dépenses_budget11[[#This Row],[Charges]])*(MONTH(Transactions[Date])=MONTH(DATEVALUE("1"&D$6&"2000")))*(Transactions[Montant])) -> 0 | E23: =SUMPRODUCT((Transactions[Catégorie]=Dépenses_budget11[[#This Row],[Charges]])*(MONTH(Transactions[Date])=MONTH(DATEVALUE("1"&E$6&"2000")))*(Transactions[Montant])) -> 0 | F23: =SUMPRODUCT((Transactions[Catégorie]=Dépenses_budget11[[#This Row],[Charges]])*(MONTH(Transactions[Date])=MONTH(DATEVALUE("1"&F$6&"2000")))*(Transactions[Montant])) -> 0 | G23: =SUMPRODUCT((Transactions[Catégorie]=Dépenses_budget11[[#This Row],[Charges]])*(MONTH(Transactions[Date])=MONTH(DATEVALUE("1"&G$6&"2000")))*(Transactions[Montant])) -> 0 | H23: =SUMPRODUCT((Transactions[Catégorie]=Dépenses_budget11[[#This Row],[Charges]])*(MONTH(Transactions[Date])=MONTH(DATEVALUE("1"&H$6&"2000")))*(Transactions[Montant])) -> 0 | I23: =SUMPRODUCT((Transactions[Catégorie]=Dépenses_budget11[[#This Row],[Charges]])*(MONTH(Transactions[Date])=MONTH(DATEVALUE("1"&I$6&"2000")))*(Transactions[Montant])) -> 0 | J23: =SUMPRODUCT((Transactions[Catégorie]=Dépenses_budget11[[#This Row],[Charges]])*(MONTH(Transactions[Date])=MONTH(DATEVALUE("1"&J$6&"2000")))*(Transactions[Montant])) -> 0 | K23: =SUMPRODUCT((Transactions[Catégorie]=Dépenses_budget11[[#This Row],[Charges]])*(MONTH(Transactions[Date])=MONTH(DATEVALUE("1"&K$6&"2000")))*(Transactions[Montant])) -> 0 | L23: =SUMPRODUCT((Transactions[Catégorie]=Dépenses_budget11[[#This Row],[Charges]])*(MONTH(Transactions[Date])=MONTH(DATEVALUE("1"&L$6&"2000")))*(Transactions[Montant])) -> 0 | M23: =SUMPRODUCT((Transactions[Catégorie]=Dépenses_budget11[[#This Row],[Charges]])*(MONTH(Transactions[Date])=MONTH(DATEVALUE("1"&M$6&"2000")))*(Transactions[Montant])) -> 0 | N23: =SUMPRODUCT((Transactions[Catégorie]=Dépenses_budget11[[#This Row],[Charges]])*(MONTH(Transactions[Date])=MONTH(DATEVALUE("1"&N$6&"2000")))*(Transactions[Montant])) -> 0 | O23: =SUM(Dépenses_budget11[[#This Row],[Janvier]:[Décembre]]) -> 0
B24: Dîme & Aumônes | C24: =SUMPRODUCT((Transactions[Catégorie]=Dépenses_budget11[[#This Row],[Charges]])*(MONTH(Transactions[Date])=MONTH(DATEVALUE("1"&C$6&"2000")))*(Transactions[Montant])) -> 0 | D24: =SUMPRODUCT((Transactions[Catégorie]=Dépenses_budget11[[#This Row],[Charges]])*(MONTH(Transactions[Date])=MONTH(DATEVALUE("1"&D$6&"2000")))*(Transactions[Montant])) -> 0 | E24: =SUMPRODUCT((Transactions[Catégorie]=Dépenses_budget11[[#This Row],[Charges]])*(MONTH(Transactions[Date])=MONTH(DATEVALUE("1"&E$6&"2000")))*(Transactions[Montant])) -> 0 | F24: =SUMPRODUCT((Transactions[Catégorie]=Dépenses_budget11[[#This Row],[Charges]])*(MONTH(Transactions[Date])=MONTH(DATEVALUE("1"&F$6&"2000")))*(Transactions[Montant])) -> 0 | G24: =SUMPRODUCT((Transactions[Catégorie]=Dépenses_budget11[[#This Row],[Charges]])*(MONTH(Transactions[Date])=MONTH(DATEVALUE("1"&G$6&"2000")))*(Transactions[Montant])) -> 0 | H24: =SUMPRODUCT((Transactions[Catégorie]=Dépenses_budget11[[#This Row],[Charges]])*(MONTH(Transactions[Date])=MONTH(DATEVALUE("1"&H$6&"2000")))*(Transactions[Montant])) -> 0 | I24: =SUMPRODUCT((Transactions[Catégorie]=Dépenses_budget11[[#This Row],[Charges]])*(MONTH(Transactions[Date])=MONTH(DATEVALUE("1"&I$6&"2000")))*(Transactions[Montant])) -> 0 | J24: =SUMPRODUCT((Transactions[Catégorie]=Dépenses_budget11[[#This Row],[Charges]])*(MONTH(Transactions[Date])=MONTH(DATEVALUE("1"&J$6&"2000")))*(Transactions[Montant])) -> 5500 | K24: =SUMPRODUCT((Transactions[Catégorie]=Dépenses_budget11[[#This Row],[Charges]])*(MONTH(Transactions[Date])=MONTH(DATEVALUE("1"&K$6&"2000")))*(Transactions[Montant])) -> 0 | L24: =SUMPRODUCT((Transactions[Catégorie]=Dépenses_budget11[[#This Row],[Charges]])*(MONTH(Transactions[Date])=MONTH(DATEVALUE("1"&L$6&"2000")))*(Transactions[Montant])) -> 0 | M24: =SUMPRODUCT((Transactions[Catégorie]=Dépenses_budget11[[#This Row],[Charges]])*(MONTH(Transactions[Date])=MONTH(DATEVALUE("1"&M$6&"2000")))*(Transactions[Montant])) -> 0 | N24: =SUMPRODUCT((Transactions[Catégorie]=Dépenses_budget11[[#This Row],[Charges]])*(MONTH(Transactions[Date])=MONTH(DATEVALUE("1"&N$6&"2000")))*(Transactions[Montant])) -> 0 | O24: =SUM(Dépenses_budget11[[#This Row],[Janvier]:[Décembre]]) -> 5500
B25: Imprévus | C25: =SUMPRODUCT((Transactions[Catégorie]=Dépenses_budget11[[#This Row],[Charges]])*(MONTH(Transactions[Date])=MONTH(DATEVALUE("1"&C$6&"2000")))*(Transactions[Montant])) -> 0 | D25: =SUMPRODUCT((Transactions[Catégorie]=Dépenses_budget11[[#This Row],[Charges]])*(MONTH(Transactions[Date])=MONTH(DATEVALUE("1"&D$6&"2000")))*(Transactions[Montant])) -> 0 | E25: =SUMPRODUCT((Transactions[Catégorie]=Dépenses_budget11[[#This Row],[Charges]])*(MONTH(Transactions[Date])=MONTH(DATEVALUE("1"&E$6&"2000")))*(Transactions[Montant])) -> 0 | F25: =SUMPRODUCT((Transactions[Catégorie]=Dépenses_budget11[[#This Row],[Charges]])*(MONTH(Transactions[Date])=MONTH(DATEVALUE("1"&F$6&"2000")))*(Transactions[Montant])) -> 0 | G25: =SUMPRODUCT((Transactions[Catégorie]=Dépenses_budget11[[#This Row],[Charges]])*(MONTH(Transactions[Date])=MONTH(DATEVALUE("1"&G$6&"2000")))*(Transactions[Montant])) -> 0 | H25: =SUMPRODUCT((Transactions[Catégorie]=Dépenses_budget11[[#This Row],[Charges]])*(MONTH(Transactions[Date])=MONTH(DATEVALUE("1"&H$6&"2000")))*(Transactions[Montant])) -> 0 | I25: =SUMPRODUCT((Transactions[Catégorie]=Dépenses_budget11[[#This Row],[Charges]])*(MONTH(Transactions[Date])=MONTH(DATEVALUE("1"&I$6&"2000")))*(Transactions[Montant])) -> 0 | J25: =SUMPRODUCT((Transactions[Catégorie]=Dépenses_budget11[[#This Row],[Charges]])*(MONTH(Transactions[Date])=MONTH(DATEVALUE("1"&J$6&"2000")))*(Transactions[Montant])) -> 0 | K25: =SUMPRODUCT((Transactions[Catégorie]=Dépenses_budget11[[#This Row],[Charges]])*(MONTH(Transactions[Date])=MONTH(DATEVALUE("1"&K$6&"2000")))*(Transactions[Montant])) -> 0 | L25: =SUMPRODUCT((Transactions[Catégorie]=Dépenses_budget11[[#This Row],[Charges]])*(MONTH(Transactions[Date])=MONTH(DATEVALUE("1"&L$6&"2000")))*(Transactions[Montant])) -> 0 | M25: =SUMPRODUCT((Transactions[Catégorie]=Dépenses_budget11[[#This Row],[Charges]])*(MONTH(Transactions[Date])=MONTH(DATEVALUE("1"&M$6&"2000")))*(Transactions[Montant])) -> 0 | N25: =SUMPRODUCT((Transactions[Catégorie]=Dépenses_budget11[[#This Row],[Charges]])*(MONTH(Transactions[Date])=MONTH(DATEVALUE("1"&N$6&"2000")))*(Transactions[Montant])) -> 0 | O25: =SUM(Dépenses_budget11[[#This Row],[Janvier]:[Décembre]]) -> 0
B26: Total | C26: =SUBTOTAL(109,Dépenses_budget11[Janvier]) -> 0 | D26: =SUBTOTAL(109,Dépenses_budget11[Février]) -> 0 | E26: =SUBTOTAL(109,Dépenses_budget11[Mars]) -> 0 | F26: =SUBTOTAL(109,Dépenses_budget11[Avril]) -> 0 | G26: =SUBTOTAL(109,Dépenses_budget11[Mai]) -> 0 | H26: =SUBTOTAL(109,Dépenses_budget11[Juin]) -> 0 | I26: =SUBTOTAL(109,Dépenses_budget11[Juillet]) -> 0 | J26: =SUBTOTAL(109,Dépenses_budget11[Août]) -> 67000 | K26: =SUBTOTAL(109,Dépenses_budget11[Septembre]) -> 0 | L26: =SUBTOTAL(109,Dépenses_budget11[Octobre]) -> 0 | M26: =SUBTOTAL(109,Dépenses_budget11[Novembre]) -> 0 | N26: =SUBTOTAL(109,Dépenses_budget11[Décembre]) -> 0 | O26: =SUBTOTAL(109,Dépenses_budget11[Total]) -> 67000
B30: Autres charges & Loisirs | C30: Janvier | D30: Février | E30: Mars | F30: Avril | G30: Mai | H30: Juin | I30: Juillet | J30: Août | K30: Septembre | L30: Octobre | M30: Novembre | N30: Décembre | O30: Total
B31: Assistances familles | C31: =SUMPRODUCT((Transactions[Catégorie]=Autres_charges_budget12[[#This Row],[Autres charges & Loisirs]])*(MONTH(Transactions[Date])=MONTH(DATEVALUE("1"&C$30&"2000")))*(Transactions[Montant])) -> 0 | D31: =SUMPRODUCT((Transactions[Catégorie]=Autres_charges_budget12[[#This Row],[Autres charges & Loisirs]])*(MONTH(Transactions[Date])=MONTH(DATEVALUE("1"&D$30&"2000")))*(Transactions[Montant])) -> 0 | E31: =SUMPRODUCT((Transactions[Catégorie]=Autres_charges_budget12[[#This Row],[Autres charges & Loisirs]])*(MONTH(Transactions[Date])=MONTH(DATEVALUE("1"&E$30&"2000")))*(Transactions[Montant])) -> 0 | F31: =SUMPRODUCT((Transactions[Catégorie]=Autres_charges_budget12[[#This Row],[Autres charges & Loisirs]])*(MONTH(Transactions[Date])=MONTH(DATEVALUE("1"&F$30&"2000")))*(Transactions[Montant])) -> 0 | G31: =SUMPRODUCT((Transactions[Catégorie]=Autres_charges_budget12[[#This Row],[Autres charges & Loisirs]])*(MONTH(Transactions[Date])=MONTH(DATEVALUE("1"&G$30&"2000")))*(Transactions[Montant])) -> 0 | H31: =SUMPRODUCT((Transactions[Catégorie]=Autres_charges_budget12[[#This Row],[Autres charges & Loisirs]])*(MONTH(Transactions[Date])=MONTH(DATEVALUE("1"&H$30&"2000")))*(Transactions[Montant])) -> 0 | I31: =SUMPRODUCT((Transactions[Catégorie]=Autres_charges_budget12[[#This Row],[Autres charges & Loisirs]])*(MONTH(Transactions[Date])=MONTH(DATEVALUE("1"&I$30&"2000")))*(Transactions[Montant])) -> 0 | J31: =SUMPRODUCT((Transactions[Catégorie]=Autres_charges_budget12[[#This Row],[Autres charges & Loisirs]])*(MONTH(Transactions[Date])=MONTH(DATEVALUE("1"&J$30&"2000")))*(Transactions[Montant])) -> 0 | K31: =SUMPRODUCT((Transactions[Catégorie]=Autres_charges_budget12[[#This Row],[Autres charges & Loisirs]])*(MONTH(Transactions[Date])=MONTH(DATEVALUE("1"&K$30&"2000")))*(Transactions[Montant])) -> 0 | L31: =SUMPRODUCT((Transactions[Catégorie]=Autres_charges_budget12[[#This Row],[Autres charges & Loisirs]])*(MONTH(Transactions[Date])=MONTH(DATEVALUE("1"&L$30&"2000")))*(Transactions[Montant])) -> 0 | M31: =SUMPRODUCT((Transactions[Catégorie]=Autres_charges_budget12[[#This Row],[Autres charges & Loisirs]])*(MONTH(Transactions[Date])=MONTH(DATEVALUE("1"&M$30&"2000")))*(Transactions[Montant])) -> 0 | N31: =SUMPRODUCT((Transactions[Catégorie]=Autres_charges_budget12[[#This Row],[Autres charges & Loisirs]])*(MONTH(Transactions[Date])=MONTH(DATEVALUE("1"&N$30&"2000")))*(Transactions[Montant])) -> 0 | O31: =SUM(Autres_charges_budget12[[#This Row],[Janvier]:[Décembre]]) -> 0
B32: Entretien logement | C32: =SUMPRODUCT((Transactions[Catégorie]=Autres_charges_budget12[[#This Row],[Autres charges & Loisirs]])*(MONTH(Transactions[Date])=MONTH(DATEVALUE("1"&C$30&"2000")))*(Transactions[Montant])) -> 0 | D32: =SUMPRODUCT((Transactions[Catégorie]=Autres_charges_budget12[[#This Row],[Autres charges & Loisirs]])*(MONTH(Transactions[Date])=MONTH(DATEVALUE("1"&D$30&"2000")))*(Transactions[Montant])) -> 0 | E32: =SUMPRODUCT((Transactions[Catégorie]=Autres_charges_budget12[[#This Row],[Autres charges & Loisirs]])*(MONTH(Transactions[Date])=MONTH(DATEVALUE("1"&E$30&"2000")))*(Transactions[Montant])) -> 0 | F32: =SUMPRODUCT((Transactions[Catégorie]=Autres_charges_budget12[[#This Row],[Autres charges & Loisirs]])*(MONTH(Transactions[Date])=MONTH(DATEVALUE("1"&F$30&"2000")))*(Transactions[Montant])) -> 0 | G32: =SUMPRODUCT((Transactions[Catégorie]=Autres_charges_budget12[[#This Row],[Autres charges & Loisirs]])*(MONTH(Transactions[Date])=MONTH(DATEVALUE("1"&G$30&"2000")))*(Transactions[Montant])) -> 0 | H32: =SUMPRODUCT((Transactions[Catégorie]=Autres_charges_budget12[[#This Row],[Autres charges & Loisirs]])*(MONTH(Transactions[Date])=MONTH(DATEVALUE("1"&H$30&"2000")))*(Transactions[Montant])) -> 0 | I32: =SUMPRODUCT((Transactions[Catégorie]=Autres_charges_budget12[[#This Row],[Autres charges & Loisirs]])*(MONTH(Transactions[Date])=MONTH(DATEVALUE("1"&I$30&"2000")))*(Transactions[Montant])) -> 0 | J32: =SUMPRODUCT((Transactions[Catégorie]=Autres_charges_budget12[[#This Row],[Autres charges & Loisirs]])*(MONTH(Transactions[Date])=MONTH(DATEVALUE("1"&J$30&"2000")))*(Transactions[Montant])) -> 51000 | K32: =SUMPRODUCT((Transactions[Catégorie]=Autres_charges_budget12[[#This Row],[Autres charges & Loisirs]])*(MONTH(Transactions[Date])=MONTH(DATEVALUE("1"&K$30&"2000")))*(Transactions[Montant])) -> 0 | L32: =SUMPRODUCT((Transactions[Catégorie]=Autres_charges_budget12[[#This Row],[Autres charges & Loisirs]])*(MONTH(Transactions[Date])=MONTH(DATEVALUE("1"&L$30&"2000")))*(Transactions[Montant])) -> 0 | M32: =SUMPRODUCT((Transactions[Catégorie]=Autres_charges_budget12[[#This Row],[Autres charges & Loisirs]])*(MONTH(Transactions[Date])=MONTH(DATEVALUE("1"&M$30&"2000")))*(Transactions[Montant])) -> 0 | N32: =SUMPRODUCT((Transactions[Catégorie]=Autres_charges_budget12[[#This Row],[Autres charges & Loisirs]])*(MONTH(Transactions[Date])=MONTH(DATEVALUE("1"&N$30&"2000")))*(Transactions[Montant])) -> 0 | O32: =SUM(Autres_charges_budget12[[#This Row],[Janvier]:[Décembre]]) -> 51000
B33: Divers | C33: =SUMPRODUCT((Transactions[Catégorie]=Autres_charges_budget12[[#This Row],[Autres charges & Loisirs]])*(MONTH(Transactions[Date])=MONTH(DATEVALUE("1"&C$30&"2000")))*(Transactions[Montant])) -> 0 | D33: =SUMPRODUCT((Transactions[Catégorie]=Autres_charges_budget12[[#This Row],[Autres charges & Loisirs]])*(MONTH(Transactions[Date])=MONTH(DATEVALUE("1"&D$30&"2000")))*(Transactions[Montant])) -> 0 | E33: =SUMPRODUCT((Transactions[Catégorie]=Autres_charges_budget12[[#This Row],[Autres charges & Loisirs]])*(MONTH(Transactions[Date])=MONTH(DATEVALUE("1"&E$30&"2000")))*(Transactions[Montant])) -> 0 | F33: =SUMPRODUCT((Transactions[Catégorie]=Autres_charges_budget12[[#This Row],[Autres charges & Loisirs]])*(MONTH(Transactions[Date])=MONTH(DATEVALUE("1"&F$30&"2000")))*(Transactions[Montant])) -> 0 | G33: =SUMPRODUCT((Transactions[Catégorie]=Autres_charges_budget12[[#This Row],[Autres charges & Loisirs]])*(MONTH(Transactions[Date])=MONTH(DATEVALUE("1"&G$30&"2000")))*(Transactions[Montant])) -> 0 | H33: =SUMPRODUCT((Transactions[Catégorie]=Autres_charges_budget12[[#This Row],[Autres charges & Loisirs]])*(MONTH(Transactions[Date])=MONTH(DATEVALUE("1"&H$30&"2000")))*(Transactions[Montant])) -> 0 | I33: =SUMPRODUCT((Transactions[Catégorie]=Autres_charges_budget12[[#This Row],[Autres charges & Loisirs]])*(MONTH(Transactions[Date])=MONTH(DATEVALUE("1"&I$30&"2000")))*(Transactions[Montant])) -> 0 | J33: =SUMPRODUCT((Transactions[Catégorie]=Autres_charges_budget12[[#This Row],[Autres charges & Loisirs]])*(MONTH(Transactions[Date])=MONTH(DATEVALUE("1"&J$30&"2000")))*(Transactions[Montant])) -> 0 | K33: =SUMPRODUCT((Transactions[Catégorie]=Autres_charges_budget12[[#This Row],[Autres charges & Loisirs]])*(MONTH(Transactions[Date])=MONTH(DATEVALUE("1"&K$30&"2000")))*(Transactions[Montant])) -> 0 | L33: =SUMPRODUCT((Transactions[Catégorie]=Autres_charges_budget12[[#This Row],[Autres charges & Loisirs]])*(MONTH(Transactions[Date])=MONTH(DATEVALUE("1"&L$30&"2000")))*(Transactions[Montant])) -> 0 | M33: =SUMPRODUCT((Transactions[Catégorie]=Autres_charges_budget12[[#This Row],[Autres charges & Loisirs]])*(MONTH(Transactions[Date])=MONTH(DATEVALUE("1"&M$30&"2000")))*(Transactions[Montant])) -> 0 | N33: =SUMPRODUCT((Transactions[Catégorie]=Autres_charges_budget12[[#This Row],[Autres charges & Loisirs]])*(MONTH(Transactions[Date])=MONTH(DATEVALUE("1"&N$30&"2000")))*(Transactions[Montant])) -> 0 | O33: =SUM(Autres_charges_budget12[[#This Row],[Janvier]:[Décembre]]) -> 0
B34: Pressing | C34: =SUMPRODUCT((Transactions[Catégorie]=Autres_charges_budget12[[#This Row],[Autres charges & Loisirs]])*(MONTH(Transactions[Date])=MONTH(DATEVALUE("1"&C$30&"2000")))*(Transactions[Montant])) -> 0 | D34: =SUMPRODUCT((Transactions[Catégorie]=Autres_charges_budget12[[#This Row],[Autres charges & Loisirs]])*(MONTH(Transactions[Date])=MONTH(DATEVALUE("1"&D$30&"2000")))*(Transactions[Montant])) -> 0 | E34: =SUMPRODUCT((Transactions[Catégorie]=Autres_charges_budget12[[#This Row],[Autres charges & Loisirs]])*(MONTH(Transactions[Date])=MONTH(DATEVALUE("1"&E$30&"2000")))*(Transactions[Montant])) -> 0 | F34: =SUMPRODUCT((Transactions[Catégorie]=Autres_charges_budget12[[#This Row],[Autres charges & Loisirs]])*(MONTH(Transactions[Date])=MONTH(DATEVALUE("1"&F$30&"2000")))*(Transactions[Montant])) -> 0 | G34: =SUMPRODUCT((Transactions[Catégorie]=Autres_charges_budget12[[#This Row],[Autres charges & Loisirs]])*(MONTH(Transactions[Date])=MONTH(DATEVALUE("1"&G$30&"2000")))*(Transactions[Montant])) -> 0 | H34: =SUMPRODUCT((Transactions[Catégorie]=Autres_charges_budget12[[#This Row],[Autres charges & Loisirs]])*(MONTH(Transactions[Date])=MONTH(DATEVALUE("1"&H$30&"2000")))*(Transactions[Montant])) -> 0 | I34: =SUMPRODUCT((Transactions[Catégorie]=Autres_charges_budget12[[#This Row],[Autres charges & Loisirs]])*(MONTH(Transactions[Date])=MONTH(DATEVALUE("1"&I$30&"2000")))*(Transactions[Montant])) -> 0 | J34: =SUMPRODUCT((Transactions[Catégorie]=Autres_charges_budget12[[#This Row],[Autres charges & Loisirs]])*(MONTH(Transactions[Date])=MONTH(DATEVALUE("1"&J$30&"2000")))*(Transactions[Montant])) -> 0 | K34: =SUMPRODUCT((Transactions[Catégorie]=Autres_charges_budget12[[#This Row],[Autres charges & Loisirs]])*(MONTH(Transactions[Date])=MONTH(DATEVALUE("1"&K$30&"2000")))*(Transactions[Montant])) -> 0 | L34: =SUMPRODUCT((Transactions[Catégorie]=Autres_charges_budget12[[#This Row],[Autres charges & Loisirs]])*(MONTH(Transactions[Date])=MONTH(DATEVALUE("1"&L$30&"2000")))*(Transactions[Montant])) -> 0 | M34: =SUMPRODUCT((Transactions[Catégorie]=Autres_charges_budget12[[#This Row],[Autres charges & Loisirs]])*(MONTH(Transactions[Date])=MONTH(DATEVALUE("1"&M$30&"2000")))*(Transactions[Montant])) -> 0 | N34: =SUMPRODUCT((Transactions[Catégorie]=Autres_charges_budget12[[#This Row],[Autres charges & Loisirs]])*(MONTH(Transactions[Date])=MONTH(DATEVALUE("1"&N$30&"2000")))*(Transactions[Montant])) -> 0 | O34: =SUM(Autres_charges_budget12[[#This Row],[Janvier]:[Décembre]]) -> 0
B35: Shopping | C35: =SUMPRODUCT((Transactions[Catégorie]=Autres_charges_budget12[[#This Row],[Autres charges & Loisirs]])*(MONTH(Transactions[Date])=MONTH(DATEVALUE("1"&C$30&"2000")))*(Transactions[Montant])) -> 0 | D35: =SUMPRODUCT((Transactions[Catégorie]=Autres_charges_budget12[[#This Row],[Autres charges & Loisirs]])*(MONTH(Transactions[Date])=MONTH(DATEVALUE("1"&D$30&"2000")))*(Transactions[Montant])) -> 0 | E35: =SUMPRODUCT((Transactions[Catégorie]=Autres_charges_budget12[[#This Row],[Autres charges & Loisirs]])*(MONTH(Transactions[Date])=MONTH(DATEVALUE("1"&E$30&"2000")))*(Transactions[Montant])) -> 0 | F35: =SUMPRODUCT((Transactions[Catégorie]=Autres_charges_budget12[[#This Row],[Autres charges & Loisirs]])*(MONTH(Transactions[Date])=MONTH(DATEVALUE("1"&F$30&"2000")))*(Transactions[Montant])) -> 0 | G35: =SUMPRODUCT((Transactions[Catégorie]=Autres_charges_budget12[[#This Row],[Autres charges & Loisirs]])*(MONTH(Transactions[Date])=MONTH(DATEVALUE("1"&G$30&"2000")))*(Transactions[Montant])) -> 0 | H35: =SUMPRODUCT((Transactions[Catégorie]=Autres_charges_budget12[[#This Row],[Autres charges & Loisirs]])*(MONTH(Transactions[Date])=MONTH(DATEVALUE("1"&H$30&"2000")))*(Transactions[Montant])) -> 0 | I35: =SUMPRODUCT((Transactions[Catégorie]=Autres_charges_budget12[[#This Row],[Autres charges & Loisirs]])*(MONTH(Transactions[Date])=MONTH(DATEVALUE("1"&I$30&"2000")))*(Transactions[Montant])) -> 0 | J35: =SUMPRODUCT((Transactions[Catégorie]=Autres_charges_budget12[[#This Row],[Autres charges & Loisirs]])*(MONTH(Transactions[Date])=MONTH(DATEVALUE("1"&J$30&"2000")))*(Transactions[Montant])) -> 0 | K35: =SUMPRODUCT((Transactions[Catégorie]=Autres_charges_budget12[[#This Row],[Autres charges & Loisirs]])*(MONTH(Transactions[Date])=MONTH(DATEVALUE("1"&K$30&"2000")))*(Transactions[Montant])) -> 0 | L35: =SUMPRODUCT((Transactions[Catégorie]=Autres_charges_budget12[[#This Row],[Autres charges & Loisirs]])*(MONTH(Transactions[Date])=MONTH(DATEVALUE("1"&L$30&"2000")))*(Transactions[Montant])) -> 0 | M35: =SUMPRODUCT((Transactions[Catégorie]=Autres_charges_budget12[[#This Row],[Autres charges & Loisirs]])*(MONTH(Transactions[Date])=MONTH(DATEVALUE("1"&M$30&"2000")))*(Transactions[Montant])) -> 0 | N35: =SUMPRODUCT((Transactions[Catégorie]=Autres_charges_budget12[[#This Row],[Autres charges & Loisirs]])*(MONTH(Transactions[Date])=MONTH(DATEVALUE("1"&N$30&"2000")))*(Transactions[Montant])) -> 0 | O35: =SUM(Autres_charges_budget12[[#This Row],[Janvier]:[Décembre]]) -> 0
B36: Restaurant/Loisirs | C36: =SUMPRODUCT((Transactions[Catégorie]=Autres_charges_budget12[[#This Row],[Autres charges & Loisirs]])*(MONTH(Transactions[Date])=MONTH(DATEVALUE("1"&C$30&"2000")))*(Transactions[Montant])) -> 0 | D36: =SUMPRODUCT((Transactions[Catégorie]=Autres_charges_budget12[[#This Row],[Autres charges & Loisirs]])*(MONTH(Transactions[Date])=MONTH(DATEVALUE("1"&D$30&"2000")))*(Transactions[Montant])) -> 0 | E36: =SUMPRODUCT((Transactions[Catégorie]=Autres_charges_budget12[[#This Row],[Autres charges & Loisirs]])*(MONTH(Transactions[Date])=MONTH(DATEVALUE("1"&E$30&"2000")))*(Transactions[Montant])) -> 0 | F36: =SUMPRODUCT((Transactions[Catégorie]=Autres_charges_budget12[[#This Row],[Autres charges & Loisirs]])*(MONTH(Transactions[Date])=MONTH(DATEVALUE("1"&F$30&"2000")))*(Transactions[Montant])) -> 0 | G36: =SUMPRODUCT((Transactions[Catégorie]=Autres_charges_budget12[[#This Row],[Autres charges & Loisirs]])*(MONTH(Transactions[Date])=MONTH(DATEVALUE("1"&G$30&"2000")))*(Transactions[Montant])) -> 0 | H36: =SUMPRODUCT((Transactions[Catégorie]=Autres_charges_budget12[[#This Row],[Autres charges & Loisirs]])*(MONTH(Transactions[Date])=MONTH(DATEVALUE("1"&H$30&"2000")))*(Transactions[Montant])) -> 0 | I36: =SUMPRODUCT((Transactions[Catégorie]=Autres_charges_budget12[[#This Row],[Autres charges & Loisirs]])*(MONTH(Transactions[Date])=MONTH(DATEVALUE("1"&I$30&"2000")))*(Transactions[Montant])) -> 0 | J36: =SUMPRODUCT((Transactions[Catégorie]=Autres_charges_budget12[[#This Row],[Autres charges & Loisirs]])*(MONTH(Transactions[Date])=MONTH(DATEVALUE("1"&J$30&"2000")))*(Transactions[Montant])) -> 0 | K36: =SUMPRODUCT((Transactions[Catégorie]=Autres_charges_budget12[[#This Row],[Autres charges & Loisirs]])*(MONTH(Transactions[Date])=MONTH(DATEVALUE("1"&K$30&"2000")))*(Transactions[Montant])) -> 0 | L36: =SUMPRODUCT((Transactions[Catégorie]=Autres_charges_budget12[[#This Row],[Autres charges & Loisirs]])*(MONTH(Transactions[Date])=MONTH(DATEVALUE("1"&L$30&"2000")))*(Transactions[Montant])) -> 0 | M36: =SUMPRODUCT((Transactions[Catégorie]=Autres_charges_budget12[[#This Row],[Autres charges & Loisirs]])*(MONTH(Transactions[Date])=MONTH(DATEVALUE("1"&M$30&"2000")))*(Transactions[Montant])) -> 0 | N36: =SUMPRODUCT((Transactions[Catégorie]=Autres_charges_budget12[[#This Row],[Autres charges & Loisirs]])*(MONTH(Transactions[Date])=MONTH(DATEVALUE("1"&N$30&"2000")))*(Transactions[Montant])) -> 0 | O36: =SUM(Autres_charges_budget12[[#This Row],[Janvier]:[Décembre]]) -> 0
B37: Dons & libéralités diverses | C37: =SUMPRODUCT((Transactions[Catégorie]=Autres_charges_budget12[[#This Row],[Autres charges & Loisirs]])*(MONTH(Transactions[Date])=MONTH(DATEVALUE("1"&C$30&"2000")))*(Transactions[Montant])) -> 0 | D37: =SUMPRODUCT((Transactions[Catégorie]=Autres_charges_budget12[[#This Row],[Autres charges & Loisirs]])*(MONTH(Transactions[Date])=MONTH(DATEVALUE("1"&D$30&"2000")))*(Transactions[Montant])) -> 0 | E37: =SUMPRODUCT((Transactions[Catégorie]=Autres_charges_budget12[[#This Row],[Autres charges & Loisirs]])*(MONTH(Transactions[Date])=MONTH(DATEVALUE("1"&E$30&"2000")))*(Transactions[Montant])) -> 0 | F37: =SUMPRODUCT((Transactions[Catégorie]=Autres_charges_budget12[[#This Row],[Autres charges & Loisirs]])*(MONTH(Transactions[Date])=MONTH(DATEVALUE("1"&F$30&"2000")))*(Transactions[Montant])) -> 0 | G37: =SUMPRODUCT((Transactions[Catégorie]=Autres_charges_budget12[[#This Row],[Autres charges & Loisirs]])*(MONTH(Transactions[Date])=MONTH(DATEVALUE("1"&G$30&"2000")))*(Transactions[Montant])) -> 0 | H37: =SUMPRODUCT((Transactions[Catégorie]=Autres_charges_budget12[[#This Row],[Autres charges & Loisirs]])*(MONTH(Transactions[Date])=MONTH(DATEVALUE("1"&H$30&"2000")))*(Transactions[Montant])) -> 0 | I37: =SUMPRODUCT((Transactions[Catégorie]=Autres_charges_budget12[[#This Row],[Autres charges & Loisirs]])*(MONTH(Transactions[Date])=MONTH(DATEVALUE("1"&I$30&"2000")))*(Transactions[Montant])) -> 0 | J37: =SUMPRODUCT((Transactions[Catégorie]=Autres_charges_budget12[[#This Row],[Autres charges & Loisirs]])*(MONTH(Transactions[Date])=MONTH(DATEVALUE("1"&J$30&"2000")))*(Transactions[Montant])) -> 0 | K37: =SUMPRODUCT((Transactions[Catégorie]=Autres_charges_budget12[[#This Row],[Autres charges & Loisirs]])*(MONTH(Transactions[Date])=MONTH(DATEVALUE("1"&K$30&"2000")))*(Transactions[Montant])) -> 0 | L37: =SUMPRODUCT((Transactions[Catégorie]=Autres_charges_budget12[[#This Row],[Autres charges & Loisirs]])*(MONTH(Transactions[Date])=MONTH(DATEVALUE("1"&L$30&"2000")))*(Transactions[Montant])) -> 0 | M37: =SUMPRODUCT((Transactions[Catégorie]=Autres_charges_budget12[[#This Row],[Autres charges & Loisirs]])*(MONTH(Transactions[Date])=MONTH(DATEVALUE("1"&M$30&"2000")))*(Transactions[Montant])) -> 0 | N37: =SUMPRODUCT((Transactions[Catégorie]=Autres_charges_budget12[[#This Row],[Autres charges & Loisirs]])*(MONTH(Transactions[Date])=MONTH(DATEVALUE("1"&N$30&"2000")))*(Transactions[Montant])) -> 0 | O37: =SUM(Autres_charges_budget12[[#This Row],[Janvier]:[Décembre]]) -> 0
B38: Cotisations | C38: =SUMPRODUCT((Transactions[Catégorie]=Autres_charges_budget12[[#This Row],[Autres charges & Loisirs]])*(MONTH(Transactions[Date])=MONTH(DATEVALUE("1"&C$30&"2000")))*(Transactions[Montant])) -> 0 | D38: =SUMPRODUCT((Transactions[Catégorie]=Autres_charges_budget12[[#This Row],[Autres charges & Loisirs]])*(MONTH(Transactions[Date])=MONTH(DATEVALUE("1"&D$30&"2000")))*(Transactions[Montant])) -> 0 | E38: =SUMPRODUCT((Transactions[Catégorie]=Autres_charges_budget12[[#This Row],[Autres charges & Loisirs]])*(MONTH(Transactions[Date])=MONTH(DATEVALUE("1"&E$30&"2000")))*(Transactions[Montant])) -> 0 | F38: =SUMPRODUCT((Transactions[Catégorie]=Autres_charges_budget12[[#This Row],[Autres charges & Loisirs]])*(MONTH(Transactions[Date])=MONTH(DATEVALUE("1"&F$30&"2000")))*(Transactions[Montant])) -> 0 | G38: =SUMPRODUCT((Transactions[Catégorie]=Autres_charges_budget12[[#This Row],[Autres charges & Loisirs]])*(MONTH(Transactions[Date])=MONTH(DATEVALUE("1"&G$30&"2000")))*(Transactions[Montant])) -> 0 | H38: =SUMPRODUCT((Transactions[Catégorie]=Autres_charges_budget12[[#This Row],[Autres charges & Loisirs]])*(MONTH(Transactions[Date])=MONTH(DATEVALUE("1"&H$30&"2000")))*(Transactions[Montant])) -> 0 | I38: =SUMPRODUCT((Transactions[Catégorie]=Autres_charges_budget12[[#This Row],[Autres charges & Loisirs]])*(MONTH(Transactions[Date])=MONTH(DATEVALUE("1"&I$30&"2000")))*(Transactions[Montant])) -> 0 | J38: =SUMPRODUCT((Transactions[Catégorie]=Autres_charges_budget12[[#This Row],[Autres charges & Loisirs]])*(MONTH(Transactions[Date])=MONTH(DATEVALUE("1"&J$30&"2000")))*(Transactions[Montant])) -> 0 | K38: =SUMPRODUCT((Transactions[Catégorie]=Autres_charges_budget12[[#This Row],[Autres charges & Loisirs]])*(MONTH(Transactions[Date])=MONTH(DATEVALUE("1"&K$30&"2000")))*(Transactions[Montant])) -> 0 | L38: =SUMPRODUCT((Transactions[Catégorie]=Autres_charges_budget12[[#This Row],[Autres charges & Loisirs]])*(MONTH(Transactions[Date])=MONTH(DATEVALUE("1"&L$30&"2000")))*(Transactions[Montant])) -> 0 | M38: =SUMPRODUCT((Transactions[Catégorie]=Autres_charges_budget12[[#This Row],[Autres charges & Loisirs]])*(MONTH(Transactions[Date])=MONTH(DATEVALUE("1"&M$30&"2000")))*(Transactions[Montant])) -> 0 | N38: =SUMPRODUCT((Transactions[Catégorie]=Autres_charges_budget12[[#This Row],[Autres charges & Loisirs]])*(MONTH(Transactions[Date])=MONTH(DATEVALUE("1"&N$30&"2000")))*(Transactions[Montant])) -> 0 | O38: =SUM(Autres_charges_budget12[[#This Row],[Janvier]:[Décembre]]) -> 0
B39: Abonnements multimédia | C39: =SUMPRODUCT((Transactions[Catégorie]=Autres_charges_budget12[[#This Row],[Autres charges & Loisirs]])*(MONTH(Transactions[Date])=MONTH(DATEVALUE("1"&C$30&"2000")))*(Transactions[Montant])) -> 0 | D39: =SUMPRODUCT((Transactions[Catégorie]=Autres_charges_budget12[[#This Row],[Autres charges & Loisirs]])*(MONTH(Transactions[Date])=MONTH(DATEVALUE("1"&D$30&"2000")))*(Transactions[Montant])) -> 0 | E39: =SUMPRODUCT((Transactions[Catégorie]=Autres_charges_budget12[[#This Row],[Autres charges & Loisirs]])*(MONTH(Transactions[Date])=MONTH(DATEVALUE("1"&E$30&"2000")))*(Transactions[Montant])) -> 0 | F39: =SUMPRODUCT((Transactions[Catégorie]=Autres_charges_budget12[[#This Row],[Autres charges & Loisirs]])*(MONTH(Transactions[Date])=MONTH(DATEVALUE("1"&F$30&"2000")))*(Transactions[Montant])) -> 0 | G39: =SUMPRODUCT((Transactions[Catégorie]=Autres_charges_budget12[[#This Row],[Autres charges & Loisirs]])*(MONTH(Transactions[Date])=MONTH(DATEVALUE("1"&G$30&"2000")))*(Transactions[Montant])) -> 0 | H39: =SUMPRODUCT((Transactions[Catégorie]=Autres_charges_budget12[[#This Row],[Autres charges & Loisirs]])*(MONTH(Transactions[Date])=MONTH(DATEVALUE("1"&H$30&"2000")))*(Transactions[Montant])) -> 0 | I39: =SUMPRODUCT((Transactions[Catégorie]=Autres_charges_budget12[[#This Row],[Autres charges & Loisirs]])*(MONTH(Transactions[Date])=MONTH(DATEVALUE("1"&I$30&"2000")))*(Transactions[Montant])) -> 0 | J39: =SUMPRODUCT((Transactions[Catégorie]=Autres_charges_budget12[[#This Row],[Autres charges & Loisirs]])*(MONTH(Transactions[Date])=MONTH(DATEVALUE("1"&J$30&"2000")))*(Transactions[Montant])) -> 0 | K39: =SUMPRODUCT((Transactions[Catégorie]=Autres_charges_budget12[[#This Row],[Autres charges & Loisirs]])*(MONTH(Transactions[Date])=MONTH(DATEVALUE("1"&K$30&"2000")))*(Transactions[Montant])) -> 0 | L39: =SUMPRODUCT((Transactions[Catégorie]=Autres_charges_budget12[[#This Row],[Autres charges & Loisirs]])*(MONTH(Transactions[Date])=MONTH(DATEVALUE("1"&L$30&"2000")))*(Transactions[Montant])) -> 0 | M39: =SUMPRODUCT((Transactions[Catégorie]=Autres_charges_budget12[[#This Row],[Autres charges & Loisirs]])*(MONTH(Transactions[Date])=MONTH(DATEVALUE("1"&M$30&"2000")))*(Transactions[Montant])) -> 0 | N39: =SUMPRODUCT((Transactions[Catégorie]=Autres_charges_budget12[[#This Row],[Autres charges & Loisirs]])*(MONTH(Transactions[Date])=MONTH(DATEVALUE("1"&N$30&"2000")))*(Transactions[Montant])) -> 0 | O39: =SUM(Autres_charges_budget12[[#This Row],[Janvier]:[Décembre]]) -> 0
B40: Autres charges | C40: =SUMPRODUCT((Transactions[Catégorie]=Autres_charges_budget12[[#This Row],[Autres charges & Loisirs]])*(MONTH(Transactions[Date])=MONTH(DATEVALUE("1"&C$30&"2000")))*(Transactions[Montant])) -> 0 | D40: =SUMPRODUCT((Transactions[Catégorie]=Autres_charges_budget12[[#This Row],[Autres charges & Loisirs]])*(MONTH(Transactions[Date])=MONTH(DATEVALUE("1"&D$30&"2000")))*(Transactions[Montant])) -> 0 | E40: =SUMPRODUCT((Transactions[Catégorie]=Autres_charges_budget12[[#This Row],[Autres charges & Loisirs]])*(MONTH(Transactions[Date])=MONTH(DATEVALUE("1"&E$30&"2000")))*(Transactions[Montant])) -> 0 | F40: =SUMPRODUCT((Transactions[Catégorie]=Autres_charges_budget12[[#This Row],[Autres charges & Loisirs]])*(MONTH(Transactions[Date])=MONTH(DATEVALUE("1"&F$30&"2000")))*(Transactions[Montant])) -> 0 | G40: =SUMPRODUCT((Transactions[Catégorie]=Autres_charges_budget12[[#This Row],[Autres charges & Loisirs]])*(MONTH(Transactions[Date])=MONTH(DATEVALUE("1"&G$30&"2000")))*(Transactions[Montant])) -> 0 | H40: =SUMPRODUCT((Transactions[Catégorie]=Autres_charges_budget12[[#This Row],[Autres charges & Loisirs]])*(MONTH(Transactions[Date])=MONTH(DATEVALUE("1"&H$30&"2000")))*(Transactions[Montant])) -> 0 | I40: =SUMPRODUCT((Transactions[Catégorie]=Autres_charges_budget12[[#This Row],[Autres charges & Loisirs]])*(MONTH(Transactions[Date])=MONTH(DATEVALUE("1"&I$30&"2000")))*(Transactions[Montant])) -> 0 | J40: =SUMPRODUCT((Transactions[Catégorie]=Autres_charges_budget12[[#This Row],[Autres charges & Loisirs]])*(MONTH(Transactions[Date])=MONTH(DATEVALUE("1"&J$30&"2000")))*(Transactions[Montant])) -> 0 | K40: =SUMPRODUCT((Transactions[Catégorie]=Autres_charges_budget12[[#This Row],[Autres charges & Loisirs]])*(MONTH(Transactions[Date])=MONTH(DATEVALUE("1"&K$30&"2000")))*(Transactions[Montant])) -> 0 | L40: =SUMPRODUCT((Transactions[Catégorie]=Autres_charges_budget12[[#This Row],[Autres charges & Loisirs]])*(MONTH(Transactions[Date])=MONTH(DATEVALUE("1"&L$30&"2000")))*(Transactions[Montant])) -> 0 | M40: =SUMPRODUCT((Transactions[Catégorie]=Autres_charges_budget12[[#This Row],[Autres charges & Loisirs]])*(MONTH(Transactions[Date])=MONTH(DATEVALUE("1"&M$30&"2000")))*(Transactions[Montant])) -> 0 | N40: =SUMPRODUCT((Transactions[Catégorie]=Autres_charges_budget12[[#This Row],[Autres charges & Loisirs]])*(MONTH(Transactions[Date])=MONTH(DATEVALUE("1"&N$30&"2000")))*(Transactions[Montant])) -> 0 | O40: =SUM(Autres_charges_budget12[[#This Row],[Janvier]:[Décembre]]) -> 0
B41: Total | C41: =SUBTOTAL(109,C31:C40) -> 0 | D41: =SUBTOTAL(109,D31:D40) -> 0 | E41: 0 | F41: 0 | G41: 0 | H41: 0 | I41: 0 | J41: 51000 | K41: 0 | L41: 0 | M41: 0 | N41: 0 | O41: =SUBTOTAL(109,O31:O40) -> 51000
B45: Crédits | C45: Janvier | D45: Février | E45: Mars | F45: Avril | G45: Mai | H45: Juin | I45: Juillet | J45: Août | K45: Septembre | L45: Octobre | M45: Novembre | N45: Décembre | O45: Total
B46: emprunt bancaire | C46: =SUMPRODUCT((Transactions[Catégorie]=Crédits_budget15[[#This Row],[Crédits]])*(MONTH(Transactions[Date])=MONTH(DATEVALUE("1"&C$45&"2000")))*(Transactions[Montant])) -> 0 | D46: =SUMPRODUCT((Transactions[Catégorie]=Crédits_budget15[[#This Row],[Crédits]])*(MONTH(Transactions[Date])=MONTH(DATEVALUE("1"&D$45&"2000")))*(Transactions[Montant])) -> 0 | E46: =SUMPRODUCT((Transactions[Catégorie]=Crédits_budget15[[#This Row],[Crédits]])*(MONTH(Transactions[Date])=MONTH(DATEVALUE("1"&E$45&"2000")))*(Transactions[Montant])) -> 0 | F46: =SUMPRODUCT((Transactions[Catégorie]=Crédits_budget15[[#This Row],[Crédits]])*(MONTH(Transactions[Date])=MONTH(DATEVALUE("1"&F$45&"2000")))*(Transactions[Montant])) -> 0 | G46: =SUMPRODUCT((Transactions[Catégorie]=Crédits_budget15[[#This Row],[Crédits]])*(MONTH(Transactions[Date])=MONTH(DATEVALUE("1"&G$45&"2000")))*(Transactions[Montant])) -> 0 | H46: =SUMPRODUCT((Transactions[Catégorie]=Crédits_budget15[[#This Row],[Crédits]])*(MONTH(Transactions[Date])=MONTH(DATEVALUE("1"&H$45&"2000")))*(Transactions[Montant])) -> 0 | I46: =SUMPRODUCT((Transactions[Catégorie]=Crédits_budget15[[#This Row],[Crédits]])*(MONTH(Transactions[Date])=MONTH(DATEVALUE("1"&I$45&"2000")))*(Transactions[Montant])) -> 0 | J46: =SUMPRODUCT((Transactions[Catégorie]=Crédits_budget15[[#This Row],[Crédits]])*(MONTH(Transactions[Date])=MONTH(DATEVALUE("1"&J$45&"2000")))*(Transactions[Montant])) -> 92072 | K46: =SUMPRODUCT((Transactions[Catégorie]=Crédits_budget15[[#This Row],[Crédits]])*(MONTH(Transactions[Date])=MONTH(DATEVALUE("1"&K$45&"2000")))*(Transactions[Montant])) -> 0 | L46: =SUMPRODUCT((Transactions[Catégorie]=Crédits_budget15[[#This Row],[Crédits]])*(MONTH(Transactions[Date])=MONTH(DATEVALUE("1"&L$45&"2000")))*(Transactions[Montant])) -> 0 | M46: =SUMPRODUCT((Transactions[Catégorie]=Crédits_budget15[[#This Row],[Crédits]])*(MONTH(Transactions[Date])=MONTH(DATEVALUE("1"&M$45&"2000")))*(Transactions[Montant])) -> 0 | N46: =SUMPRODUCT((Transactions[Catégorie]=Crédits_budget15[[#This Row],[Crédits]])*(MONTH(Transactions[Date])=MONTH(DATEVALUE("1"&N$45&"2000")))*(Transactions[Montant])) -> 0 | O46: =SUM(Crédits_budget15[[#This Row],[Janvier]:[Décembre]]) -> 92072
B47: Remboursement hors banque | C47: =SUMPRODUCT((Transactions[Catégorie]=Crédits_budget15[[#This Row],[Crédits]])*(MONTH(Transactions[Date])=MONTH(DATEVALUE("1"&C$45&"2000")))*(Transactions[Montant])) -> 0 | D47: =SUMPRODUCT((Transactions[Catégorie]=Crédits_budget15[[#This Row],[Crédits]])*(MONTH(Transactions[Date])=MONTH(DATEVALUE("1"&D$45&"2000")))*(Transactions[Montant])) -> 0 | E47: =SUMPRODUCT((Transactions[Catégorie]=Crédits_budget15[[#This Row],[Crédits]])*(MONTH(Transactions[Date])=MONTH(DATEVALUE("1"&E$45&"2000")))*(Transactions[Montant])) -> 0 | F47: =SUMPRODUCT((Transactions[Catégorie]=Crédits_budget15[[#This Row],[Crédits]])*(MONTH(Transactions[Date])=MONTH(DATEVALUE("1"&F$45&"2000")))*(Transactions[Montant])) -> 0 | G47: =SUMPRODUCT((Transactions[Catégorie]=Crédits_budget15[[#This Row],[Crédits]])*(MONTH(Transactions[Date])=MONTH(DATEVALUE("1"&G$45&"2000")))*(Transactions[Montant])) -> 0 | H47: =SUMPRODUCT((Transactions[Catégorie]=Crédits_budget15[[#This Row],[Crédits]])*(MONTH(Transactions[Date])=MONTH(DATEVALUE("1"&H$45&"2000")))*(Transactions[Montant])) -> 0 | I47: =SUMPRODUCT((Transactions[Catégorie]=Crédits_budget15[[#This Row],[Crédits]])*(MONTH(Transactions[Date])=MONTH(DATEVALUE("1"&I$45&"2000")))*(Transactions[Montant])) -> 0 | J47: =SUMPRODUCT((Transactions[Catégorie]=Crédits_budget15[[#This Row],[Crédits]])*(MONTH(Transactions[Date])=MONTH(DATEVALUE("1"&J$45&"2000")))*(Transactions[Montant])) -> 0 | K47: =SUMPRODUCT((Transactions[Catégorie]=Crédits_budget15[[#This Row],[Crédits]])*(MONTH(Transactions[Date])=MONTH(DATEVALUE("1"&K$45&"2000")))*(Transactions[Montant])) -> 0 | L47: =SUMPRODUCT((Transactions[Catégorie]=Crédits_budget15[[#This Row],[Crédits]])*(MONTH(Transactions[Date])=MONTH(DATEVALUE("1"&L$45&"2000")))*(Transactions[Montant])) -> 0 | M47: =SUMPRODUCT((Transactions[Catégorie]=Crédits_budget15[[#This Row],[Crédits]])*(MONTH(Transactions[Date])=MONTH(DATEVALUE("1"&M$45&"2000")))*(Transactions[Montant])) -> 0 | N47: =SUMPRODUCT((Transactions[Catégorie]=Crédits_budget15[[#This Row],[Crédits]])*(MONTH(Transactions[Date])=MONTH(DATEVALUE("1"&N$45&"2000")))*(Transactions[Montant])) -> 0 | O47: =SUM(Crédits_budget15[[#This Row],[Janvier]:[Décembre]]) -> 0
B48: Autres crédits | C48: =SUMPRODUCT((Transactions[Catégorie]=Crédits_budget15[[#This Row],[Crédits]])*(MONTH(Transactions[Date])=MONTH(DATEVALUE("1"&C$45&"2000")))*(Transactions[Montant])) -> 0 | D48: =SUMPRODUCT((Transactions[Catégorie]=Crédits_budget15[[#This Row],[Crédits]])*(MONTH(Transactions[Date])=MONTH(DATEVALUE("1"&D$45&"2000")))*(Transactions[Montant])) -> 0 | E48: =SUMPRODUCT((Transactions[Catégorie]=Crédits_budget15[[#This Row],[Crédits]])*(MONTH(Transactions[Date])=MONTH(DATEVALUE("1"&E$45&"2000")))*(Transactions[Montant])) -> 0 | F48: =SUMPRODUCT((Transactions[Catégorie]=Crédits_budget15[[#This Row],[Crédits]])*(MONTH(Transactions[Date])=MONTH(DATEVALUE("1"&F$45&"2000")))*(Transactions[Montant])) -> 0 | G48: =SUMPRODUCT((Transactions[Catégorie]=Crédits_budget15[[#This Row],[Crédits]])*(MONTH(Transactions[Date])=MONTH(DATEVALUE("1"&G$45&"2000")))*(Transactions[Montant])) -> 0 | H48: =SUMPRODUCT((Transactions[Catégorie]=Crédits_budget15[[#This Row],[Crédits]])*(MONTH(Transactions[Date])=MONTH(DATEVALUE("1"&H$45&"2000")))*(Transactions[Montant])) -> 0 | I48: =SUMPRODUCT((Transactions[Catégorie]=Crédits_budget15[[#This Row],[Crédits]])*(MONTH(Transactions[Date])=MONTH(DATEVALUE("1"&I$45&"2000")))*(Transactions[Montant])) -> 0 | J48: =SUMPRODUCT((Transactions[Catégorie]=Crédits_budget15[[#This Row],[Crédits]])*(MONTH(Transactions[Date])=MONTH(DATEVALUE("1"&J$45&"2000")))*(Transactions[Montant])) -> 0 | K48: =SUMPRODUCT((Transactions[Catégorie]=Crédits_budget15[[#This Row],[Crédits]])*(MONTH(Transactions[Date])=MONTH(DATEVALUE("1"&K$45&"2000")))*(Transactions[Montant])) -> 0 | L48: =SUMPRODUCT((Transactions[Catégorie]=Crédits_budget15[[#This Row],[Crédits]])*(MONTH(Transactions[Date])=MONTH(DATEVALUE("1"&L$45&"2000")))*(Transactions[Montant])) -> 0 | M48: =SUMPRODUCT((Transactions[Catégorie]=Crédits_budget15[[#This Row],[Crédits]])*(MONTH(Transactions[Date])=MONTH(DATEVALUE("1"&M$45&"2000")))*(Transactions[Montant])) -> 0 | N48: =SUMPRODUCT((Transactions[Catégorie]=Crédits_budget15[[#This Row],[Crédits]])*(MONTH(Transactions[Date])=MONTH(DATEVALUE("1"&N$45&"2000")))*(Transactions[Montant])) -> 0 | O48: =SUM(Crédits_budget15[[#This Row],[Janvier]:[Décembre]]) -> 0
B49: Total | C49: =SUBTOTAL(109,C46:C48) -> 0 | D49: =SUBTOTAL(109,D46:D48) -> 0 | E49: 0 | F49: 0 | G49: 0 | H49: 0 | I49: 0 | J49: 92072 | K49: 0 | L49: 0 | M49: 0 | N49: 0 | O49: =SUBTOTAL(109,O46:O48) -> 92072
B53: Investissements | C53: Janvier | D53: Février | E53: Mars | F53: Avril | G53: Mai | H53: Juin | I53: Juillet | J53: Août | K53: Septembre | L53: Octobre | M53: Novembre | N53: Décembre | O53: Total
B54: Formations | C54: =SUMPRODUCT((Transactions[Catégorie]=Investissements_budget13[[#This Row],[Investissements]])*(MONTH(Transactions[Date])=MONTH(DATEVALUE("1"&C$53&"2000")))*(Transactions[Montant])) -> 0 | D54: =SUMPRODUCT((Transactions[Catégorie]=Investissements_budget13[[#This Row],[Investissements]])*(MONTH(Transactions[Date])=MONTH(DATEVALUE("1"&D$53&"2000")))*(Transactions[Montant])) -> 0 | E54: =SUMPRODUCT((Transactions[Catégorie]=Investissements_budget13[[#This Row],[Investissements]])*(MONTH(Transactions[Date])=MONTH(DATEVALUE("1"&E$53&"2000")))*(Transactions[Montant])) -> 0 | F54: =SUMPRODUCT((Transactions[Catégorie]=Investissements_budget13[[#This Row],[Investissements]])*(MONTH(Transactions[Date])=MONTH(DATEVALUE("1"&F$53&"2000")))*(Transactions[Montant])) -> 0 | G54: =SUMPRODUCT((Transactions[Catégorie]=Investissements_budget13[[#This Row],[Investissements]])*(MONTH(Transactions[Date])=MONTH(DATEVALUE("1"&G$53&"2000")))*(Transactions[Montant])) -> 0 | H54: =SUMPRODUCT((Transactions[Catégorie]=Investissements_budget13[[#This Row],[Investissements]])*(MONTH(Transactions[Date])=MONTH(DATEVALUE("1"&H$53&"2000")))*(Transactions[Montant])) -> 0 | I54: =SUMPRODUCT((Transactions[Catégorie]=Investissements_budget13[[#This Row],[Investissements]])*(MONTH(Transactions[Date])=MONTH(DATEVALUE("1"&I$53&"2000")))*(Transactions[Montant])) -> 0 | J54: =SUMPRODUCT((Transactions[Catégorie]=Investissements_budget13[[#This Row],[Investissements]])*(MONTH(Transactions[Date])=MONTH(DATEVALUE("1"&J$53&"2000")))*(Transactions[Montant])) -> 0 | K54: =SUMPRODUCT((Transactions[Catégorie]=Investissements_budget13[[#This Row],[Investissements]])*(MONTH(Transactions[Date])=MONTH(DATEVALUE("1"&K$53&"2000")))*(Transactions[Montant])) -> 0 | L54: =SUMPRODUCT((Transactions[Catégorie]=Investissements_budget13[[#This Row],[Investissements]])*(MONTH(Transactions[Date])=MONTH(DATEVALUE("1"&L$53&"2000")))*(Transactions[Montant])) -> 0 | M54: =SUMPRODUCT((Transactions[Catégorie]=Investissements_budget13[[#This Row],[Investissements]])*(MONTH(Transactions[Date])=MONTH(DATEVALUE("1"&M$53&"2000")))*(Transactions[Montant])) -> 0 | N54: =SUMPRODUCT((Transactions[Catégorie]=Investissements_budget13[[#This Row],[Investissements]])*(MONTH(Transactions[Date])=MONTH(DATEVALUE("1"&N$53&"2000")))*(Transactions[Montant])) -> 0 | O54: =SUM(Investissements_budget13[[#This Row],[Janvier]:[Décembre]]) -> 0
B55: Projets | C55: =SUMPRODUCT((Transactions[Catégorie]=Investissements_budget13[[#This Row],[Investissements]])*(MONTH(Transactions[Date])=MONTH(DATEVALUE("1"&C$53&"2000")))*(Transactions[Montant])) -> 0 | D55: =SUMPRODUCT((Transactions[Catégorie]=Investissements_budget13[[#This Row],[Investissements]])*(MONTH(Transactions[Date])=MONTH(DATEVALUE("1"&D$53&"2000")))*(Transactions[Montant])) -> 0 | E55: =SUMPRODUCT((Transactions[Catégorie]=Investissements_budget13[[#This Row],[Investissements]])*(MONTH(Transactions[Date])=MONTH(DATEVALUE("1"&E$53&"2000")))*(Transactions[Montant])) -> 0 | F55: =SUMPRODUCT((Transactions[Catégorie]=Investissements_budget13[[#This Row],[Investissements]])*(MONTH(Transactions[Date])=MONTH(DATEVALUE("1"&F$53&"2000")))*(Transactions[Montant])) -> 0 | G55: =SUMPRODUCT((Transactions[Catégorie]=Investissements_budget13[[#This Row],[Investissements]])*(MONTH(Transactions[Date])=MONTH(DATEVALUE("1"&G$53&"2000")))*(Transactions[Montant])) -> 0 | H55: =SUMPRODUCT((Transactions[Catégorie]=Investissements_budget13[[#This Row],[Investissements]])*(MONTH(Transactions[Date])=MONTH(DATEVALUE("1"&H$53&"2000")))*(Transactions[Montant])) -> 0 | I55: =SUMPRODUCT((Transactions[Catégorie]=Investissements_budget13[[#This Row],[Investissements]])*(MONTH(Transactions[Date])=MONTH(DATEVALUE("1"&I$53&"2000")))*(Transactions[Montant])) -> 0 | J55: =SUMPRODUCT((Transactions[Catégorie]=Investissements_budget13[[#This Row],[Investissements]])*(MONTH(Transactions[Date])=MONTH(DATEVALUE("1"&J$53&"2000")))*(Transactions[Montant])) -> 0 | K55: =SUMPRODUCT((Transactions[Catégorie]=Investissements_budget13[[#This Row],[Investissements]])*(MONTH(Transactions[Date])=MONTH(DATEVALUE("1"&K$53&"2000")))*(Transactions[Montant])) -> 0 | L55: =SUMPRODUCT((Transactions[Catégorie]=Investissements_budget13[[#This Row],[Investissements]])*(MONTH(Transactions[Date])=MONTH(DATEVALUE("1"&L$53&"2000")))*(Transactions[Montant])) -> 0 | M55: =SUMPRODUCT((Transactions[Catégorie]=Investissements_budget13[[#This Row],[Investissements]])*(MONTH(Transactions[Date])=MONTH(DATEVALUE("1"&M$53&"2000")))*(Transactions[Montant])) -> 0 | N55: =SUMPRODUCT((Transactions[Catégorie]=Investissements_budget13[[#This Row],[Investissements]])*(MONTH(Transactions[Date])=MONTH(DATEVALUE("1"&N$53&"2000")))*(Transactions[Montant])) -> 0 | O55: =SUM(Investissements_budget13[[#This Row],[Janvier]:[Décembre]]) -> 0
B56: Autres projets | C56: =SUMPRODUCT((Transactions[Catégorie]=Investissements_budget13[[#This Row],[Investissements]])*(MONTH(Transactions[Date])=MONTH(DATEVALUE("1"&C$53&"2000")))*(Transactions[Montant])) -> 0 | D56: =SUMPRODUCT((Transactions[Catégorie]=Investissements_budget13[[#This Row],[Investissements]])*(MONTH(Transactions[Date])=MONTH(DATEVALUE("1"&D$53&"2000")))*(Transactions[Montant])) -> 0 | E56: =SUMPRODUCT((Transactions[Catégorie]=Investissements_budget13[[#This Row],[Investissements]])*(MONTH(Transactions[Date])=MONTH(DATEVALUE("1"&E$53&"2000")))*(Transactions[Montant])) -> 0 | F56: =SUMPRODUCT((Transactions[Catégorie]=Investissements_budget13[[#This Row],[Investissements]])*(MONTH(Transactions[Date])=MONTH(DATEVALUE("1"&F$53&"2000")))*(Transactions[Montant])) -> 0 | G56: =SUMPRODUCT((Transactions[Catégorie]=Investissements_budget13[[#This Row],[Investissements]])*(MONTH(Transactions[Date])=MONTH(DATEVALUE("1"&G$53&"2000")))*(Transactions[Montant])) -> 0 | H56: =SUMPRODUCT((Transactions[Catégorie]=Investissements_budget13[[#This Row],[Investissements]])*(MONTH(Transactions[Date])=MONTH(DATEVALUE("1"&H$53&"2000")))*(Transactions[Montant])) -> 0 | I56: =SUMPRODUCT((Transactions[Catégorie]=Investissements_budget13[[#This Row],[Investissements]])*(MONTH(Transactions[Date])=MONTH(DATEVALUE("1"&I$53&"2000")))*(Transactions[Montant])) -> 0 | J56: =SUMPRODUCT((Transactions[Catégorie]=Investissements_budget13[[#This Row],[Investissements]])*(MONTH(Transactions[Date])=MONTH(DATEVALUE("1"&J$53&"2000")))*(Transactions[Montant])) -> 0 | K56: =SUMPRODUCT((Transactions[Catégorie]=Investissements_budget13[[#This Row],[Investissements]])*(MONTH(Transactions[Date])=MONTH(DATEVALUE("1"&K$53&"2000")))*(Transactions[Montant])) -> 0 | L56: =SUMPRODUCT((Transactions[Catégorie]=Investissements_budget13[[#This Row],[Investissements]])*(MONTH(Transactions[Date])=MONTH(DATEVALUE("1"&L$53&"2000")))*(Transactions[Montant])) -> 0 | M56: =SUMPRODUCT((Transactions[Catégorie]=Investissements_budget13[[#This Row],[Investissements]])*(MONTH(Transactions[Date])=MONTH(DATEVALUE("1"&M$53&"2000")))*(Transactions[Montant])) -> 0 | N56: =SUMPRODUCT((Transactions[Catégorie]=Investissements_budget13[[#This Row],[Investissements]])*(MONTH(Transactions[Date])=MONTH(DATEVALUE("1"&N$53&"2000")))*(Transactions[Montant])) -> 0 | O56: =SUM(Investissements_budget13[[#This Row],[Janvier]:[Décembre]]) -> 0
B57: Total | C57: =SUBTOTAL(109,C54:C56) -> 0 | D57: =SUBTOTAL(109,D54:D56) -> 0 | E57: 0 | F57: 0 | G57: 0 | H57: 0 | I57: 0 | J57: 0 | K57: 0 | L57: 0 | M57: 0 | N57: 0 | O57: =SUBTOTAL(109,O54:O56) -> 0
B61: Epargnes | C61: Janvier | D61: Février | E61: Mars | F61: Avril | G61: Mai | H61: Juin | I61: Juillet | J61: Août | K61: Septembre | L61: Octobre | M61: Novembre | N61: Décembre | O61: Total
B62: Compte bloqué | C62: =SUMPRODUCT((Transactions[Catégorie]=Epargnes_budget14[[#This Row],[Epargnes]])*(MONTH(Transactions[Date])=MONTH(DATEVALUE("1"&C$61&"2000")))*(Transactions[Montant])) -> 0 | D62: =SUMPRODUCT((Transactions[Catégorie]=Epargnes_budget14[[#This Row],[Epargnes]])*(MONTH(Transactions[Date])=MONTH(DATEVALUE("1"&D$61&"2000")))*(Transactions[Montant])) -> 0 | E62: =SUMPRODUCT((Transactions[Catégorie]=Epargnes_budget14[[#This Row],[Epargnes]])*(MONTH(Transactions[Date])=MONTH(DATEVALUE("1"&E$61&"2000")))*(Transactions[Montant])) -> 0 | F62: =SUMPRODUCT((Transactions[Catégorie]=Epargnes_budget14[[#This Row],[Epargnes]])*(MONTH(Transactions[Date])=MONTH(DATEVALUE("1"&F$61&"2000")))*(Transactions[Montant])) -> 0 | G62: =SUMPRODUCT((Transactions[Catégorie]=Epargnes_budget14[[#This Row],[Epargnes]])*(MONTH(Transactions[Date])=MONTH(DATEVALUE("1"&G$61&"2000")))*(Transactions[Montant])) -> 0 | H62: =SUMPRODUCT((Transactions[Catégorie]=Epargnes_budget14[[#This Row],[Epargnes]])*(MONTH(Transactions[Date])=MONTH(DATEVALUE("1"&H$61&"2000")))*(Transactions[Montant])) -> 0 | I62: =SUMPRODUCT((Transactions[Catégorie]=Epargnes_budget14[[#This Row],[Epargnes]])*(MONTH(Transactions[Date])=MONTH(DATEVALUE("1"&I$61&"2000")))*(Transactions[Montant])) -> 0 | J62: =SUMPRODUCT((Transactions[Catégorie]=Epargnes_budget14[[#This Row],[Epargnes]])*(MONTH(Transactions[Date])=MONTH(DATEVALUE("1"&J$61&"2000")))*(Transactions[Montant])) -> 0 | K62: =SUMPRODUCT((Transactions[Catégorie]=Epargnes_budget14[[#This Row],[Epargnes]])*(MONTH(Transactions[Date])=MONTH(DATEVALUE("1"&K$61&"2000")))*(Transactions[Montant])) -> 0 | L62: =SUMPRODUCT((Transactions[Catégorie]=Epargnes_budget14[[#This Row],[Epargnes]])*(MONTH(Transactions[Date])=MONTH(DATEVALUE("1"&L$61&"2000")))*(Transactions[Montant])) -> 0 | M62: =SUMPRODUCT((Transactions[Catégorie]=Epargnes_budget14[[#This Row],[Epargnes]])*(MONTH(Transactions[Date])=MONTH(DATEVALUE("1"&M$61&"2000")))*(Transactions[Montant])) -> 0 | N62: =SUMPRODUCT((Transactions[Catégorie]=Epargnes_budget14[[#This Row],[Epargnes]])*(MONTH(Transactions[Date])=MONTH(DATEVALUE("1"&N$61&"2000")))*(Transactions[Montant])) -> 0 | O62: =SUM(Epargnes_budget14[[#This Row],[Janvier]:[Décembre]]) -> 0
B63: Fond d'urgence | C63: =SUMPRODUCT((Transactions[Catégorie]=Epargnes_budget14[[#This Row],[Epargnes]])*(MONTH(Transactions[Date])=MONTH(DATEVALUE("1"&C$61&"2000")))*(Transactions[Montant])) -> 0 | D63: =SUMPRODUCT((Transactions[Catégorie]=Epargnes_budget14[[#This Row],[Epargnes]])*(MONTH(Transactions[Date])=MONTH(DATEVALUE("1"&D$61&"2000")))*(Transactions[Montant])) -> 0 | E63: =SUMPRODUCT((Transactions[Catégorie]=Epargnes_budget14[[#This Row],[Epargnes]])*(MONTH(Transactions[Date])=MONTH(DATEVALUE("1"&E$61&"2000")))*(Transactions[Montant])) -> 0 | F63: =SUMPRODUCT((Transactions[Catégorie]=Epargnes_budget14[[#This Row],[Epargnes]])*(MONTH(Transactions[Date])=MONTH(DATEVALUE("1"&F$61&"2000")))*(Transactions[Montant])) -> 0 | G63: =SUMPRODUCT((Transactions[Catégorie]=Epargnes_budget14[[#This Row],[Epargnes]])*(MONTH(Transactions[Date])=MONTH(DATEVALUE("1"&G$61&"2000")))*(Transactions[Montant])) -> 0 | H63: =SUMPRODUCT((Transactions[Catégorie]=Epargnes_budget14[[#This Row],[Epargnes]])*(MONTH(Transactions[Date])=MONTH(DATEVALUE("1"&H$61&"2000")))*(Transactions[Montant])) -> 0 | I63: =SUMPRODUCT((Transactions[Catégorie]=Epargnes_budget14[[#This Row],[Epargnes]])*(MONTH(Transactions[Date])=MONTH(DATEVALUE("1"&I$61&"2000")))*(Transactions[Montant])) -> 0 | J63: =SUMPRODUCT((Transactions[Catégorie]=Epargnes_budget14[[#This Row],[Epargnes]])*(MONTH(Transactions[Date])=MONTH(DATEVALUE("1"&J$61&"2000")))*(Transactions[Montant])) -> 0 | K63: =SUMPRODUCT((Transactions[Catégorie]=Epargnes_budget14[[#This Row],[Epargnes]])*(MONTH(Transactions[Date])=MONTH(DATEVALUE("1"&K$61&"2000")))*(Transactions[Montant])) -> 0 | L63: =SUMPRODUCT((Transactions[Catégorie]=Epargnes_budget14[[#This Row],[Epargnes]])*(MONTH(Transactions[Date])=MONTH(DATEVALUE("1"&L$61&"2000")))*(Transactions[Montant])) -> 0 | M63: =SUMPRODUCT((Transactions[Catégorie]=Epargnes_budget14[[#This Row],[Epargnes]])*(MONTH(Transactions[Date])=MONTH(DATEVALUE("1"&M$61&"2000")))*(Transactions[Montant])) -> 0 | N63: =SUMPRODUCT((Transactions[Catégorie]=Epargnes_budget14[[#This Row],[Epargnes]])*(MONTH(Transactions[Date])=MONTH(DATEVALUE("1"&N$61&"2000")))*(Transactions[Montant])) -> 0 | O63: =SUM(Epargnes_budget14[[#This Row],[Janvier]:[Décembre]]) -> 0
B64: Autres epargnes | C64: =SUMPRODUCT((Transactions[Catégorie]=Epargnes_budget14[[#This Row],[Epargnes]])*(MONTH(Transactions[Date])=MONTH(DATEVALUE("1"&C$61&"2000")))*(Transactions[Montant])) -> 0 | D64: =SUMPRODUCT((Transactions[Catégorie]=Epargnes_budget14[[#This Row],[Epargnes]])*(MONTH(Transactions[Date])=MONTH(DATEVALUE("1"&D$61&"2000")))*(Transactions[Montant])) -> 0 | E64: =SUMPRODUCT((Transactions[Catégorie]=Epargnes_budget14[[#This Row],[Epargnes]])*(MONTH(Transactions[Date])=MONTH(DATEVALUE("1"&E$61&"2000")))*(Transactions[Montant])) -> 0 | F64: =SUMPRODUCT((Transactions[Catégorie]=Epargnes_budget14[[#This Row],[Epargnes]])*(MONTH(Transactions[Date])=MONTH(DATEVALUE("1"&F$61&"2000")))*(Transactions[Montant])) -> 0 | G64: =SUMPRODUCT((Transactions[Catégorie]=Epargnes_budget14[[#This Row],[Epargnes]])*(MONTH(Transactions[Date])=MONTH(DATEVALUE("1"&G$61&"2000")))*(Transactions[Montant])) -> 0 | H64: =SUMPRODUCT((Transactions[Catégorie]=Epargnes_budget14[[#This Row],[Epargnes]])*(MONTH(Transactions[Date])=MONTH(DATEVALUE("1"&H$61&"2000")))*(Transactions[Montant])) -> 0 | I64: =SUMPRODUCT((Transactions[Catégorie]=Epargnes_budget14[[#This Row],[Epargnes]])*(MONTH(Transactions[Date])=MONTH(DATEVALUE("1"&I$61&"2000")))*(Transactions[Montant])) -> 0 | J64: =SUMPRODUCT((Transactions[Catégorie]=Epargnes_budget14[[#This Row],[Epargnes]])*(MONTH(Transactions[Date])=MONTH(DATEVALUE("1"&J$61&"2000")))*(Transactions[Montant])) -> 50000 | K64: =SUMPRODUCT((Transactions[Catégorie]=Epargnes_budget14[[#This Row],[Epargnes]])*(MONTH(Transactions[Date])=MONTH(DATEVALUE("1"&K$61&"2000")))*(Transactions[Montant])) -> 0 | L64: =SUMPRODUCT((Transactions[Catégorie]=Epargnes_budget14[[#This Row],[Epargnes]])*(MONTH(Transactions[Date])=MONTH(DATEVALUE("1"&L$61&"2000")))*(Transactions[Montant])) -> 0 | M64: =SUMPRODUCT((Transactions[Catégorie]=Epargnes_budget14[[#This Row],[Epargnes]])*(MONTH(Transactions[Date])=MONTH(DATEVALUE("1"&M$61&"2000")))*(Transactions[Montant])) -> 0 | N64: =SUMPRODUCT((Transactions[Catégorie]=Epargnes_budget14[[#This Row],[Epargnes]])*(MONTH(Transactions[Date])=MONTH(DATEVALUE("1"&N$61&"2000")))*(Transactions[Montant])) -> 0 | O64: =SUM(Epargnes_budget14[[#This Row],[Janvier]:[Décembre]]) -> 50000
B65: Total | C65: =SUBTOTAL(109,C62:C64) -> 0 | D65: 0 | E65: 0 | F65: 0 | G65: 0 | H65: 0 | I65: 0 | J65: 50000 | K65: 0 | L65: 0 | M65: 0 | N65: 0 | O65: 50000

Sheet Transactions
B6: Date | C6: =TODAY() -> 2025-08-07 | E6: Type
B7: Catégorie | E7: Montant
B8: Finances
B9: Commentaire
B11: Liste des transactions
B13: Date | C13: Type | D13: Catégorie | E13: Finances | F13: Montant | G13: Commentaire
B14: 2025-08-06 | C14: Charges | D14: Transport | E14: Espèce | F14: 1500 | G14: Transport retour pour la maison
B15: 2025-08-06 | C15: Charges | D15: CIE | E15: Wave | F15: 5000 | G15: Facture CIE du mois de juillet
B16: 2025-08-05 | C16: Epargnes | D16: Autres epargnes | E16: Banque | F16: 50000 | G16: Epargne
B17: 2025-08-05 | C17: Crédits | D17: emprunt bancaire | E17: Banque | F17: 10000 | G17: Garantie prêt
B18: 2025-08-05 | C18: Revenus | D18: Salaire | E18: Banque | F18: 650000 | G18: Paie du mois de juin
B19: 2025-08-05 | C19: Charges | D19: Transport | E19: Espèce | F19: 1000 | G19: Transport du matin pour le travail
B20: 2025-08-04 | C20: Revenus | D20: Autres revenus | E20: Wave | F20: 3000 | G20: Remboursement de crédit (Léti)
B21: 2025-08-04 | C21: Charges | D21: Nourriture | E21: Espèce | F21: 2000 | G21: Nourriture du soir (garba chez nicaise)
B22: 2025-08-04 | C22: Charges | D22: Transport | E22: Espèce | F22: 1000 | G22: Transport retour à la maison
B23: 2025-08-04 | C23: Charges | D23: Nourriture | E23: Espèce | F23: 1000 | G23: Porc
B24: 2025-08-04 | C24: Charges | D24: Transport | E24: Espèce | F24: 20000 | G24: Abonnement mensuel au car de transport
B25: 2025-08-03 | C25: Revenus | D25: Salaire | E25: Wave | F25: 3535 | G25: RAN du mois précédent
B26: 2025-08-03 | C26: Revenus | D26: Salaire | E26: Espèce | F26: 20350 | G26: RAN du mois précédent
B27: 2025-08-03 | C27: Crédits | D27: emprunt bancaire | E27: Banque | F27: 72 | G27: Correction des écarts
B28: 2025-08-03 | C28: Autres_charges | D28: Entretien logement | E28: Espèce | F28: 1000 | G28: entretien poubelle
B29: 2025-08-03 | C29: Charges | D29: Agios bancaire | E29: Banque | F29: 12000 | G29: agios mensuel
B30: 2025-08-03 | C30: Crédits | D30: emprunt bancaire | E30: Banque | F30: 82000 | G30: Remboursement de prêt bancaire
B31: 2025-08-03 | C31: Autres_charges | D31: Entretien logement | E31: Espèce | F31: 50000 | G31: Achat de pot de peinture, seau d'eau,remboursement + MOD
B32: 2025-08-03 | C32: Charges | D32: Nourriture | E32: Espèce | F32: 18000 | G32: Achat de sac de riz rizière 25kg
B33: 2025-08-03 | C33: Charges | D33: Dîme & Aumônes | E33: Espèce | F33: 5500 | G33: Quête du 03/08/2025

Sheet Transfert
B6: Date | C6: =TODAY() -> 2025-08-07
B7: Sources | E7: Montant | F7: 300000
B8: Destinations
B9: Commentaire
B11: Liste des transactions
B13: Date | C13: Sources | D13: Destinations | E13: Montant | F13: Commentaire
B14: 2025-08-03 | C14: Banque | D14: Espèce | E14: 105000 | F14: Retrait au guichet le 01/08/2025

Sheet Contrôle
A5: Contrôle
B6: Comptes | C6: Théorique | D6: Final | E6: Ecarts
B7: Espèce | C7: =_xlfn.XLOOKUP(B7,Traitement!$B$60:$B$63,Traitement!$N$60:$N$63,0,0) ->  | D7: 50850 | E7: =C7-D7 -> 
B8: Banque | C8: =_xlfn.XLOOKUP(B8,Traitement!$B$60:$B$63,Traitement!$N$60:$N$63,0,0) ->  | D8: 200928 | E8: =C8-D8 -> 
B9: Wave | C9: =_xlfn.XLOOKUP(B9,Traitement!$B$60:$B$63,Traitement!$N$60:$N$63,0,0) ->  | D9: 3535
B10: Djamo | C10: =_xlfn.XLOOKUP(B10,Traitement!$B$60:$B$63,Traitement!$N$60:$N$63,0,0) -> 
B11: Autres comptes | C11: =SUM(C9:C10) -> 
B12: Total | C12: =C11+C8+C7 ->  | D12: =D11+D8+D7 -> 251778 | E12: =E11+E8+E7 -> 

Sheet Traitement
B1: Réel | C1: Budget | D1: Ratios | E1: Total
A2: Revenus | B2: =Dashboard!C42 -> 676885 | C2: =Dashboard!D42 -> 680000 | D2: =IFERROR(B2/C2,0) -> 0.9954191176 | E2: 1
A3: Charges fixes | B3: =Dashboard!G42+Dashboard!O42 -> 159072 | C3: =Dashboard!H42+Dashboard!P42 -> 304000 | D3: 0.5232631579 | E3: 1
A4: Charges variables | B4: =Dashboard!K42 -> 51000 | C4: =Dashboard!L42 -> 171000 | D4: 0.298245614 | E4: 1
A5: Investissements | B5: =Dashboard!K43 -> 0 | C5: =Dashboard!L43 -> 0 | D5: 0 | E5: 1
A6: Epargnes | B6: =Dashboard!W42 -> 50000 | C6: =Dashboard!X42 -> 127000 | D6: 0.3937007874 | E6: 1
A7: Solde Net | B7: =B2-SUM(B3:B6) -> 416813 | C7: =C2-SUM(C3:C6) -> 78000
A12: Vue d'ensemble | C12: Réel
A13: Revenus | C13: =Dashboard!C42 -> 676885
A14: Charges | C14: =Dashboard!G42 -> 67000
A15: Autres charges & Loisirs | C15: =Dashboard!K42 -> 51000
A16: Crédits | C16: =Dashboard!O42 -> 92072
A17: Investissements | C17: =Dashboard!S42 -> 0
A18: Epargnes | C18: =Dashboard!W42 -> 50000
A22: Dépenses de revenu
A23: Revenus | B23: =Dashboard!C42 -> 676885
A24: Dépenses | B24: =Dashboard!G42+Dashboard!K42+Dashboard!O42+Dashboard!S42+Dashboard!W42 -> 260072
A25: Ratios | B25: =B24/B23 -> 0.384218885 | C25: =1-B25 -> 0.615781115
E26: =MONTH(DATEVALUE("1"&Dashboard!$B$8&"2000"))<=MATCH(Dashboard!$B$8,Epargnes_budget[[#Headers],[Janvier]:[Décembre]],0) -> TRUE
A28: Répartitions des dépenses
A30: Charges | C30: =Dashboard!G42 -> 67000
A31: Autres charges & Loisirs | C31: =Dashboard!$K$42 -> 51000
A32: Crédits | C32: =Dashboard!$O$42 -> 92072
A33: Investissements | C33: =Dashboard!$S$42 -> 0
A34: Epargnes | C34: =Dashboard!$W$42 -> 50000
A37: Evolution epargne
A38: Epargne | B38: Réel | C38: Budget
A39: Compte bloqué | B39: =SUMPRODUCT((MONTH(Transactions[Date])<=MONTH(DATEVALUE("1"&Dashboard!$B$8&"2000")))*(Transactions[Catégorie]=A39)*(Transactions[Montant])) -> 0 | C39: =SUMPRODUCT((MONTH(DATEVALUE("1"&Epargnes_budget[[#Headers],[Janvier]:[Décembre]]&"2000"))<= MONTH(DATEVALUE("1"&Dashboard!$B$8&"2000")))*($A39=Epargnes)* (Budget!$C59:$N59) ) -> 77000
A40: Fond d'urgence | B40: =SUMPRODUCT((MONTH(Transactions[Date])<=MONTH(DATEVALUE("1"&Dashboard!$B$8&"2000")))*(Transactions[Catégorie]=A40)*(Transactions[Montant])) -> 0 | C40: =SUMPRODUCT((MONTH(DATEVALUE("1"&Epargnes_budget[[#Headers],[Janvier]:[Décembre]]&"2000"))<= MONTH(DATEVALUE("1"&Dashboard!$B$8&"2000")))*($A40=Epargnes)* (Budget!$C60:$N60) ) -> 0
A41: Autres epargnes | B41: =SUMPRODUCT((MONTH(Transactions[Date])<=MONTH(DATEVALUE("1"&Dashboard!$B$8&"2000")))*(Transactions[Catégorie]=A41)*(Transactions[Montant])) -> 50000 | C41: =SUMPRODUCT((MONTH(DATEVALUE("1"&Epargnes_budget[[#Headers],[Janvier]:[Décembre]]&"2000"))<= MONTH(DATEVALUE("1"&Dashboard!$B$8&"2000")))*($A41=Epargnes)* (Budget!$C61:$N61) ) -> 50000
A43: Situation Nette de la tréso
A44: Rubriques | B44: Evolution trésorerie | C44: Janvier | D44: Février | E44: Mars | F44: Avril | G44: Mai | H44: Juin | I44: Juillet | J44: Août | K44: Septembre | L44: Octobre | M44: Novembre | N44: Décembre
A45: SI | B45: Espèce | D45: =C60 -> 0 | E45: =D60 -> 0 | F45: 0 | G45: 0 | H45: 0 | I45: 0 | J45: 0 | K45: 24350 | L45: 24350 | M45: 24350 | N45: 24350
A46: SI | B46: Banque | D46: =C61 -> 0 | E46: 0 | F46: 0 | G46: 0 | H46: 0 | I46: 0 | J46: 400000 | K46: 790928 | L46: 790928 | M46: 790928 | N46: 790928
A47: SI | B47: Wave | D47: 0 | E47: 0 | F47: 0 | G47: 0 | H47: 0 | I47: 0 | J47: 0 | K47: 1535 | L47: 1535 | M47: 1535 | N47: 1535
A48: SI | B48: Djamo | D48: 0 | E48: 0 | F48: 0 | G48: 0 | H48: 0 | I48: 0 | J48: 0 | K48: 0 | L48: 0 | M48: 0 | N48: 0
A49: Total | C49: =SUM(C45:C48) -> 0 | D49: =SUM(D45:D48) -> 0 | E49: 0 | F49: 0 | G49: 0 | H49: 0 | I49: 0 | J49: 400000 | K49: 816813 | L49: 816813 | M49: 816813 | N49: 816813
A50: Entrées | B50: Espèce | C50: =SUMPRODUCT((MONTH(Transferts[Date])=MONTH(DATEVALUE("1"&C$44&"2000")))*(Transferts[Destinations]=$B50)*(Transferts[Montant]))+SUMPRODUCT((MONTH(Transactions[Date])=MONTH(DATEVALUE("1"&C$44&"2000")))*(Transactions[Type]="Revenus")*(Transactions[Finances]=$B50)*(Transactions[Montant])) -> 0 | D50: =SUMPRODUCT((MONTH(Transferts[Date])=MONTH(DATEVALUE("1"&D$44&"2000")))*(Transferts[Destinations]=$B50)*(Transferts[Montant]))+SUMPRODUCT((MONTH(Transactions[Date])=MONTH(DATEVALUE("1"&D$44&"2000")))*(Transactions[Type]="Revenus")*(Transactions[Finances]=$B50)*(Transactions[Montant])) -> 0 | E50: =SUMPRODUCT((MONTH(Transferts[Date])=MONTH(DATEVALUE("1"&E$44&"2000")))*(Transferts[Destinations]=$B50)*(Transferts[Montant]))+SUMPRODUCT((MONTH(Transactions[Date])=MONTH(DATEVALUE("1"&E$44&"2000")))*(Transactions[Type]="Revenus")*(Transactions[Finances]=$B50)*(Transactions[Montant])) -> 0 | F50: =SUMPRODUCT((MONTH(Transferts[Date])=MONTH(DATEVALUE("1"&F$44&"2000")))*(Transferts[Destinations]=$B50)*(Transferts[Montant]))+SUMPRODUCT((MONTH(Transactions[Date])=MONTH(DATEVALUE("1"&F$44&"2000")))*(Transactions[Type]="Revenus")*(Transactions[Finances]=$B50)*(Transactions[Montant])) -> 0 | G50: =SUMPRODUCT((MONTH(Transferts[Date])=MONTH(DATEVALUE("1"&G$44&"2000")))*(Transferts[Destinations]=$B50)*(Transferts[Montant]))+SUMPRODUCT((MONTH(Transactions[Date])=MONTH(DATEVALUE("1"&G$44&"2000")))*(Transactions[Type]="Revenus")*(Transactions[Finances]=$B50)*(Transactions[Montant])) -> 0 | H50: =SUMPRODUCT((MONTH(Transferts[Date])=MONTH(DATEVALUE("1"&H$44&"2000")))*(Transferts[Destinations]=$B50)*(Transferts[Montant]))+SUMPRODUCT((MONTH(Transactions[Date])=MONTH(DATEVALUE("1"&H$44&"2000")))*(Transactions[Type]="Revenus")*(Transactions[Finances]=$B50)*(Transactions[Montant])) -> 0 | I50: =SUMPRODUCT((MONTH(Transferts[Date])=MONTH(DATEVALUE("1"&I$44&"2000")))*(Transferts[Destinations]=$B50)*(Transferts[Montant]))+SUMPRODUCT((MONTH(Transactions[Date])=MONTH(DATEVALUE("1"&I$44&"2000")))*(Transactions[Type]="Revenus")*(Transactions[Finances]=$B50)*(Transactions[Montant])) -> 0 | J50: =SUMPRODUCT((MONTH(Transferts[Date])=MONTH(DATEVALUE("1"&J$44&"2000")))*(Transferts[Destinations]=$B50)*(Transferts[Montant]))+SUMPRODUCT((MONTH(Transactions[Date])=MONTH(DATEVALUE("1"&J$44&"2000")))*(Transactions[Type]="Revenus")*(Transactions[Finances]=$B50)*(Transactions[Montant])) -> 125350 | K50: =SUMPRODUCT((MONTH(Transferts[Date])=MONTH(DATEVALUE("1"&K$44&"2000")))*(Transferts[Destinations]=$B50)*(Transferts[Montant]))+SUMPRODUCT((MONTH(Transactions[Date])=MONTH(DATEVALUE("1"&K$44&"2000")))*(Transactions[Type]="Revenus")*(Transactions[Finances]=$B50)*(Transactions[Montant])) -> 0 | L50: =SUMPRODUCT((MONTH(Transferts[Date])=MONTH(DATEVALUE("1"&L$44&"2000")))*(Transferts[Destinations]=$B50)*(Transferts[Montant]))+SUMPRODUCT((MONTH(Transactions[Date])=MONTH(DATEVALUE("1"&L$44&"2000")))*(Transactions[Type]="Revenus")*(Transactions[Finances]=$B50)*(Transactions[Montant])) -> 0 | M50: =SUMPRODUCT((MONTH(Transferts[Date])=MONTH(DATEVALUE("1"&M$44&"2000")))*(Transferts[Destinations]=$B50)*(Transferts[Montant]))+SUMPRODUCT((MONTH(Transactions[Date])=MONTH(DATEVALUE("1"&M$44&"2000")))*(Transactions[Type]="Revenus")*(Transactions[Finances]=$B50)*(Transactions[Montant])) -> 0 | N50: =SUMPRODUCT((MONTH(Transferts[Date])=MONTH(DATEVALUE("1"&N$44&"2000")))*(Transferts[Destinations]=$B50)*(Transferts[Montant]))+SUMPRODUCT((MONTH(Transactions[Date])=MONTH(DATEVALUE("1"&N$44&"2000")))*(Transactions[Type]="Revenus")*(Transactions[Finances]=$B50)*(Transactions[Montant])) -> 0
A51: Entrées | B51: Banque | C51: =SUMPRODUCT((MONTH(Transferts[Date])=MONTH(DATEVALUE("1"&C$44&"2000")))*(Transferts[Destinations]=$B51)*(Transferts[Montant]))+SUMPRODUCT((MONTH(Transactions[Date])=MONTH(DATEVALUE("1"&C$44&"2000")))*(Transactions[Type]="Revenus")*(Transactions[Finances]=$B51)*(Transactions[Montant])) -> 0 | D51: =SUMPRODUCT((MONTH(Transferts[Date])=MONTH(DATEVALUE("1"&D$44&"2000")))*(Transferts[Destinations]=$B51)*(Transferts[Montant]))+SUMPRODUCT((MONTH(Transactions[Date])=MONTH(DATEVALUE("1"&D$44&"2000")))*(Transactions[Type]="Revenus")*(Transactions[Finances]=$B51)*(Transactions[Montant])) -> 0 | E51: =SUMPRODUCT((MONTH(Transferts[Date])=MONTH(DATEVALUE("1"&E$44&"2000")))*(Transferts[Destinations]=$B51)*(Transferts[Montant]))+SUMPRODUCT((MONTH(Transactions[Date])=MONTH(DATEVALUE("1"&E$44&"2000")))*(Transactions[Type]="Revenus")*(Transactions[Finances]=$B51)*(Transactions[Montant])) -> 0 | F51: =SUMPRODUCT((MONTH(Transferts[Date])=MONTH(DATEVALUE("1"&F$44&"2000")))*(Transferts[Destinations]=$B51)*(Transferts[Montant]))+SUMPRODUCT((MONTH(Transactions[Date])=MONTH(DATEVALUE("1"&F$44&"2000")))*(Transactions[Type]="Revenus")*(Transactions[Finances]=$B51)*(Transactions[Montant])) -> 0 | G51: =SUMPRODUCT((MONTH(Transferts[Date])=MONTH(DATEVALUE("1"&G$44&"2000")))*(Transferts[Destinations]=$B51)*(Transferts[Montant]))+SUMPRODUCT((MONTH(Transactions[Date])=MONTH(DATEVALUE("1"&G$44&"2000")))*(Transactions[Type]="Revenus")*(Transactions[Finances]=$B51)*(Transactions[Montant])) -> 0 | H51: =SUMPRODUCT((MONTH(Transferts[Date])=MONTH(DATEVALUE("1"&H$44&"2000")))*(Transferts[Destinations]=$B51)*(Transferts[Montant]))+SUMPRODUCT((MONTH(Transactions[Date])=MONTH(DATEVALUE("1"&H$44&"2000")))*(Transactions[Type]="Revenus")*(Transactions[Finances]=$B51)*(Transactions[Montant])) -> 0 | I51: =SUMPRODUCT((MONTH(Transferts[Date])=MONTH(DATEVALUE("1"&I$44&"2000")))*(Transferts[Destinations]=$B51)*(Transferts[Montant]))+SUMPRODUCT((MONTH(Transactions[Date])=MONTH(DATEVALUE("1"&I$44&"2000")))*(Transactions[Type]="Revenus")*(Transactions[Finances]=$B51)*(Transactions[Montant])) -> 0 | J51: =SUMPRODUCT((MONTH(Transferts[Date])=MONTH(DATEVALUE("1"&J$44&"2000")))*(Transferts[Destinations]=$B51)*(Transferts[Montant]))+SUMPRODUCT((MONTH(Transactions[Date])=MONTH(DATEVALUE("1"&J$44&"2000")))*(Transactions[Type]="Revenus")*(Transactions[Finances]=$B51)*(Transactions[Montant])) -> 650000 | K51: =SUMPRODUCT((MONTH(Transferts[Date])=MONTH(DATEVALUE("1"&K$44&"2000")))*(Transferts[Destinations]=$B51)*(Transferts[Montant]))+SUMPRODUCT((MONTH(Transactions[Date])=MONTH(DATEVALUE("1"&K$44&"2000")))*(Transactions[Type]="Revenus")*(Transactions[Finances]=$B51)*(Transactions[Montant])) -> 0 | L51: =SUMPRODUCT((MONTH(Transferts[Date])=MONTH(DATEVALUE("1"&L$44&"2000")))*(Transferts[Destinations]=$B51)*(Transferts[Montant]))+SUMPRODUCT((MONTH(Transactions[Date])=MONTH(DATEVALUE("1"&L$44&"2000")))*(Transactions[Type]="Revenus")*(Transactions[Finances]=$B51)*(Transactions[Montant])) -> 0 | M51: =SUMPRODUCT((MONTH(Transferts[Date])=MONTH(DATEVALUE("1"&M$44&"2000")))*(Transferts[Destinations]=$B51)*(Transferts[Montant]))+SUMPRODUCT((MONTH(Transactions[Date])=MONTH(DATEVALUE("1"&M$44&"2000")))*(Transactions[Type]="Revenus")*(Transactions[Finances]=$B51)*(Transactions[Montant])) -> 0 | N51: =SUMPRODUCT((MONTH(Transferts[Date])=MONTH(DATEVALUE("1"&N$44&"2000")))*(Transferts[Destinations]=$B51)*(Transferts[Montant]))+SUMPRODUCT((MONTH(Transactions[Date])=MONTH(DATEVALUE("1"&N$44&"2000")))*(Transactions[Type]="Revenus")*(Transactions[Finances]=$B51)*(Transactions[Montant])) -> 0
A52: Entrées | B52: Wave | C52: =SUMPRODUCT((MONTH(Transferts[Date])=MONTH(DATEVALUE("1"&C$44&"2000")))*(Transferts[Destinations]=$B52)*(Transferts[Montant]))+SUMPRODUCT((MONTH(Transactions[Date])=MONTH(DATEVALUE("1"&C$44&"2000")))*(Transactions[Type]="Revenus")*(Transactions[Finances]=$B52)*(Transactions[Montant])) -> 0 | D52: =SUMPRODUCT((MONTH(Transferts[Date])=MONTH(DATEVALUE("1"&D$44&"2000")))*(Transferts[Destinations]=$B52)*(Transferts[Montant]))+SUMPRODUCT((MONTH(Transactions[Date])=MONTH(DATEVALUE("1"&D$44&"2000")))*(Transactions[Type]="Revenus")*(Transactions[Finances]=$B52)*(Transactions[Montant])) -> 0 | E52: =SUMPRODUCT((MONTH(Transferts[Date])=MONTH(DATEVALUE("1"&E$44&"2000")))*(Transferts[Destinations]=$B52)*(Transferts[Montant]))+SUMPRODUCT((MONTH(Transactions[Date])=MONTH(DATEVALUE("1"&E$44&"2000")))*(Transactions[Type]="Revenus")*(Transactions[Finances]=$B52)*(Transactions[Montant])) -> 0 | F52: =SUMPRODUCT((MONTH(Transferts[Date])=MONTH(DATEVALUE("1"&F$44&"2000")))*(Transferts[Destinations]=$B52)*(Transferts[Montant]))+SUMPRODUCT((MONTH(Transactions[Date])=MONTH(DATEVALUE("1"&F$44&"2000")))*(Transactions[Type]="Revenus")*(Transactions[Finances]=$B52)*(Transactions[Montant])) -> 0 | G52: =SUMPRODUCT((MONTH(Transferts[Date])=MONTH(DATEVALUE("1"&G$44&"2000")))*(Transferts[Destinations]=$B52)*(Transferts[Montant]))+SUMPRODUCT((MONTH(Transactions[Date])=MONTH(DATEVALUE("1"&G$44&"2000")))*(Transactions[Type]="Revenus")*(Transactions[Finances]=$B52)*(Transactions[Montant])) -> 0 | H52: =SUMPRODUCT((MONTH(Transferts[Date])=MONTH(DATEVALUE("1"&H$44&"2000")))*(Transferts[Destinations]=$B52)*(Transferts[Montant]))+SUMPRODUCT((MONTH(Transactions[Date])=MONTH(DATEVALUE("1"&H$44&"2000")))*(Transactions[Type]="Revenus")*(Transactions[Finances]=$B52)*(Transactions[Montant])) -> 0 | I52: =SUMPRODUCT((MONTH(Transferts[Date])=MONTH(DATEVALUE("1"&I$44&"2000")))*(Transferts[Destinations]=$B52)*(Transferts[Montant]))+SUMPRODUCT((MONTH(Transactions[Date])=MONTH(DATEVALUE("1"&I$44&"2000")))*(Transactions[Type]="Revenus")*(Transactions[Finances]=$B52)*(Transactions[Montant])) -> 0 | J52: =SUMPRODUCT((MONTH(Transferts[Date])=MONTH(DATEVALUE("1"&J$44&"2000")))*(Transferts[Destinations]=$B52)*(Transferts[Montant]))+SUMPRODUCT((MONTH(Transactions[Date])=MONTH(DATEVALUE("1"&J$44&"2000")))*(Transactions[Type]="Revenus")*(Transactions[Finances]=$B52)*(Transactions[Montant])) -> 6535 | K52: =SUMPRODUCT((MONTH(Transferts[Date])=MONTH(DATEVALUE("1"&K$44&"2000")))*(Transferts[Destinations]=$B52)*(Transferts[Montant]))+SUMPRODUCT((MONTH(Transactions[Date])=MONTH(DATEVALUE("1"&K$44&"2000")))*(Transactions[Type]="Revenus")*(Transactions[Finances]=$B52)*(Transactions[Montant])) -> 0 | L52: =SUMPRODUCT((MONTH(Transferts[Date])=MONTH(DATEVALUE("1"&L$44&"2000")))*(Transferts[Destinations]=$B52)*(Transferts[Montant]))+SUMPRODUCT((MONTH(Transactions[Date])=MONTH(DATEVALUE("1"&L$44&"2000")))*(Transactions[Type]="Revenus")*(Transactions[Finances]=$B52)*(Transactions[Montant])) -> 0 | M52: =SUMPRODUCT((MONTH(Transferts[Date])=MONTH(DATEVALUE("1"&M$44&"2000")))*(Transferts[Destinations]=$B52)*(Transferts[Montant]))+SUMPRODUCT((MONTH(Transactions[Date])=MONTH(DATEVALUE("1"&M$44&"2000")))*(Transactions[Type]="Revenus")*(Transactions[Finances]=$B52)*(Transactions[Montant])) -> 0 | N52: =SUMPRODUCT((MONTH(Transferts[Date])=MONTH(DATEVALUE("1"&N$44&"2000")))*(Transferts[Destinations]=$B52)*(Transferts[Montant]))+SUMPRODUCT((MONTH(Transactions[Date])=MONTH(DATEVALUE("1"&N$44&"2000")))*(Transactions[Type]="Revenus")*(Transactions[Finances]=$B52)*(Transactions[Montant])) -> 0
A53: Entrées | B53: Djamo | C53: =SUMPRODUCT((MONTH(Transferts[Date])=MONTH(DATEVALUE("1"&C$44&"2000")))*(Transferts[Destinations]=$B53)*(Transferts[Montant]))+SUMPRODUCT((MONTH(Transactions[Date])=MONTH(DATEVALUE("1"&C$44&"2000")))*(Transactions[Type]="Revenus")*(Transactions[Finances]=$B53)*(Transactions[Montant])) -> 0 | D53: =SUMPRODUCT((MONTH(Transferts[Date])=MONTH(DATEVALUE("1"&D$44&"2000")))*(Transferts[Destinations]=$B53)*(Transferts[Montant]))+SUMPRODUCT((MONTH(Transactions[Date])=MONTH(DATEVALUE("1"&D$44&"2000")))*(Transactions[Type]="Revenus")*(Transactions[Finances]=$B53)*(Transactions[Montant])) -> 0 | E53: =SUMPRODUCT((MONTH(Transferts[Date])=MONTH(DATEVALUE("1"&E$44&"2000")))*(Transferts[Destinations]=$B53)*(Transferts[Montant]))+SUMPRODUCT((MONTH(Transactions[Date])=MONTH(DATEVALUE("1"&E$44&"2000")))*(Transactions[Type]="Revenus")*(Transactions[Finances]=$B53)*(Transactions[Montant])) -> 0 | F53: =SUMPRODUCT((MONTH(Transferts[Date])=MONTH(DATEVALUE("1"&F$44&"2000")))*(Transferts[Destinations]=$B53)*(Transferts[Montant]))+SUMPRODUCT((MONTH(Transactions[Date])=MONTH(DATEVALUE("1"&F$44&"2000")))*(Transactions[Type]="Revenus")*(Transactions[Finances]=$B53)*(Transactions[Montant])) -> 0 | G53: =SUMPRODUCT((MONTH(Transferts[Date])=MONTH(DATEVALUE("1"&G$44&"2000")))*(Transferts[Destinations]=$B53)*(Transferts[Montant]))+SUMPRODUCT((MONTH(Transactions[Date])=MONTH(DATEVALUE("1"&G$44&"2000")))*(Transactions[Type]="Revenus")*(Transactions[Finances]=$B53)*(Transactions[Montant])) -> 0 | H53: =SUMPRODUCT((MONTH(Transferts[Date])=MONTH(DATEVALUE("1"&H$44&"2000")))*(Transferts[Destinations]=$B53)*(Transferts[Montant]))+SUMPRODUCT((MONTH(Transactions[Date])=MONTH(DATEVALUE("1"&H$44&"2000")))*(Transactions[Type]="Revenus")*(Transactions[Finances]=$B53)*(Transactions[Montant])) -> 0 | I53: =SUMPRODUCT((MONTH(Transferts[Date])=MONTH(DATEVALUE("1"&I$44&"2000")))*(Transferts[Destinations]=$B53)*(Transferts[Montant]))+SUMPRODUCT((MONTH(Transactions[Date])=MONTH(DATEVALUE("1"&I$44&"2000")))*(Transactions[Type]="Revenus")*(Transactions[Finances]=$B53)*(Transactions[Montant])) -> 0 | J53: =SUMPRODUCT((MONTH(Transferts[Date])=MONTH(DATEVALUE("1"&J$44&"2000")))*(Transferts[Destinations]=$B53)*(Transferts[Montant]))+SUMPRODUCT((MONTH(Transactions[Date])=MONTH(DATEVALUE("1"&J$44&"2000")))*(Transactions[Type]="Revenus")*(Transactions[Finances]=$B53)*(Transactions[Montant])) -> 0 | K53: =SUMPRODUCT((MONTH(Transferts[Date])=MONTH(DATEVALUE("1"&K$44&"2000")))*(Transferts[Destinations]=$B53)*(Transferts[Montant]))+SUMPRODUCT((MONTH(Transactions[Date])=MONTH(DATEVALUE("1"&K$44&"2000")))*(Transactions[Type]="Revenus")*(Transactions[Finances]=$B53)*(Transactions[Montant])) -> 0 | L53: =SUMPRODUCT((MONTH(Transferts[Date])=MONTH(DATEVALUE("1"&L$44&"2000")))*(Transferts[Destinations]=$B53)*(Transferts[Montant]))+SUMPRODUCT((MONTH(Transactions[Date])=MONTH(DATEVALUE("1"&L$44&"2000")))*(Transactions[Type]="Revenus")*(Transactions[Finances]=$B53)*(Transactions[Montant])) -> 0 | M53: =SUMPRODUCT((MONTH(Transferts[Date])=MONTH(DATEVALUE("1"&M$44&"2000")))*(Transferts[Destinations]=$B53)*(Transferts[Montant]))+SUMPRODUCT((MONTH(Transactions[Date])=MONTH(DATEVALUE("1"&M$44&"2000")))*(Transactions[Type]="Revenus")*(Transactions[Finances]=$B53)*(Transactions[Montant])) -> 0 | N53: =SUMPRODUCT((MONTH(Transferts[Date])=MONTH(DATEVALUE("1"&N$44&"2000")))*(Transferts[Destinations]=$B53)*(Transferts[Montant]))+SUMPRODUCT((MONTH(Transactions[Date])=MONTH(DATEVALUE("1"&N$44&"2000")))*(Transactions[Type]="Revenus")*(Transactions[Finances]=$B53)*(Transactions[Montant])) -> 0
A54: Total | C54: =SUM(C50:C53) -> 0 | D54: =SUM(D50:D53) -> 0 | E54: =SUM(E50:E53) -> 0 | F54: =SUM(F50:F53) -> 0 | G54: =SUM(G50:G53) -> 0 | H54: =SUM(H50:H53) -> 0 | I54: =SUM(I50:I53) -> 0 | J54: =SUM(J50:J53) -> 781885 | K54: =SUM(K50:K53) -> 0 | L54: =SUM(L50:L53) -> 0 | M54: =SUM(M50:M53) -> 0 | N54: =SUM(N50:N53) -> 0
A55: Sorties | B55: Espèce | C55: =SUMPRODUCT((MONTH(Transferts[Date])=MONTH(DATEVALUE("1"&C$44&"2000")))*(Transferts[Sources]=$B55)*(Transferts[Montant]))+SUMPRODUCT((MONTH(Transactions[Date])=MONTH(DATEVALUE("1"&C$44&"2000")))*(Transactions[Type]<>"Revenus")*(Transactions[Finances]=$B50)*(Transactions[Montant])) -> 0 | D55: =SUMPRODUCT((MONTH(Transferts[Date])=MONTH(DATEVALUE("1"&D$44&"2000")))*(Transferts[Sources]=$B55)*(Transferts[Montant]))+SUMPRODUCT((MONTH(Transactions[Date])=MONTH(DATEVALUE("1"&D$44&"2000")))*(Transactions[Type]<>"Revenus")*(Transactions[Finances]=$B55)*(Transactions[Montant])) -> 0 | E55: =SUMPRODUCT((MONTH(Transferts[Date])=MONTH(DATEVALUE("1"&E$44&"2000")))*(Transferts[Sources]=$B55)*(Transferts[Montant]))+SUMPRODUCT((MONTH(Transactions[Date])=MONTH(DATEVALUE("1"&E$44&"2000")))*(Transactions[Type]<>"Revenus")*(Transactions[Finances]=$B50)*(Transactions[Montant])) -> 0 | F55: =SUMPRODUCT((MONTH(Transferts[Date])=MONTH(DATEVALUE("1"&F$44&"2000")))*(Transferts[Sources]=$B55)*(Transferts[Montant]))+SUMPRODUCT((MONTH(Transactions[Date])=MONTH(DATEVALUE("1"&F$44&"2000")))*(Transactions[Type]<>"Revenus")*(Transactions[Finances]=$B50)*(Transactions[Montant])) -> 0 | G55: =SUMPRODUCT((MONTH(Transferts[Date])=MONTH(DATEVALUE("1"&G$44&"2000")))*(Transferts[Sources]=$B55)*(Transferts[Montant]))+SUMPRODUCT((MONTH(Transactions[Date])=MONTH(DATEVALUE("1"&G$44&"2000")))*(Transactions[Type]<>"Revenus")*(Transactions[Finances]=$B50)*(Transactions[Montant])) -> 0 | H55: =SUMPRODUCT((MONTH(Transferts[Date])=MONTH(DATEVALUE("1"&H$44&"2000")))*(Transferts[Sources]=$B55)*(Transferts[Montant]))+SUMPRODUCT((MONTH(Transactions[Date])=MONTH(DATEVALUE("1"&H$44&"2000")))*(Transactions[Type]<>"Revenus")*(Transactions[Finances]=$B50)*(Transactions[Montant])) -> 0 | I55: =SUMPRODUCT((MONTH(Transferts[Date])=MONTH(DATEVALUE("1"&I$44&"2000")))*(Transferts[Sources]=$B55)*(Transferts[Montant]))+SUMPRODUCT((MONTH(Transactions[Date])=MONTH(DATEVALUE("1"&I$44&"2000")))*(Transactions[Type]<>"Revenus")*(Transactions[Finances]=$B50)*(Transactions[Montant])) -> 0 | J55: =SUMPRODUCT((MONTH(Transferts[Date])=MONTH(DATEVALUE("1"&J$44&"2000")))*(Transferts[Sources]=$B55)*(Transferts[Montant]))+SUMPRODUCT((MONTH(Transactions[Date])=MONTH(DATEVALUE("1"&J$44&"2000")))*(Transactions[Type]<>"Revenus")*(Transactions[Finances]=$B50)*(Transactions[Montant])) -> 101000 | K55: =SUMPRODUCT((MONTH(Transferts[Date])=MONTH(DATEVALUE("1"&K$44&"2000")))*(Transferts[Sources]=$B55)*(Transferts[Montant]))+SUMPRODUCT((MONTH(Transactions[Date])=MONTH(DATEVALUE("1"&K$44&"2000")))*(Transactions[Type]<>"Revenus")*(Transactions[Finances]=$B50)*(Transactions[Montant])) -> 0 | L55: =SUMPRODUCT((MONTH(Transferts[Date])=MONTH(DATEVALUE("1"&L$44&"2000")))*(Transferts[Sources]=$B55)*(Transferts[Montant]))+SUMPRODUCT((MONTH(Transactions[Date])=MONTH(DATEVALUE("1"&L$44&"2000")))*(Transactions[Type]<>"Revenus")*(Transactions[Finances]=$B50)*(Transactions[Montant])) -> 0 | M55: =SUMPRODUCT((MONTH(Transferts[Date])=MONTH(DATEVALUE("1"&M$44&"2000")))*(Transferts[Sources]=$B55)*(Transferts[Montant]))+SUMPRODUCT((MONTH(Transactions[Date])=MONTH(DATEVALUE("1"&M$44&"2000")))*(Transactions[Type]<>"Revenus")*(Transactions[Finances]=$B50)*(Transactions[Montant])) -> 0 | N55: =SUMPRODUCT((MONTH(Transferts[Date])=MONTH(DATEVALUE("1"&N$44&"2000")))*(Transferts[Sources]=$B55)*(Transferts[Montant]))+SUMPRODUCT((MONTH(Transactions[Date])=MONTH(DATEVALUE("1"&N$44&"2000")))*(Transactions[Type]<>"Revenus")*(Transactions[Finances]=$B50)*(Transactions[Montant])) -> 0
A56: Sorties | B56: Banque | C56: =SUMPRODUCT((MONTH(Transferts[Date])=MONTH(DATEVALUE("1"&C$44&"2000")))*(Transferts[Sources]=$B56)*(Transferts[Montant]))+SUMPRODUCT((MONTH(Transactions[Date])=MONTH(DATEVALUE("1"&C$44&"2000")))*(Transactions[Type]<>"Revenus")*(Transactions[Finances]=$B51)*(Transactions[Montant])) -> 0 | D56: =SUMPRODUCT((MONTH(Transferts[Date])=MONTH(DATEVALUE("1"&D$44&"2000")))*(Transferts[Sources]=$B56)*(Transferts[Montant]))+SUMPRODUCT((MONTH(Transactions[Date])=MONTH(DATEVALUE("1"&D$44&"2000")))*(Transactions[Type]<>"Revenus")*(Transactions[Finances]=$B56)*(Transactions[Montant])) -> 0 | E56: =SUMPRODUCT((MONTH(Transferts[Date])=MONTH(DATEVALUE("1"&E$44&"2000")))*(Transferts[Sources]=$B56)*(Transferts[Montant]))+SUMPRODUCT((MONTH(Transactions[Date])=MONTH(DATEVALUE("1"&E$44&"2000")))*(Transactions[Type]<>"Revenus")*(Transactions[Finances]=$B51)*(Transactions[Montant])) -> 0 | F56: =SUMPRODUCT((MONTH(Transferts[Date])=MONTH(DATEVALUE("1"&F$44&"2000")))*(Transferts[Sources]=$B56)*(Transferts[Montant]))+SUMPRODUCT((MONTH(Transactions[Date])=MONTH(DATEVALUE("1"&F$44&"2000")))*(Transactions[Type]<>"Revenus")*(Transactions[Finances]=$B51)*(Transactions[Montant])) -> 0 | G56: =SUMPRODUCT((MONTH(Transferts[Date])=MONTH(DATEVALUE("1"&G$44&"2000")))*(Transferts[Sources]=$B56)*(Transferts[Montant]))+SUMPRODUCT((MONTH(Transactions[Date])=MONTH(DATEVALUE("1"&G$44&"2000")))*(Transactions[Type]<>"Revenus")*(Transactions[Finances]=$B51)*(Transactions[Montant])) -> 0 | H56: =SUMPRODUCT((MONTH(Transferts[Date])=MONTH(DATEVALUE("1"&H$44&"2000")))*(Transferts[Sources]=$B56)*(Transferts[Montant]))+SUMPRODUCT((MONTH(Transactions[Date])=MONTH(DATEVALUE("1"&H$44&"2000")))*(Transactions[Type]<>"Revenus")*(Transactions[Finances]=$B51)*(Transactions[Montant])) -> 0 | I56: =SUMPRODUCT((MONTH(Transferts[Date])=MONTH(DATEVALUE("1"&I$44&"2000")))*(Transferts[Sources]=$B56)*(Transferts[Montant]))+SUMPRODUCT((MONTH(Transactions[Date])=MONTH(DATEVALUE("1"&I$44&"2000")))*(Transactions[Type]<>"Revenus")*(Transactions[Finances]=$B51)*(Transactions[Montant])) -> 0 | J56: =SUMPRODUCT((MONTH(Transferts[Date])=MONTH(DATEVALUE("1"&J$44&"2000")))*(Transferts[Sources]=$B56)*(Transferts[Montant]))+SUMPRODUCT((MONTH(Transactions[Date])=MONTH(DATEVALUE("1"&J$44&"2000")))*(Transactions[Type]<>"Revenus")*(Transactions[Finances]=$B51)*(Transactions[Montant])) -> 259072 | K56: =SUMPRODUCT((MONTH(Transferts[Date])=MONTH(DATEVALUE("1"&K$44&"2000")))*(Transferts[Sources]=$B56)*(Transferts[Montant]))+SUMPRODUCT((MONTH(Transactions[Date])=MONTH(DATEVALUE("1"&K$44&"2000")))*(Transactions[Type]<>"Revenus")*(Transactions[Finances]=$B51)*(Transactions[Montant])) -> 0 | L56: =SUMPRODUCT((MONTH(Transferts[Date])=MONTH(DATEVALUE("1"&L$44&"2000")))*(Transferts[Sources]=$B56)*(Transferts[Montant]))+SUMPRODUCT((MONTH(Transactions[Date])=MONTH(DATEVALUE("1"&L$44&"2000")))*(Transactions[Type]<>"Revenus")*(Transactions[Finances]=$B51)*(Transactions[Montant])) -> 0 | M56: =SUMPRODUCT((MONTH(Transferts[Date])=MONTH(DATEVALUE("1"&M$44&"2000")))*(Transferts[Sources]=$B56)*(Transferts[Montant]))+SUMPRODUCT((MONTH(Transactions[Date])=MONTH(DATEVALUE("1"&M$44&"2000")))*(Transactions[Type]<>"Revenus")*(Transactions[Finances]=$B51)*(Transactions[Montant])) -> 0 | N56: =SUMPRODUCT((MONTH(Transferts[Date])=MONTH(DATEVALUE("1"&N$44&"2000")))*(Transferts[Sources]=$B56)*(Transferts[Montant]))+SUMPRODUCT((MONTH(Transactions[Date])=MONTH(DATEVALUE("1"&N$44&"2000")))*(Transactions[Type]<>"Revenus")*(Transactions[Finances]=$B51)*(Transactions[Montant])) -> 0
A57: Sorties | B57: Wave | C57: =SUMPRODUCT((MONTH(Transferts[Date])=MONTH(DATEVALUE("1"&C$44&"2000")))*(Transferts[Sources]=$B57)*(Transferts[Montant]))+SUMPRODUCT((MONTH(Transactions[Date])=MONTH(DATEVALUE("1"&C$44&"2000")))*(Transactions[Type]<>"Revenus")*(Transactions[Finances]=$B52)*(Transactions[Montant])) -> 0 | D57: =SUMPRODUCT((MONTH(Transferts[Date])=MONTH(DATEVALUE("1"&D$44&"2000")))*(Transferts[Sources]=$B57)*(Transferts[Montant]))+SUMPRODUCT((MONTH(Transactions[Date])=MONTH(DATEVALUE("1"&D$44&"2000")))*(Transactions[Type]<>"Revenus")*(Transactions[Finances]=$B57)*(Transactions[Montant])) -> 0 | E57: =SUMPRODUCT((MONTH(Transferts[Date])=MONTH(DATEVALUE("1"&E$44&"2000")))*(Transferts[Sources]=$B57)*(Transferts[Montant]))+SUMPRODUCT((MONTH(Transactions[Date])=MONTH(DATEVALUE("1"&E$44&"2000")))*(Transactions[Type]<>"Revenus")*(Transactions[Finances]=$B52)*(Transactions[Montant])) -> 0 | F57: =SUMPRODUCT((MONTH(Transferts[Date])=MONTH(DATEVALUE("1"&F$44&"2000")))*(Transferts[Sources]=$B57)*(Transferts[Montant]))+SUMPRODUCT((MONTH(Transactions[Date])=MONTH(DATEVALUE("1"&F$44&"2000")))*(Transactions[Type]<>"Revenus")*(Transactions[Finances]=$B52)*(Transactions[Montant])) -> 0 | G57: =SUMPRODUCT((MONTH(Transferts[Date])=MONTH(DATEVALUE("1"&G$44&"2000")))*(Transferts[Sources]=$B57)*(Transferts[Montant]))+SUMPRODUCT((MONTH(Transactions[Date])=MONTH(DATEVALUE("1"&G$44&"2000")))*(Transactions[Type]<>"Revenus")*(Transactions[Finances]=$B52)*(Transactions[Montant])) -> 0 | H57: =SUMPRODUCT((MONTH(Transferts[Date])=MONTH(DATEVALUE("1"&H$44&"2000")))*(Transferts[Sources]=$B57)*(Transferts[Montant]))+SUMPRODUCT((MONTH(Transactions[Date])=MONTH(DATEVALUE("1"&H$44&"2000")))*(Transactions[Type]<>"Revenus")*(Transactions[Finances]=$B52)*(Transactions[Montant])) -> 0 | I57: =SUMPRODUCT((MONTH(Transferts[Date])=MONTH(DATEVALUE("1"&I$44&"2000")))*(Transferts[Sources]=$B57)*(Transferts[Montant]))+SUMPRODUCT((MONTH(Transactions[Date])=MONTH(DATEVALUE("1"&I$44&"2000")))*(Transactions[Type]<>"Revenus")*(Transactions[Finances]=$B52)*(Transactions[Montant])) -> 0 | J57: =SUMPRODUCT((MONTH(Transferts[Date])=MONTH(DATEVALUE("1"&J$44&"2000")))*(Transferts[Sources]=$B57)*(Transferts[Montant]))+SUMPRODUCT((MONTH(Transactions[Date])=MONTH(DATEVALUE("1"&J$44&"2000")))*(Transactions[Type]<>"Revenus")*(Transactions[Finances]=$B52)*(Transactions[Montant])) -> 5000 | K57: =SUMPRODUCT((MONTH(Transferts[Date])=MONTH(DATEVALUE("1"&K$44&"2000")))*(Transferts[Sources]=$B57)*(Transferts[Montant]))+SUMPRODUCT((MONTH(Transactions[Date])=MONTH(DATEVALUE("1"&K$44&"2000")))*(Transactions[Type]<>"Revenus")*(Transactions[Finances]=$B52)*(Transactions[Montant])) -> 0 | L57: =SUMPRODUCT((MONTH(Transferts[Date])=MONTH(DATEVALUE("1"&L$44&"2000")))*(Transferts[Sources]=$B57)*(Transferts[Montant]))+SUMPRODUCT((MONTH(Transactions[Date])=MONTH(DATEVALUE("1"&L$44&"2000")))*(Transactions[Type]<>"Revenus")*(Transactions[Finances]=$B52)*(Transactions[Montant])) -> 0 | M57: =SUMPRODUCT((MONTH(Transferts[Date])=MONTH(DATEVALUE("1"&M$44&"2000")))*(Transferts[Sources]=$B57)*(Transferts[Montant]))+SUMPRODUCT((MONTH(Transactions[Date])=MONTH(DATEVALUE("1"&M$44&"2000")))*(Transactions[Type]<>"Revenus")*(Transactions[Finances]=$B52)*(Transactions[Montant])) -> 0 | N57: =SUMPRODUCT((MONTH(Transferts[Date])=MONTH(DATEVALUE("1"&N$44&"2000")))*(Transferts[Sources]=$B57)*(Transferts[Montant]))+SUMPRODUCT((MONTH(Transactions[Date])=MONTH(DATEVALUE("1"&N$44&"2000")))*(Transactions[Type]<>"Revenus")*(Transactions[Finances]=$B52)*(Transactions[Montant])) -> 0
A58: Sorties | B58: Djamo | C58: =SUMPRODUCT((MONTH(Transferts[Date])=MONTH(DATEVALUE("1"&C$44&"2000")))*(Transferts[Sources]=$B58)*(Transferts[Montant]))+SUMPRODUCT((MONTH(Transactions[Date])=MONTH(DATEVALUE("1"&C$44&"2000")))*(Transactions[Type]<>"Revenus")*(Transactions[Finances]=$B53)*(Transactions[Montant])) -> 0 | D58: =SUMPRODUCT((MONTH(Transferts[Date])=MONTH(DATEVALUE("1"&D$44&"2000")))*(Transferts[Sources]=$B58)*(Transferts[Montant]))+SUMPRODUCT((MONTH(Transactions[Date])=MONTH(DATEVALUE("1"&D$44&"2000")))*(Transactions[Type]<>"Revenus")*(Transactions[Finances]=$B58)*(Transactions[Montant])) -> 0 | E58: =SUMPRODUCT((MONTH(Transferts[Date])=MONTH(DATEVALUE("1"&E$44&"2000")))*(Transferts[Sources]=$B58)*(Transferts[Montant]))+SUMPRODUCT((MONTH(Transactions[Date])=MONTH(DATEVALUE("1"&E$44&"2000")))*(Transactions[Type]<>"Revenus")*(Transactions[Finances]=$B53)*(Transactions[Montant])) -> 0 | F58: =SUMPRODUCT((MONTH(Transferts[Date])=MONTH(DATEVALUE("1"&F$44&"2000")))*(Transferts[Sources]=$B58)*(Transferts[Montant]))+SUMPRODUCT((MONTH(Transactions[Date])=MONTH(DATEVALUE("1"&F$44&"2000")))*(Transactions[Type]<>"Revenus")*(Transactions[Finances]=$B53)*(Transactions[Montant])) -> 0 | G58: =SUMPRODUCT((MONTH(Transferts[Date])=MONTH(DATEVALUE("1"&G$44&"2000")))*(Transferts[Sources]=$B58)*(Transferts[Montant]))+SUMPRODUCT((MONTH(Transactions[Date])=MONTH(DATEVALUE("1"&G$44&"2000")))*(Transactions[Type]<>"Revenus")*(Transactions[Finances]=$B53)*(Transactions[Montant])) -> 0 | H58: =SUMPRODUCT((MONTH(Transferts[Date])=MONTH(DATEVALUE("1"&H$44&"2000")))*(Transferts[Sources]=$B58)*(Transferts[Montant]))+SUMPRODUCT((MONTH(Transactions[Date])=MONTH(DATEVALUE("1"&H$44&"2000")))*(Transactions[Type]<>"Revenus")*(Transactions[Finances]=$B53)*(Transactions[Montant])) -> 0 | I58: =SUMPRODUCT((MONTH(Transferts[Date])=MONTH(DATEVALUE("1"&I$44&"2000")))*(Transferts[Sources]=$B58)*(Transferts[Montant]))+SUMPRODUCT((MONTH(Transactions[Date])=MONTH(DATEVALUE("1"&I$44&"2000")))*(Transactions[Type]<>"Revenus")*(Transactions[Finances]=$B53)*(Transactions[Montant])) -> 0 | J58: =SUMPRODUCT((MONTH(Transferts[Date])=MONTH(DATEVALUE("1"&J$44&"2000")))*(Transferts[Sources]=$B58)*(Transferts[Montant]))+SUMPRODUCT((MONTH(Transactions[Date])=MONTH(DATEVALUE("1"&J$44&"2000")))*(Transactions[Type]<>"Revenus")*(Transactions[Finances]=$B53)*(Transactions[Montant])) -> 0 | K58: =SUMPRODUCT((MONTH(Transferts[Date])=MONTH(DATEVALUE("1"&K$44&"2000")))*(Transferts[Sources]=$B58)*(Transferts[Montant]))+SUMPRODUCT((MONTH(Transactions[Date])=MONTH(DATEVALUE("1"&K$44&"2000")))*(Transactions[Type]<>"Revenus")*(Transactions[Finances]=$B53)*(Transactions[Montant])) -> 0 | L58: =SUMPRODUCT((MONTH(Transferts[Date])=MONTH(DATEVALUE("1"&L$44&"2000")))*(Transferts[Sources]=$B58)*(Transferts[Montant]))+SUMPRODUCT((MONTH(Transactions[Date])=MONTH(DATEVALUE("1"&L$44&"2000")))*(Transactions[Type]<>"Revenus")*(Transactions[Finances]=$B53)*(Transactions[Montant])) -> 0 | M58: =SUMPRODUCT((MONTH(Transferts[Date])=MONTH(DATEVALUE("1"&M$44&"2000")))*(Transferts[Sources]=$B58)*(Transferts[Montant]))+SUMPRODUCT((MONTH(Transactions[Date])=MONTH(DATEVALUE("1"&M$44&"2000")))*(Transactions[Type]<>"Revenus")*(Transactions[Finances]=$B53)*(Transactions[Montant])) -> 0 | N58: =SUMPRODUCT((MONTH(Transferts[Date])=MONTH(DATEVALUE("1"&N$44&"2000")))*(Transferts[Sources]=$B58)*(Transferts[Montant]))+SUMPRODUCT((MONTH(Transactions[Date])=MONTH(DATEVALUE("1"&N$44&"2000")))*(Transactions[Type]<>"Revenus")*(Transactions[Finances]=$B53)*(Transactions[Montant])) -> 0
A59: Total | C59: =SUM(C55:C58) -> 0 | D59: =SUM(D55:D58) -> 0 | E59: =SUM(E55:E58) -> 0 | F59: =SUM(F55:F58) -> 0 | G59: =SUM(G55:G58) -> 0 | H59: =SUM(H55:H58) -> 0 | I59: =SUM(I55:I58) -> 0 | J59: =SUM(J55:J58) -> 365072 | K59: =SUM(K55:K58) -> 0 | L59: =SUM(L55:L58) -> 0 | M59: =SUM(M55:M58) -> 0 | N59: =SUM(N55:N58) -> 0
A60: SF | B60: Espèce | C60: =C45+C50-C55 -> 0 | D60: =D45+D50-D55 -> 0 | E60: 0 | F60: 0 | G60: 0 | H60: 0 | I60: 0 | J60: 24350 | K60: 24350 | L60: 24350 | M60: 24350 | N60: 24350
A61: SF | B61: Banque | C61: =C46+C51-C56 -> 0 | D61: 0 | E61: 0 | F61: 0 | G61: 0 | H61: 0 | I61: 0 | J61: 790928 | K61: 790928 | L61: 790928 | M61: 790928 | N61: 790928
A62: SF | B62: Wave | C62: =C47+C52-C57 -> 0 | D62: 0 | E62: 0 | F62: 0 | G62: 0 | H62: 0 | I62: 0 | J62: 1535 | K62: 1535 | L62: 1535 | M62: 1535 | N62: 1535
A63: SF | B63: Djamo | C63: =C48+C53-C58 -> 0 | D63: 0 | E63: 0 | F63: 0 | G63: 0 | H63: 0 | I63: 0 | J63: 0 | K63: 0 | L63: 0 | M63: 0 | N63: 0
A64: Total | C64: =SUM(C60:C63) -> 0 | D64: =SUM(D60:D63) -> 0 | E64: =SUM(E60:E63) -> 0 | F64: =SUM(F60:F63) -> 0 | G64: =SUM(G60:G63) -> 0 | H64: =SUM(H60:H63) -> 0 | I64: =SUM(I60:I63) -> 0 | J64: =SUM(J60:J63) -> 816813 | K64: =SUM(K60:K63) -> 816813 | L64: =SUM(L60:L63) -> 816813 | M64: =SUM(M60:M63) -> 816813 | N64: =SUM(N60:N63) -> 816813
A66: Variation | C66: =C64-C45 -> 0 | D66: =D64-D45 -> 0 | E66: 0 | F66: 0 | G66: 0 | H66: 0 | I66: 0 | J66: 816813 | K66: 792463 | L66: 792463 | M66: 792463 | N66: 792463
C68: =C66 -> 0 | D68: =D66 -> 0 | E68: 0 | F68: 0 | G68: 0 | H68: 0 | I68: 0 | J68: 816813 | K68: 792463 | L68: 792463 | M68: 792463 | N68: 792463
